Workbook

Sheet ReadMe
B1: Wide Flange Analysis - LRFD
B2: AISC 360-22
B3: Norman R. Mahan, PE. Ver. 1.2 - 2/21/2025
B4: Overview
A6: 1 | B6: This spreadsheet computes the available strength of WF sections, obtaining the values of ɸcPn, ɸbMnx, ɸbMny, ɸtTyn, ɸtuTun, ɸvVx, and ɸvVy, in accordance with AISC 360-22. All WF sections in the AISC Shapes Database, V16.0 are included. Thus it provide the user with the values that are in the AISC Manual, Table 6-2. Torsion effects are not included.
A8: =+A6+1 -> 2 | B8: The spreadsheet consists of 7 sheets and this 'ReadMe' sheet. 'WF_Member' is the only sheet with which the user interacts. All sheets are protected, with the necessary input cells on 'WF_Member' unprotected. Almost all calculations are done on the other sheets. WF16 is a subset of 'aisc-shapes-database-v16.0.' Columns of this sheet haved been named within Excel to allow quick access to the data within the databases. Two columns were added to this sheet, values for 'rt' and 'h'.
A10: 3 | B10: The 'Heading' area on WF_Member is row 3. There are two cells in which the user may enter heading information. This information is copied to each sheet in the workbook. Note, however, that the cell widths vary from sheet to sheet due to calculation formatting, and the entire information entered may not appear on each sheet.
A12: =+A10+1 -> 4 | B12: The sheet 'WF_Section_Properties' retrieves the necessary section properties for the input section from the WF16 database. In the lower right had corner of the table of the properties there are three properties which have been calculated. 'rt' and 'h' values were computed and added to the WF16 sheet, and √(E/Fy) is calculated as it is required a number of times in the formulas. Lp and Lr are calculated values, where Lp = Lp' for the few WF sections with noncompact flanges. See Figure 3.1 in the AISC manual.
A14: =+A12+1 -> 5 | B14: 'WF Axial Calculations', 'WF Bending Calculations', 'WF Tension Calculations',and 'WF Shear' sheets compute the values accordingly. At the top of each page (take Axial for example) is the governing value (Pn and ɸcPn). The latter value is copied to the 'WF Member' sheet so that the user needs to only view the 'WF Member' sheet to obtain all of the results.
A16: =+A14+1 -> 6 | B16: Input 'WF_Member' is the only sheet that has input. The input cells are this color. All other cells are protected. Cells with totals are this color. Cells with output values are this color.
A18: =+A16+1 -> 7 | B18: Note that all input forces and moments are to be factored values.
A20: =+A18+1 -> 8 | B20: There are two ways to enter the WF section to be checked. (1) Enter the WF section without the 'W' or 'WF' prefix in Cell B6. No blanks are to be entered. (Examples: 8x31, 10x40, 6x8.5). Entering a new section sets the crane eccentricity option to 'No'. (2) In cell A5 is a drop down list of the WF depths. In cell A6 is a drop down list of the avaiable weights for the selected depth. (You may need to scroll to see all of the weights.) In cell A7 is an 'Insert' button. Clicking on the latter inserts the selected depth and weight into cell B6. Some of the weights have a '- 8' or some such following them. The value given here is an approximate value of the flange width of the selected section. This can be helpful when a particular section does not quite work in flexure with the required unbraced length. You can immedately determine the next higher flange width from this information.
A22: =+A20+1 -> 9 | B22: There are three option selections. One is for the ASTM grade of the section, a second is to compute the moment at the top of the column due to crane load eccentricity. The crane load eccentricity options are 'Yes' and 'No'. The eccentricity is taken to be equal to the (column depth/2 - flange thickness/2), varying linearly to zero at the base of the column. Only the crane 'Live Load' is used to compute the Mx moment. The crane DL is assumed to be the weight of the crane beam and rail, generally symmetric on the column. The third option is for P-delta effects. See below.
A24: =+A22+1 -> 10 | B24: The crane live load, or axial force on the column, is entered in cell B9, with the dead load in cell B10.
A26: =+A24+1 -> 11 | B26: The k values for the member and the unbraced length about each axis are in cells B17 thru D17. Note that the unbraced length for torsion (Lz) must be equal to or less than Ly. It need be entered only if torsion effects are to be included in the analysis.
A28: =+A26+1 -> 12 | B28: P-Delta effects. This workbook assumes that the member being analyzed is braced against lateral movement at each end. Therefore P-Δ effects are not included. However, first-order P-δ effects may be included at the user's option. For example, the slight deflection of a crane column due to the eccentricity of the load source (assumed to be 1/2 of the column depth minus 1/2 of the flange thickness) induces a small additional moment. Cell E11 of the WF_Member sheet contains a Yes/No option for such. If 'Yes' is selected, cell F11 asks if the moment is due to a transverse load. If 'Yes', the user is to input a ψ value selected from Table C-A.8.1 which is reproduced lower in the WF_Member sheet (Scroll down to find it.) The input value may be either positive or negative, the worksheet accounts for such. If 'No' is selected, cells G11 and H11 are to be used to input the moment values (both positive for single curvature) at each end of the unbraced length (Note that the ratio of the moments is what matters, not their particular value.) The worksheet determines which is the smaller moment for correct computation of Cm. The worksheet assumes that the member will be bent in single curvature. If it is bent in double curvature enter one of the moments as negative. The B1 value (See Appendix 8 of the Specification) is computed; if greater than 1.0 the major axis bending moment is amplyfied by the B1 value. If less than 1.0 no moment reduction occurs. When a member is contributing to the stability of the structure reduced stiffnesses are required. This worksheet assumes that the member does not participate in providing any stability and the stiffness is not reduced.
A30: =+A28+1 -> 13 | B30: Additional Mx and My moments may be entered in cells F11 and F17 as needed. The unbraced length in bending, Lb, is entered in cell F18.
A32: =+A30+1 -> 14 | B32: If the crane eccentricity option is selected, values for Cb are automatically entered in cells H27 through H30, assuming a linear distribution of moment with Mmax at the top of the member and a zero value for the moment at the bottom. The user may adjust these values if desired. Alternatively, the user may enter a Cb value in cell H32 which will override any value computed in cell H31.
A34: =+A32+1 -> 15 | B34: The only other values the user may wish to enter is for shear, in cells C50 and C51, and the U value for tensile rupture, cell B41.
A36: =+A34+1 -> 16 | B36: Ensure that all numeric entries have a value - zero if necessary. Blank value may cause strange results and lead to confusion.
A38: =+A36+1 -> 17 | B38: There are no WF shapes that have a noncompact web, at least up through sections with an Fy = 70.0 ksi. Therefore, for flexural calculations only sections F2 and F3 are applicable.
A40: =+A38+1 -> 18 | B40: Cells H18:I21 contain buttons for your use. Some of both the flexural and axial calculations will not apply for any particular section. These buttons give the user the option of seeing and printing only the applicable calculations.
A42: =+A40+1 -> 19 | B42: When the calculations extend beyond the screen size the top rows of the selected sheet are frozen. The user can always see the selected member size and yield stress.
A44: 18 | B44: The lookup of WF section properties is done using Index and Match rather than Xlookup, allowing this workbook to be used on earlier versions of Excel.
A46: 19 | B46: The WF section being checked is on row 6. The last row of the unity checks is 48. It is unlikely that both rows are visible on the screen at the same time, thus requiring the user to scroll down, check the result, and then scroll back up to change the section if necessary. To eliminate this minor inconvenience, two buttons are located on rows 44-46. When the "Hide rows 8-32" button is clicked the specified rows are hidden. This allows both the input WF section and all of the stress checks to be viewed simultaneously, eliminating the annoyance.
A48: =+A46+1 -> 20 | B48: From time to time you may have strange movement of the active cell selector on WF_Member. Select another sheet and then go back to WF_Member. This seems to alleviate the problem.
A50: =+A48+1 -> 21 | B50: The sheets of this workbook are protected, the workbook is not. So the user can add sheets of their own, such as developing a worksheet which computes crane forces to a column, and then copying such forces directly to WF_Member.
A52: 50 | B52: Print any or all sheets as you desire using normal Excel printing procedures. Print areas are pre-selected.
A54: 51 | B54: Rev. 1.2 - 2/21/2025
B55: 1. Increased width of input list boxes to allow viewing of flange width in weight box.
B56: 2. Corrected print area of some of the tabs.
A58: 100 | B58: Address any questions or comments to nrmahan@att.net. I will reply as soon as I can. Suggestions are welcome. Norman R. Mahan, P.E.

Sheet WF_Member
A1: Wide Flange Analysis - LRFD | I1: Ver. 1.2
A2: AISC 360-22
A3: Heading 1 | E3: Heading 2 | I3: =TODAY() -> 2025-03-25
A4: Select depth, weight: | K4: For WF size insertion: | M4: Wt + bf | N4: Wt
B5: WF Section | C5: Fy - ksi | D5: Fu - ksi | F5: A36 | G5: A992 | H5: A913-65 | I5: A913-70 | K5: 5 | L5: =INDEX(_xlfn.ANCHORARRAY(wf_depths),WF_Member!K5) -> 30
B6: 30x116 | C6: 50 | D6: 65 | E6: <= ksi => | F6: 36, 58 | G6: 50, 65 | H6: 65, 80 | I6: 70, 90 | K6: 13 | L6: =IFERROR(+N6,M6) -> 116 | M6: =INDEX(_xlfn.ANCHORARRAY(SelWeights),$K$6) -> 116 | N6: =TRIM(LEFT(M6, (SEARCH("-",M6)-2))) -> 
B7: =_xlfn.XLOOKUP("W" & B6,wf_section,wf_blank_col,"Invalid section") -> 0
A8: Compression | E8: Flexure
A9: All input forces to be factored forces.
B10: (- for Tension) | E10: Pδx | F10: Trans. Load? | G10: M1 - kip-ft | H10: M2 - kip-ft | I10: ψ- Scroll down
A11: LL | B11: 0 | C11: kips | E11: Y N | F11: Y N | G11: 0 | H11: 0 | I11: 0.4
A12: DL | B12: 0 | C12: kips | I12: Crane force eccentricity? | L12: Crane Y, N
A13: Total - Pr | B13: =SUM(B11:B12) -> 0 | C13: kips | E13: Mrx | F13: 0 | G13: kip-ft | I13: Y N | L13: 2
B15: =IF(B19>200, "kL/r > 200", "") ->  | C15: =IF(C19>200, "kL/r > 200", "") -> 
B16: X-axis | C16: Y-axis | D16: Z-axis | E16: Total - Mrx | F16: =+F13+F15 -> 0 | G16: kip-ft | L16: 0
A17: k | B17: 1 | C17: 1 | D17: 1 | E17: Mry | F17: 0 | G17: kip-ft | H17: Show/print formulas
A18: Lc | B18: 30 | C18: 30 | D18: 30 | E18: ft Lb | F18: 30 | G18: ft | H18: Axial | I18: Bending
A19: kLc/r | B19: =B17*B18*12/rx -> 30 | C19: =C17*C18*12/ry -> 164.3835616
A23: For uniform compression section is: | G23: For bending: | H23: Flanges: | I23: Web:
C24: =+'WF_Axial Calculations'!B8 -> Slender | H24: =+WF_Section_Properties!$H$27 -> Compact | I24: =+WF_Section_Properties!$H$34 -> Compact
H25: For bending the applicable AISC section is: | I25: =+BC_applicable -> F2
F26: Compute Cb | H26: 0
F27: Optional calculation - absolute values | G27: Mmax | H27: 0 | I27: kip-ft
F28: Ma - 1/4 pt of unbraced segment | G28: Ma | H28: 0 | I28: kip-ft
F29: Mb - 1/2 pt of unbraced segment | G29: Mb | H29: 0 | I29: kip-ft
F30: Mc - 3/4 pt of unbraced segment | G30: Mc | H30: 0 | I30: kip-ft
F31: Cb = 12.5Mmax/(2.5Mmax + 3Ma + 4Mb+3Mc) | G31: Cb | H31: =IFERROR(12.5*H27/(2.5*H27+3*H28+4*H29+3*H30),0) -> 0 | I31: F1-1
D32: Optional direct entry | G32: Cb (enter) | H32: 1
L33: Compression/Tension switch for axial
A34: Axial | C34: ɸcPn = Pc | D34: =+'WF_Axial Calculations'!D6 -> 285.9225751 | E34: kips | F34: Pr | G34: =+B13 -> 0 | H34: kips | I34: =IF(G34<0, "Tension","") ->  | L34: =IF(Tension<0,B39,D34) -> 285.9225751 | M34: ɸcPn = Pc | N34: or | O34: ɸtTYn
A35: X Bending | C35: ɸbMn = Mcx | D35: =+'WF Bending Calculations'!$F$8 -> 551.6247809 | E35: kip-ft | F35: Mrx | G35: =IFERROR(F16,IF('WF Bending Calculations'!H108= "Yes", F16*p_del_B1, F16)) -> 0 | H35: kip-ft | I35: =IFERROR(p_del_B1,1) -> 1
A36: Y Bending | C36: ɸbMn = Mcy | D36: =+'WF Bending Calculations'!F10 -> 184.5 | E36: kip-ft | F36: Mry | G36: =+F17 -> 0 | H36: kip-ft | I36: Pδx amp. factor
A38: Tension | D38: Shear | H38: Shear force
A39: ɸtTYn | B39: =+'WF Tension Calculations'!G6 -> 1539 | C39: kips | D39: ɸvVnx | E39: =+'WF Shear Calculations'!E6 -> 508.5 | F39: kips | G39: Vx | H39: 0 | I39: kips
A40: ɸtuTUn | B40: =+'WF Tension Calculations'!G8 -> 1250.4375 | C40: kips | D40: ɸvVny | E40: =+'WF Shear Calculations'!E8 -> 481.95 | F40: kips | G40: Vy | H40: 0 | I40: kips
A41: U | B41: 0.75 | C41: Table D3.1
B43: Pr/Pc | C43: =IFERROR(ABS(G34/L34),0) -> 0 | D43: =IF(C43<0.2, "< 0.2, H1-1b applies", "=> 0.2, H1-1a applies") -> < 0.2, H1-1b applies
B44: H1-1a | D44: H1-1b
B45: Pr/Pc | C45: =IFERROR(ABS(G34/L34),0) -> 0 | D45: Pr/(2*Pc) | E45: =+ABS(Tension/(2*L34)) -> 0
B46: (8/9)(Mrx/Mcx) | C46: =IFERROR((8/9)*($G$35/$D$35),0) -> 0 | D46: Mrx/Mcx | E46: =IFERROR(($G$35/$D$35),0) -> 0
B47: (8/9)(Mry/Mcy) | C47: =IFERROR((8/9)*($G$36/$D$36),0) -> 0 | D47: Mry/Mcy | E47: =IFERROR(($G$36/$D$36),0) -> 0
B48: Total | C48: =SUM(C45:C47) -> 0 | E48: =E45+E46+E47 -> 0
A50: Residual str | B50: 10 | C50: ksi
A51: E | B51: 29000 | C51: ksi
A52: G | B52: 11200 | C52: ksi
A53: π | B53: 3.14159
A54: ɸb | B54: 0.9
A55: ɸc | B55: 0.9
A56: ɸv | B56: 0.9
A57: ɸt_yield | B57: 0.9
A58: ɸt_rupture | B58: 0.75 | J58: =ROW() -> 58 | K58: no_table
J59: =ROW() -> 59 | K59: table_start
G62: If there is no transverse loading
G63: between the end points of the
G64: member, enter ψ as 0.
J92: =ROW() -> 92 | K92: table_end

Sheet WF_Section_Properties
A1: =+WF_Member!A1 -> Wide Flange Analysis - LRFD | J1: =+WF_Member!I1 -> Ver. 1.2
A2: =+WF_Member!A2 & " - Section Properties" -> AISC 360-22 - Section Properties
A3: =+WF_Member!A3 -> Heading 1 | E3: =+WF_Member!E3 -> Heading 2 | I3: =TODAY() -> 2025-03-25
A5: WF Section | B5: Fy - ksi
A6: ="W" & Member -> W30x116 | B6: =+Fy -> 50
A8: =$A$6 & " section properties" -> W30x116 section properties
A9: Area | B9: Depth | C9: bf | D9: tf | E9: tw | F9: h/tw | G9: bf/2tf | H9: ho | I9: J | J9: Cw
A10: in2 | B10: in | C10: in | D10: in | E10: in | H10: in | I10: in4 | J10: in6
A11: =INDEX('WF16'!$X$7:$AT$296,MATCH($A$6,'WF16'!$A$7:$A$296,0),MATCH(A$9,'WF16'!$X$6:$AT$6,0)) -> 34.2 | B11: =INDEX('WF16'!$X$7:$AT$296,MATCH($A$6,'WF16'!$A$7:$A$296,0),MATCH(B$9,'WF16'!$X$6:$AT$6,0)) -> 30 | C11: =INDEX('WF16'!$X$7:$AT$296,MATCH($A$6,'WF16'!$A$7:$A$296,0),MATCH(C$9,'WF16'!$X$6:$AT$6,0)) -> 10.5 | D11: =INDEX('WF16'!$X$7:$AT$296,MATCH($A$6,'WF16'!$A$7:$A$296,0),MATCH(D$9,'WF16'!$X$6:$AT$6,0)) -> 0.85 | E11: =INDEX('WF16'!$X$7:$AT$296,MATCH($A$6,'WF16'!$A$7:$A$296,0),MATCH(E$9,'WF16'!$X$6:$AT$6,0)) -> 0.565 | F11: =INDEX('WF16'!$X$7:$AT$296,MATCH($A$6,'WF16'!$A$7:$A$296,0),MATCH(F$9,'WF16'!$X$6:$AT$6,0)) -> 47.8 | G11: =INDEX('WF16'!$X$7:$AT$296,MATCH($A$6,'WF16'!$A$7:$A$296,0),MATCH(G$9,'WF16'!$X$6:$AT$6,0)) -> 6.17 | H11: =INDEX('WF16'!$X$7:$AT$296,MATCH($A$6,'WF16'!$A$7:$A$296,0),MATCH(H$9,'WF16'!$X$6:$AT$6,0)) -> 29.2 | I11: =INDEX('WF16'!$X$7:$AT$296,MATCH($A$6,'WF16'!$A$7:$A$296,0),MATCH(I$9,'WF16'!$X$6:$AT$6,0)) -> 6.43 | J11: =INDEX('WF16'!$X$7:$AT$296,MATCH($A$6,'WF16'!$A$7:$A$296,0),MATCH(J9,'WF16'!$X$6:$AT$6,0)) -> 34900
A13: Ix | B13: Sx | C13: rx | D13: Zx | E13: Iy | F13: Sy | G13: ry | H13: Zy | I13: rts | J13: Cb
A14: in4 | B14: in3 | C14: in | D14: in3 | E14: in4 | F14: in3 | G14: in | H14: in3 | I14: in
A15: =INDEX('WF16'!$X$7:$AT$296,MATCH($A$6,'WF16'!$A$7:$A$296,0),MATCH(A$13,'WF16'!$X$6:$AT$6,0)) -> 4930 | B15: =INDEX('WF16'!$X$7:$AT$296,MATCH($A$6,'WF16'!$A$7:$A$296,0),MATCH(B$13,'WF16'!$X$6:$AT$6,0)) -> 329 | C15: =INDEX('WF16'!$X$7:$AT$296,MATCH($A$6,'WF16'!$A$7:$A$296,0),MATCH(C$13,'WF16'!$X$6:$AT$6,0)) -> 12 | D15: =INDEX('WF16'!$X$7:$AT$296,MATCH($A$6,'WF16'!$A$7:$A$296,0),MATCH(D$13,'WF16'!$X$6:$AT$6,0)) -> 378 | E15: =INDEX('WF16'!$X$7:$AT$296,MATCH($A$6,'WF16'!$A$7:$A$296,0),MATCH(E$13,'WF16'!$X$6:$AT$6,0)) -> 164 | F15: =INDEX('WF16'!$X$7:$AT$296,MATCH($A$6,'WF16'!$A$7:$A$296,0),MATCH(F$13,'WF16'!$X$6:$AT$6,0)) -> 31.3 | G15: =INDEX('WF16'!$X$7:$AT$296,MATCH($A$6,'WF16'!$A$7:$A$296,0),MATCH(G$13,'WF16'!$X$6:$AT$6,0)) -> 2.19 | H15: =INDEX('WF16'!$X$7:$AT$296,MATCH($A$6,'WF16'!$A$7:$A$296,0),MATCH(H$13,'WF16'!$X$6:$AT$6,0)) -> 49.2 | I15: =INDEX('WF16'!$X$7:$AT$296,MATCH($A$6,'WF16'!$A$7:$A$296,0),MATCH(I13,'WF16'!$X$6:$AT$6,0)) -> 2.7 | J15: =IF(WF_Member!H31=0, WF_Member!H32,WF_Member!H31) -> 1
A17: Lp | B17: Lr | C17: Weight | D17: Iyc | H17: rt | I17: h | J17: √(E/Fy)
A18: ft | B18: ft | C18: lbs/ft | D18: in4 | H18: in | I18: in
A19: =+'WF Bending Calculations'!C14 -> 7.735520357 | B19: =+'WF Bending Calculations'!E14 -> 22.63819831 | C19: =INDEX('WF16'!$X$7:$AT$296,MATCH($A$6,'WF16'!$A$7:$A$296,0),MATCH(C$17,'WF16'!$X$6:$AT$6,0)) -> 116 | D19: =+tf*bf^3/12 -> 81.9984375 | H19: =INDEX('WF16'!$X$7:$AT$296,MATCH($A$6,'WF16'!$A$7:$A$296,0),MATCH(H$17,'WF16'!$X$6:$AT$6,0)) -> 2.673966318 | I19: =INDEX('WF16'!$X$7:$AT$296,MATCH($A$6,'WF16'!$A$7:$A$296,0),MATCH(I$17,'WF16'!$X$6:$AT$6,0)) -> 27.007 | J19: =SQRT(E/Fy) -> 24.08318916
A20: =IF(H27="Noncompact","15 ed, p.3-5","F2-5") -> F2-5 | B20: =_xlfn.IFS(OR(BC_applicable = "F2",BC_applicable = "F3"),"F2-6",BC_applicable = "F4","F4-8",BC_applicable = "F5","F5-5") -> F2-6
A22: Uniform compression - Table B4.1a | G22: Bending compression - Table B4.1b
C23: Flange | H23: Flange
C24: bf/2tf = λ | D24: =+bf_over_2tf -> 6.17 | F24: flg lambda | H24: bf/2tf = λ | I24: =bf_over_2tf -> 6.17
C25: λr = 0.56*√(E/Fy) | D25: =0.56*sqrtefy -> 13.48658593 | F25: ratio | H25: λp = 0.38*√(E/Fy) | I25: =0.38*sqrtefy -> 9.15161188
F26: =(b_flange_lambda - b_flange_lambda_p)/(b_flange_lambda_r-b_flange_lambda_p) -> -0.1996849914 | H26: λr = 1.0*√(E/Fy) | I26: =sqrtefy -> 24.08318916
C27: =IF(D24<=D25,"Nonslender","Slender") -> Nonslender | H27: =IF(I24<=I25,"Compact", IF(I24<=I26, "Noncompact","Slender")) -> Compact
I28: For bending the applicable AISC section is: | J28: ='WF Bending Calculations'!B14 -> F2
C30: Web | H30: Web
C31: h/tw = λ | D31: =h_over_tw -> 47.8 | F31: web lambda | H31: h/tw = λ | I31: =h_over_tw -> 47.8
C32: λr = 1.49*√(E/Fy) | D32: =1.49*sqrtefy -> 35.88395184 | F32: ratio | H32: λp = 3.76*√(E/Fy) | I32: =3.76*sqrtefy -> 90.55279123
F33: =(b_web_lambda - b_web_lambda_p)/(b_web_lambda_r - b_web_lambda_p) -> -0.9150582637 | H33: λr = 5.70*√(E/Fy) | I33: =5.7*sqrtefy -> 137.2741782
C34: =IF(D31<=D32,"Nonslender","Slender") -> Slender | H34: =IF(I31<=I32,"Compact", IF(I31<=I33, "Noncompact","Slender")) -> Compact
A36: F2.2 Lateral-torsional buckling
B37: Lb | C37: =+Lb -> 30 | D37: ft | E37: =_xlfn.IFS($C$37<=$C$38,$A$42,$C$37<=$C$39,$A$43,$C$37>$C$39,$A$44) -> Lb > Lr - Lateral-torsional buckling applies - F2-3 (c)
B38: Lp | C38: =+C48 -> 7.735520357 | D38: ft
B39: Lr | C39: =+Lr -> 22.63819831 | D39: ft
B40: L'p | C40: =+C50 -> 4.759679238 | D40: ft | E40: If flanges are noncompact - See p. 3-5 & 3-6, AISC Manual,
J41: 15th Edition.
A42: Lb <= Lp - Lateral-torsional buckling does not apply (a)
A43: Lp < Lb <= Lr - Lateral-torsional buckling applies - F2-2 (b)
A44: Lb > Lr - Lateral-torsional buckling applies - F2-3 (c)
A47: Compute Lp, L'p
B48: Lp = 1.76ry*√(E/Fy) | C48: =1.76*ry*sqrtefy/12 -> 7.735520357 | D48: ft | I48: F2-5
A49: For noncompact flanges
B50: L'p = Lp | C50: =C48+(Lr-C48)*C57 -> 4.759679238 | D50: ft | J50: 3-2 (AISC Manual, 15th ed, p. 3-5)
A51: L'p = Lp + (Lr-Lp)[(Mp - M'p)/(Mp - Mr)]
A52: M'p = Mn = Mp - (Mp - 0.7FySx)[(λ - λpf)/(λrt - λpf)] | I52: F3-1
B53: (λ - λpf)/(λrt - λpf) | C53: =b_flange_lambda_ratio -> -0.1996849914
B54: (Mp - 0.7FySx) | C54: =Mp-0.7*Fy*sx/12 -> 615.4166667 | D54: kip-ft
B55: M'p | C55: =Mp-C54*C53 -> 1697.889472 | D55: kip-ft
B56: Mr | C56: =0.7*Fy*sx/12 -> 959.5833333 | D56: kip-ft
B57: (Mp - M'p)/(Mp - Mr) | C57: =+(Mp - C55)/(Mp - C56) -> -0.1996849914
A59: Compute Lr - F2 & F3 - Eq. F2-6
B60: Lr | C60: =+C67*C66/12 -> 22.63819831 | D60: ft | I60: F2-6
B61: 6.76*(0.7Fy/E)^2 | C61: =6.76*(0.7*Fy/E)^2 -> 9.846611177e-06
B62: c | C62: 1 | I62: F2-8a
B63: (Jc)/(Sxho) | C63: =+(j*C62)/(sx*ho) -> 0.0006693175667 | E63: 0.005984286207
B64: ((Jc)/(Sxho))2 | C64: =+C63^2 -> 4.479860051e-07 | E64: 5.083726641e-05
B65: Inner sqrt | C65: =SQRT(C64+C61) -> 0.003208519469 | E65: 0.00451075078
B66: Outer sqrt | C66: =SQRT((C63+C65)) -> 0.06227228144 | E66: 0.05492283307
B67: 1.95rtsE/0.7Fy | C67: =1.95*rts*E/(0.7*Fy) -> 4362.428571 | E67: -4976.4
A69: Compute Lr - F4 - Eq. F4-8
B70: Lr | C70: =+C77*C76/12 -> 22.41991844 | D70: ft | I70: F4-8
B71: FL = 0.7Fy | C71: =0.7*Fy -> 35 | D71: ksi | E71: Sxt/Sxc = 1.0 >= 0.7 for any WF section | I71: F4-6a
B72: 6.76*(FL/E)^2 | C72: =6.76*(C71/E)^2 -> 9.846611177e-06
B73: (J)/(Sxcho) | C73: =+(j)/(sx*ho) -> 0.0006693175667
B74: ((J)/(Sxho))2 | C74: =+C73^2 -> 4.479860051e-07
B75: Inner sqrt | C75: =SQRT(C74+C72) -> 0.003208519469
B76: Outer sqrt | C76: =SQRT((C73+C75)) -> 0.06227228144
B77: 1.95rtE/FL | C77: =1.95*rt*E/(C71) -> 4320.36558

Sheet WF_Axial Calculations
A1: Wide Flange Analysis - LRFD | H1: =+WF_Member!I1 -> Ver. 1.2 | I1: =ROW() -> 1 | J1: axial_heading_start
A2: AISC 360-22 - Compression
A3: =+WF_Member!A3 -> Heading 1 | E3: =+WF_Member!E3 -> Heading 2 | H3: =TODAY() -> 2025-03-25
A5: WF Section | B5: Fy - ksi | C5: Pn | D5: =IF(B8= "Slender",D45, D13) -> 317.6917502 | E5: kips
A6: ="W" & Member -> W30x116 | B6: =+WF_Section_Properties!B6 -> 50 | C6: ɸcPn | D6: =+phi_c*D5 -> 285.9225751 | E6: kips
A8: Section is: | B8: =IF(AND(B9="Nonslender", B10 = "Nonslender"), "Nonslender","Slender") -> Slender
A9: Flanges: | B9: =+WF_Section_Properties!C27 -> Nonslender
A10: Web: | B10: =+WF_Section_Properties!C34 -> Slender
A11: Section has: | B11: Both stiffened (web) and nonstiffened (flanges) elements | I11: =ROW() -> 11 | J11: axial_heading_end
A12: E3 - Flexural buckling of members without slender elements | I12: =ROW() -> 12 | J12: wo_slender_start
C13: Pn = FnAg | D13: =+$D$19*area -> 317.6917502 | E13: kips | H13: E3-1
C14: Max Lc/r | D14: =MAX(WF_Member!$B$19,WF_Member!$C$19) -> 164.3835616
C15: 4.71*√(E/Fy) | D15: =4.71*sqrtefy -> 113.4318209
C16: Fn = [0.658(Fy/Fe)]Fy | D16: =(0.658^(Fy/_Fe3))*Fy -> 6.932691083 | E16: ksi | F16: Lc/r <= 4.71*√(E/Fy) | H16: E3-2
C17: Fn = 0.877Fe | D17: =0.877*_Fe3 -> 9.289232461 | E17: ksi | F17: Lc/r > 4.71*√(E/Fy) | H17: E3-3
C18: Fe = pi2*E/(Lc/r)2 | D18: =pi^2*E/($D$14^2) -> 10.59205526 | E18: ksi | H18: E3-4
C19: Fn use ==> | D19: =IF(D14<=D15,D16,D17) -> 9.289232461 | E19: ksi
A21: E4 - Torsional and flexural-torsional buckling of single angles and members without slender elements
C22: Pn = FnAg | D22: =IF(D14<=D15,D23,D24) -> 25.66812216 | E22: kips | H22: E4-1
C23: Fn = [0.658(Fy/Fe)]Fy | D23: =(0.658^(Fy/_Fe4))*Fy -> 24.45891435 | E23: ksi | F23: Fe from below
C24: Fn = 0.877Fe | D24: =0.877*_Fe4 -> 25.66812216 | E24: ksi | F24: Fe from below
A26: (a) For double symmetric members twisting about the shear center
C27: π2ECw/Lcz2 | D27: =+pi^2*E*Cw/(WF_Member!D18*12)^2 -> 77075.69244
C28: GJ | D28: =+j*g -> 72016
C29: 1/(Ix+Iy) | D29: =1/(Ix+Iy) -> 0.0001963093836
C30: Fe = (π2ECw/Lcz2 + GJ)*(1/(Ix + Iy)) | D30: =+(D27+D28)*D29 -> 29.26809824 | E30: ksi | H30: E4-2
A32: (b) For doubly symmetric I-shaped members with minor-axis lateral bracing offset from the shear center
C33: ro2 = rx2 + ry2 + ya2 + xa2 | D33: =rx^2 + ry^2 + ya^2 + xa^2 -> 148.7961 | E33: in2 | H33: E4-11
C34: π2EIy/Lcz2 | D34: =+pi^2*E*Iy/(WF_Member!D18*12)^2 -> 362.1895003 | E34: k/in
C35: ho2/4 + ya2 | D35: =ho^2/4 + ya^2 -> 213.16 | E35: in2
C36: ho2/4 + (Ix/Iy)xa2 | D36: =ho^2/4 +(Ix/Iy)* xa^2 -> 213.16 | E36: in2
C37: 1/(Ag*(ro)2) | D37: =1/(area*ro_squared) -> 0.0001965089547 | E37: 1/in4
C38: Fe = [π2EIy/Lcz2*(ho2/4 + ya2) + GJ]*1/(Ag*(ro)2) | D38: =(D34*D35+D28)*D37 -> 29.32312791 | E38: ksi | H38: E4-10
A40: (c) For doubly symmetric I-shaped members with major-axis lateral bracing offset from the shear center
C41: Fe = [π2EIy/Lcz2*(ho2/4 + (Ix/Iy)ya2) + GJ]* | D41: =+(D34*D36 + D28)*D37 -> 29.32312791 | E41: ksi | H41: E4-12
C42: 1/(Ag*(ro)2)
C43: Fe Use ==> | D43: =IF(AND(xa=0,ya=0),D30,MIN(D38,D41)) -> 29.26809824 | E43: ksi | I43: =ROW() -> 43 | J43: wo_slender_end
A44: E7 - Members with slender elements: | I44: =ROW() -> 44 | J44: w_slender_start
C45: Pn = FnAe | D45: =Fn*Aeff -> 317.6917502 | E45: kips | H45: E7-1
D46: Effective area
D47: Flanges | F47: Web
D48: =+B9 -> Nonslender | F48: =+B10 -> Slender
C49: bf or h | D49: =bf -> 10.5 | E49: in | F49: =tw*h_over_tw -> 27.007 | G49: in
C50: λ | D50: =+WF_Section_Properties!D24 -> 6.17 | F50: =+WF_Section_Properties!D31 -> 47.8
C51: λr | D51: =+WF_Section_Properties!D25 -> 13.48658593 | F51: =+WF_Section_Properties!D32 -> 35.88395184
C52: λr*sqrt(Fy/Fn) | D52: =D51*SQRT(Fy/Fn) -> 31.289391 | F52: =F51*SQRT(Fy/Fn) -> 83.25212963
C53: Fel = [c2*( λr/λ)]^2*Fy | D53: =($F$63*($D$51/$D$50))^2*Fy -> 409.96456 | E53: ksi | F53: =($F$63*$F$51/F50)^2*Fy -> 48.35677539 | G53: ksi | H53: E7-5
C54: sqrt(Fel/Fn) | D54: =SQRT(D53/Fn) -> 6.643290472 | F54: =SQRT(F53/Fn) -> 2.281596021
C55: λr*sqrt(Fel/Fn) | D55: =+D51*D54 -> 89.5953078 | F55: =+F51*F54 -> 81.87268176
C56: 1 - c1*sqrt(Fel/Fn) | D56: =1-E63*D54 -> -0.195792285 | F56: =1-(E63*F54) -> 0.5893127162
C57: be = b*[1 - c1*sqrt(Fel/Fn}]*sqrt(Fel/Fn) | D57: =(D49/2)*D56*D54 -> -6.828701363 | E57: in | F57: =F49*F56*F54 -> 36.31289782 | G57: in
C58: be Use ==> | D58: =IF(D48 = "Nonslender", D49,D57) -> 10.5 | E58: in | F58: =IF(F57<=F49,F57,F49) -> 27.007 | G58: in | H58: E7-2, E7-3
C59: Lost length | D59: =MAX(0,+D49-D58) -> 0 | E59: in | F59: =MAX(0,+F49-F58) -> 0 | G59: in
C60: Aeff = Ag - t*Lost length | D60: =+area- tf*2*'WF_Axial Calculations'!D59-tw*F59 -> 34.2 | E60: in2
D62: Table E7.1 | E62: c1 | F62: c2
D63: (a) | E63: 0.18 | F63: 1.31 | I63: =ROW() -> 63 | J63: w_slender_end

Sheet WF Bending Calculations
A1: Wide Flange Analysis - LRFD | K1: =+WF_Member!I1 -> Ver. 1.2
A2: AISC 360-22 - Flexure
A3: =+WF_Member!A3 -> Heading 1 | E3: =+WF_Member!E3 -> Heading 2 | K3: =TODAY() -> 2025-03-25
A5: WF Section | C5: Fy - ksi
A6: ="W" & Member -> W30x116 | C6: =+WF_Section_Properties!B6 -> 50
E7: Mnx | F7: =_xlfn.IFS(BC_applicable="F2",$H$30,BC_applicable = "F3",$H$63,BC_applicable = "F4",#REF!,BC_applicable= "F5",#REF!) -> 612.9164232 | G7: kip-ft
A8: For bending: | E8: ɸbMnx | F8: =+phi_b*F7 -> 551.6247809 | G8: kip-ft
B9: Flanges: | C9: =+WF_Section_Properties!H27 -> Compact | E9: Mny | F9: =+H85 -> 205 | G9: kip-ft
B10: Web: | C10: =+WF_Section_Properties!H34 -> Compact | E10: ɸbMny | F10: =+phi_b*F9 -> 184.5 | G10: kip-ft
B12: Governs
C13: Lp - ft | D13: AISC Eq. | E13: Lr - ft | F13: AISC Eq. | G13: User Note: Lp for WF sections which have compact
B14: =_xlfn.IFS(B15<>"*",B15,B16<>"*",B16,B17<>"*",B17,B18<>"*",B18) -> F2 | C14: =_xlfn.IFS($B$14="F2",C15,$B$14="F3",C16,$B$14="F4",C17,$B$14="F5",C18) -> 7.735520357 | E14: =_xlfn.IFS($B$14="F2",E15,$B$14="F3",E16,$B$14="F4",E17,$B$14="F5",E18) -> 22.63819831 | G14: webs and noncompact or slender flanges (Section F3)
A15: F2 | B15: =IF(AND(C9="Compact", C10="Compact"),"F2","*") -> F2 | C15: =1.76*ry*sqrtefy/12 -> 7.735520357 | D15: F2-5 | E15: =+WF_Section_Properties!C60 -> 22.63819831 | F15: F2-6 | G15: is computed using Formula 3-2 on page 3-5 of the
A16: F3 | B16: =IF(AND(C9<>"Compact",C10 = "Compact"),"F3","*") -> * | C16: =+WF_Section_Properties!C50 -> 4.759679238 | D16: 3-2 | E16: =+E15 -> 22.63819831 | F16: F2-6 | G16: AISC Manual, 15th edition. The manual refers to
A17: F4 | G17: this value as L'p; in this workbook it is generally refered
A18: F5 | G18: to as Lp as there is really no need to distinguish it.
K19: AISC Eq.
C20: Lp | D20: 1.76ry√(E/Fy) | K20: F2-5
C21: Lp = L'p | D21: Lp+(Lr-Lp)[(Mp-M'p)/(Mp-Mr)] | K21: 3-2
C22: Lp = L'p | D22: M'p = Mp-(Mp-0.7FySx)[(λ - λpf)/(λrf - λpf)] | K22: F3-1
C23: Lp | D23: 1.1rt√(E/Fy) | K23: F4-7
C25: Lr | D25: 1.95rts(E/0.7Fy)√{[(Jc/Sxho)+√[(Jc/sxho)2 + 6.76(0.7Fy/E)2]} | K25: F2-6
C26: Lr | D26: 1.95rt(E/0.7FL)√{[(J/Sxcho)+√[(J/sxcho)2 + 6.76(0.7FL/E)2]} | K26: F4-8
C27: Lr | D27: πrt√(E/0.7Fy) | K27: F5-5
A29: F2. Double symmetric compact I-shaped members and channels bent about their major axis | L29: =ROW() -> 29 | M29: F2_Start
G30: Mn Use ==> | H30: =MIN(H33,H36) -> 612.9164232 | I30: kip-ft
B32: 1. Yielding
G33: Mn = Mp = FyZx | H33: =Fy*Zx/12 -> 1575 | I33: kip-ft | J33: =12*Mp -> 18900 | K33: F2-1
B35: 2. Lateral-Torsional Buckling
G36: Mn | H36: =IF(Lb<=Lp,IF($B$14="F3","N/A Lb<= L'p"," N/A Lb <= Lp"),IF(Lb<=Lr,$H$42,$H$54)) -> 612.9164232 | I36: kip-ft
G37: ="Lb = " & ROUND(Lb,1) & " ft " & IF($B$14 = "F3", "L'p","Lp") & " = " & ROUND(Lp,1) & " ft Lr = " & ROUND(Lr,1) & " ft" -> Lb = 30 ft Lp = 7.7 ft Lr = 22.6 ft
B39: (a) When Lb <= Lp, the limit state of lateral-torsional buckling does not apply.
B41: (b) When Lp < Lb <= Lr
G42: Mn = Cb[Mp - (Mp - 0.7FySx)((Lb-Lp)/(Lr-Lp))] <= Mp | H42: =+$H$45*$H$51 -> 655.572506 | I42: kip-ft | K42: F2-2
E43: For tension | G43: Pey = π2EIy/Lb2 | H43: =pi^2*E*Iy/(12*Lb)^2 -> 362.1895003 | K43: H1-2
E44: For tension | G44: Pr/Pey | H44: =ABS(WF_Member!G34)/'WF Bending Calculations'!H43 -> 0
G45: Cb | H45: =+IF(WF_Member!H31= 0, WF_Member!H32,WF_Member!H31) -> 1
G46: c | H46: 1 | K46: F2-8a
G47: (Lb-Lp)/(Lr-Lp) | H47: =(Lb-Lp)/(Lr-Lp) -> 1.493991866
G48: 0.7FySx | H48: =0.7*Fy*sx/12 -> 959.5833333 | I48: kip-ft
G49: Mp - 0.7FySx | H49: =Mp-H48 -> 615.4166667
G50: (Mp - 0.7FySx)[(Lb-Lp)/(Lr-Lp)] | H50: =+H49*H47 -> 919.427494 | I50: kip-ft
G51: Mp-[Mp - 0.7FySx[(Lb-Lp)/(Lr-Lp)] | H51: =+Mp-H50 -> 655.572506 | I51: kip-ft
B53: (c) When Lb > Lr
G54: Mn = FcrSx <=Mp | H54: =$H$59*sx/12 -> 612.9164232 | I54: kip-ft | K54: F2-3
G55: (Lb/rts)2 | H55: =(12*Lb/rts)^2 -> 17777.77778
G56: Cbπ^2E/(Lb/rts)2 | H56: =+H45*pi^2*E/H55 -> 16.09976498
G57: 0.078(Jc)/(Sxho) | H57: =0.078*(j*H46)/(sx*ho) -> 5.22067702e-05
G58: Sqrt term | H58: =SQRT(1+H57*H55) -> 1.388567737
G59: Fcr | H59: =H56*H58 -> 22.35561422 | I59: ksi | K59: F2-4
L60: =ROW() -> 60 | M60: F2_End
A61: F3. Doubly symmetric I-shaped members with compact webs | L61: =ROW() -> 61 | M61: F3_Start
A62: and noncompact or slender flanges bent about their major axis.
G63: Mn | H63: =IF(C9 = "Compact","NA",MIN($H$67,_xlfn.IFS(C9="Noncompact",$H$73,C9="Slender",$H$78))) -> NA | I63: kip-ft
B65: 1. Lateral-Torsional Buckling
B66: The provisions of Section F2.2 shall apply.
G67: =+G36 -> Mn | H67: =IF(Lb<=Lp,IF($B$14="F3","N/A Lb<= L'p","N/A Lb<=Lp"),IF(Lb<=Lr,$H$42,$H$54)) -> 612.9164232 | I67: =+I36 -> kip-ft
G68: ="Lb = " & ROUND(Lb,1) & " ft " & IF($B$14 = "F3", "L'p","Lp") & " = " & ROUND(Lp,1) & " ft Lr = " & ROUND(Lr,1) & " ft" -> Lb = 30 ft Lp = 7.7 ft Lr = 22.6 ft
B70: 2. Compression Flange Local Buckling
B71: (a) For sections with noncompact flanges
G73: Mn = Mp -(Mp - 0.70FySx)[(λ - λpf)/(λrf - λpf)] | H73: =$H$33-$H$75*H74 -> 1697.889472 | I73: kip-ft | K73: F3-1
G74: (λ - λpf)/(λrf - λpf) | H74: =b_flange_lambda_ratio -> -0.1996849914
G75: Mp - 0.70FySx | H75: =+H33-0.7*Fy*sx/12 -> 615.4166667 | I75: kip-ft
B77: (b) For sections with slender flanges
G78: Mn = 0.9EkcSxc/λ2 | H78: =0.9*E*H80*sx/WF_Section_Properties!$I$24^2/12 -> 10875.04028 | I78: kip-ft | K78: F3-2
G79: kc = 4/(√(h/tw)) | H79: =4/(SQRT(h_over_tw)) -> 0.5785568541
G80: kc | H80: =MIN(MAX(0.35,H79),0.76) -> 0.5785568541 | I80: >=0.35,= < 0.76
L81: =ROW() -> 81 | M81: F3_End
L82: =ROW() -> 82 | M82: F6_Start
A83: F6. I-shaped members and channels bent about their minor axis
G85: Mn = | H85: =IF($H$88<=$H$93,$H$88,$H$93) -> 205 | I85: kip-ft
B87: 1. Yielding
G88: Mn = Mp = FyZy <= 1.6FySy | H88: =MIN(H89:H90) -> 205 | I88: kip-ft | J88: F6-1
G89: FyZy | H89: =Fy*Zy/12 -> 205 | I89: kip-ft
G90: 1.6FySy | H90: =1.6*Fy*Sy/12 -> 208.6666667 | I90: kip-ft
B92: 2. Flange Local Buckling
G93: Mn = | H93: =_xlfn.IFS($C$9="Compact","NA",$C$9="Noncompact",H98,$C$9="Slender",H106) -> NA | I93: kip-ft
B95: (a) For section with compact flanges, the limit state of flange local buckling does not apply
B97: (b) For sections with noncompact flanges
G98: Mn = Mp -(Mp - 0.70FySy)[(λ - λpf)/(λrf - λpf)] <=FyZy | H98: =H88-H100*H99 -> 227.7058476 | I98: kip-ft
G99: (λ - λpf)/(λrf - λpf) | H99: =b_flange_lambda_ratio -> -0.1996849914
G100: Mp-0.70FySy | H100: =H88-0.7*Fy*Sy/12 -> 113.7083333 | I100: kip-ft
J101: F6-2
B103: (c) For sections with slender flanges
G104: Mn = FcrSy | H104: =H105*Sy/12 -> 1387.96455 | I104: kip-ft
G105: Fcr = 0.70E/(b/tf)2 | H105: =(0.7*E)/((bf/2)/tf)^2 -> 532.1269841 | I105: ksi | J105: F6-4
J106: F6-3 | L106: =ROW() -> 106 | M106: F6_End
A107: Appendix 8 - Approximate Analysis | L107: =ROW() -> 107 | M107: F8_AppStart
G108: Applicable? | H108: No
G109: Transverse loading? | H109: No
G110: Mr = B1Mnt + B2Mlt | H110: 1 | J110: A-8-1
G111: Pr = Pnt + Plt
G112: Pr = Pnt + B2Plt | H112: =+WF_Member!B11 -> 0 | I112: kips | J112: A-8-2
G113: B2 | H113: 0 | J113: Δ not applicable.
G114: 1-α(Pr/Pel | H114: =1-H120*(H112/H121) -> 1
G115: B1 = Cm/(1-α(Pr/Pel)) => 1 | H115: =H126/H114 ->  | J115: A-8-3
G116: B1 ==> Use | H116: =MAX(H115,1) -> 
G117: Smaller M | H117: =MIN(WF_Member!$G$11,WF_Member!$H$11) -> 0
G118: Larger M | H118: =MAX(WF_Member!$G$11,WF_Member!$H$11) -> 0
G119: Cm = 0.6 - 0.4(M1/M2) | H119: =0.6-0.4*-(H117/H118) ->  | J119: A-8-4 | K119: No trans.load
G120: α | H120: 1
G121: Pel = π2EI*/(Lcl)2 | H121: =pi^2*H122/(H123*12)^2 -> 10887.76973 | I121: kips | J121: A-8-5
G122: EI* = EI | H122: =E*Ix -> 142970000 | I122: kip-in2 | J122: Direct analysis method
G123: Lcl | H123: =Lb -> 30 | I123: ft
G124: ψ | H124: =ABS(+omega) -> 0.4
G125: Cm | H125: =IF(H124<>0,1-H124*H120*(H112/H121),1) -> 1 | J125: Table C-A-8.1 | K125: Trans. Load
G126: Cm ==> Use | H126: =IF(H109="No",H119,H125) -> 
L130: =ROW() -> 130 | M130: F8_AppEnd
H263: No
H264: No

Sheet WF Tension Calculations
A1: Wide Flange Analysis - LRFD | I1: =+WF_Member!I1 -> Ver. 1.2
A2: AISC 360-22 - Tension
A3: =+WF_Member!A3 -> Heading 1 | E3: =+WF_Member!E3 -> Heading 2 | I3: =TODAY() -> 2025-03-25
A5: WF Section | B5: Fy - ksi | C5: Fu - ksi | F5: Pn | G5: =+D13 -> 1710 | H5: kips
A6: ="W" & Member -> W30x116 | B6: =+Fy -> 50 | C6: =+Fu -> 65 | D6: ɸt_yield | E6: =+phi_t_yield -> 0.9 | F6: ɸt_yield*Pn | G6: =+phi_t_yield*G5 -> 1539 | H6: kips
F7: Pn | G7: =+D16 -> 1667.25 | H7: kips
D8: ɸt_rupture | E8: =phi_t_rupture -> 0.75 | F8: ɸt_rupture*Pn | G8: =+phi_t_rupture*G7 -> 1250.4375 | H8: kips
A11: D2. Tensile Strength
A12: (a) Tensile yielding
C13: Pn = FyAg | D13: =+Fy*area -> 1710 | E13: kips | I13: D2-1
A15: (b) Tensile rupture
C16: Pn = FuAe | D16: =Fu*D18 -> 1667.25 | E16: kips | I16: D2-2
C17: U | D17: =+U -> 0.75
C18: Ae = AgU | D18: =+area*D17 -> 25.65 | E18: in2

Sheet WF Shear Calculations
A1: Wide Flange Analysis - LRFD | I1: =+WF_Member!I1 -> Ver. 1.2
A2: AISC 360-22 - Shear
A3: =+WF_Member!A3 -> Heading 1 | E3: =+WF_Member!E3 -> Heading 2 | I3: =TODAY() -> 2025-03-25
A5: WF Section | B5: Fy - ksi | D5: Vnx | E5: =+E12 -> 508.5 | F5: kips
A6: ="W" & Member -> W30x116 | B6: =+WF_Section_Properties!B6 -> 50 | D6: ɸvVnx | E6: =H6*E5 -> 508.5 | F6: kips | G6: ɸv | H6: =IF(E16<=E17,1,phi_v) -> 1
D7: Vny | E7: =+E32 -> 535.5 | F7: kips
D8: ɸvVny | E8: =E7*H8 -> 481.95 | F8: kips | G8: ɸv | H8: 0.9
A10: G2. I-Shaped members and channels
A11: 1. Shear Strength of Webs
D12: Vn = 0.6FyAwCv1 | E12: =0.6*Fy*E13*E27 -> 508.5 | F12: kips | I12: G2-1
D13: Aw | E13: =+depth*tw -> 16.95 | F13: in2
A15: (a) For webs of rolled I-shaped members with h/tw <=2.24√(E/Fy)
D16: h/tw | E16: =h_over_tw -> 47.8
D17: 2.24√(E/Fy) | E17: =2.24*sqrtefy -> 53.94634371
D18: Cv1 | E18: 1 | I18: G2-2
A20: (b) For all other I-shaped members and channels
D21: kv | E21: 5.34 | F21: No transverse stiffeners
D22: 1.10√(kvE/Fy) | E22: =1.1*SQRT(E21*E/Fy) -> 61.21774253
D23: Cv1 | E23: 1 | I23: G2-3
D25: Cv1 = 1.10[√(kvE/Fy)]/(h/tw) | E25: =1.1*SQRT(E21*E/Fy)/E16 -> 1.280705911 | I25: G2-4
D27: Cv1 Use ==> | E27: =_xlfn.IFS(E16<=E17,E18,E16<=E22,E23,TRUE,E25) -> 1
A30: G6. Doubly Symmetric and Singly Symmetric Members Subjected to Minor-Axis Shear
D32: Vn = 0.6FybftfCv2 | E32: =0.6*Fy*bf*tf*E44*2 -> 535.5 | F32: kips | I32: G6-1
D33: kv | E33: 1.2
D34: bf/2tf | E34: =+bf_over_2tf -> 6.17
D35: 1.10√(kvE/Fy) | E35: =1.1*SQRT(E33*E/Fy) -> 29.01999311
D36: 1.37√(kvE/Fy) | E36: =1.37*SQRT(E33*E/Fy) -> 36.14308233
A38: (i) When bf/2tf <= 1.10√(kvE/Fy)
D39: Cv2 | E39: 1 | I39: G2-9
A40: (ii) When 1.10√(kvE/Fy) < bf/2tf <= 1.37√(kvE/Fy)
D41: Cv2 = 1.10[√(kvE/Fy)]/(bf/2tf) | E41: =E25/E34 -> 0.2075698396 | I41: G2-10
A42: (iii) When bf/2tf > 1.37√(kvE/Fy)
D43: Cv2 = 1.5kvE/[(bf/2tf)2Fy] | E43: =1.5*E33*E/(E34^2*Fy) -> 27.42396024 | I43: G2-11
D44: Cv2 Use ==> | E44: =_xlfn.IFS(E34<=E35,E39,E34<=E36,E41,TRUE,E43) -> 1

Sheet WF16
AW1: ="Fy = " & Fy -> Fy = 50 | AX1: ksi
AV2: Axial compression | AX2: Flexural compression
AG3: This column | AT3: This column | AV3: Flanges | AW3: Web | AX3: Flanges | AY3: Web | BA3: Lp - F2-5 | BB3: Lr - F2-6 | BH3: Lp - F4-7 | BI3: Lr - F4-8 | BP3: Lp (F5 = F4-7) | BQ3: Lr - F5-5
AG4: inserted by me | AT4: inserted by me | AU4: λp | AX4: 0.38*√(E/Fy) | AY4: 3.76*√(E/Fy) | BA4: ft | BB4: ft | BC4: 6.76*(0.7Fy/E)2 | BD4: c | BH4: ft | BI4: ft | BJ4: FL = 0.7Fy | BK4: 6.76(FL/E)2 | BP4: ft | BQ4: ft
D5: Column number for Index/Match ==> | AH5: 11 | AI5: 12 | AJ5: 13 | AK5: 14 | AL5: 15 | AM5: 16 | AN5: 17 | AO5: 18 | AP5: 19 | AQ5: 20 | AR5: 21 | AS5: 22 | AT5: 23 | AU5: λp | AX5: =0.38*sqrtefy -> 9.15161188 | AY5: =3.76*sqrtefy -> 90.55279123 | BC5: =6.76*(0.7*Fy/E)^2 -> 9.846611177e-06 | BD5: 1 | BJ5: =0.7*Fy -> 35 | BK5: =6.76*(BJ5/E)^2 -> 9.846611177e-06
A6: AISC_Manual_Label | D6: Depths | E6: wf_blank_col | F6: SelWeights | X6: Weight | Y6: Area | Z6: depth | AA6: bf | AB6: tw | AC6: tf | AD6: kdes | AE6: bf/2tf | AF6: h/tw | AG6: h | AH6: Ix | AI6: Zx | AJ6: Sx | AK6: rx | AL6: Iy | AM6: Zy | AN6: Sy | AO6: ry | AP6: J | AQ6: Cw | AR6: rts | AS6: ho | AT6: rt | AU6: λr | AV6: 0.56*√(E/Fy) | AW6: 1.49*√(E/Fy) | AX6: 1.0*√(E/Fy) | AY6: 5.70*√(E/Fy) | BA6: 1.76ry*√(E/Fy) | BC6: (Jc)/(Sxho) | BD6: ((Jc)/(Sxho))2 | BE6: Inner sqrt | BF6: Outer sqrt | BG6: 1.95rtsE/0.7Fy | BH6: 1.1rt√(E/Fy) | BJ6: aw = hctw/bftf | BK6: (J)/(Sxho) | BL6: ((J)/(Sxho))2 | BM6: Inner sqrt | BN6: Outer sqrt | BO6: 1.95rsE/FL | BP6: 1.1rt√(E/Fy) | BQ6: πrt√(E/Fy)
A7: wf_section | G7: 44 | H7: 40 | I7: 36 | J7: 33 | K7: 30 | L7: 27 | M7: 24 | N7: 21 | O7: 18 | P7: 16 | Q7: 14 | R7: 12 | S7: 10 | T7: 8 | U7: 6 | V7: 5 | W7: 4 | AN7: wf_Sy | AO7: wf_ry | AP7: wf_J | AQ7: wf_Cw | AR7: wf_rts | AS7: wf_ho | AT7: wf_rt | AU7: λr | AV7: =0.56*sqrtefy -> 13.48658593 | AW7: =1.49*sqrtefy -> 35.88395184 | AX7: =1*sqrtefy -> 24.08318916 | AY7: =5.7*sqrtefy -> 137.2741782
A8: W44X408 | B8: =RIGHT(A8,LEN(A8)-1) -> 44X408 | C8: =LEFT(B8,(FIND("X",B8)-1)) -> 44 | D8: =_xlfn.UNIQUE(C8:C296) -> 44 | F8: =INDEX('WF16'!$G$8:$W$45,,WF_Member!$K$5) -> 391 | G8: 408 - 16.125 | H8: 655 | I8: 925 | J8: 387 | K8: 391 | L8: 539 - 15.25 | M8: 370 | N8: 275 | O8: 311 - 12 | P8: 100 | Q8: 873 | R8: 336 | S8: 112 | T8: 67 | U8: 25 | V8: 19 | W8: 13 - 4 | X8: 408 | Y8: 120 | Z8: 44.8 | AA8: 16.1 | AB8: 1.22 | AC8: 2.17 | AD8: 2.96 | AE8: 3.71 | AF8: 31.9 | AG8: =+AF8*AB8 -> 38.918 | AH8: 38700 | AI8: 2000 | AJ8: 1730 | AK8: 18 | AL8: 1520 | AM8: 297 | AN8: 189 | AO8: 3.56 | AP8: 134 | AQ8: 691000 | AR8: 4.33 | AS8: 42.6 | AT8: =$AA8/(SQRT(12*(1+$BJ8/6))) -> 4.196632981 | AV8: =IF($AE8<=$AV$7,"N","S") -> N | AW8: =IF($AF8<=$AW$7,"N","S") -> N | AX8: =_xlfn.IFS($AE8<=$AX$5,"C",$AE8<=$AX$7,"N",TRUE,"S") -> C | AY8: =_xlfn.IFS($AF8<=$AY$5,"C",$AF8<=$AY$7,"N",TRUE,"S") -> C | AZ8: =IF(AND(AX8="C", AY8= "C"),"F2","F3") -> F2 | BA8: =1.76*AO8*sqrtefy/12 -> 12.57463583 | BB8: =+$BG8*$BF8/12 -> 43.01949799 | BC8: =+($AP8*$BD$5)/($AJ8*$AS8) -> 0.00181823116 | BD8: =+$BC8^2 -> 3.30596455e-06 | BE8: =SQRT($BD$8+$BC$5) -> 0.003626648002 | BF8: =SQRT(($BC8+$BE8)) -> 0.07378942445 | BG8: =1.95*AR8*E/(0.7*Fy) -> 6996.042857 | BH8: =1.1*AT8*SQRT(E/Fy) -> 111.1751365 | BI8: =$BO8*$BN8 -> 500.3336095 | BJ8: =(AG8*AB8)/(AA8*AC8) -> 1.359016515 | BK8: =+($AP8)/($AJ8*$AS8) -> 0.00181823116 | BL8: =+$BC8^2 -> 3.30596455e-06 | BM8: =SQRT($BL8+$BK$5) -> 0.003626648002 | BN8: =+SQRT($BK8+$BM8) -> 0.07378942445 | BO8: =1.95*$AT8*E/$BJ$5 -> 6780.559859 | BP8: =+$BH8 -> 111.1751365 | BQ8: =pi*$AT8*SQRT(E/Fy) -> 317.5151792
A9: W44X368 | B9: =RIGHT(A9,LEN(A9)-1) -> 44X368 | C9: =LEFT(B9,(FIND("X",B9)-1)) -> 44 | D9: 40 | F9: 357 | G9: 368 | H9: 593 - 16.75 | I9: 853 | J9: 354 | K9: 357 | L9: 368 | M9: 335 - 13.5 | N9: 248 | O9: 283 | P9: 89 | Q9: 808 - 18.625 | R9: 305 | S9: 100 | T9: 58 | U9: 20 | V9: 16 - 5 | X9: 368 | Y9: 108 | Z9: 44.4 | AA9: 16 | AB9: 1.1 | AC9: 1.97 | AD9: 2.76 | AE9: 4.06 | AF9: 35.4 | AG9: =+AF9*AB9 -> 38.94 | AH9: 34700 | AI9: 1800 | AJ9: 1560 | AK9: 17.9 | AL9: 1350 | AM9: 265 | AN9: 169 | AO9: 3.54 | AP9: 100 | AQ9: 608000 | AR9: 4.28 | AS9: 42.4 | AT9: 4.170586721 | AV9: N | AW9: N | AX9: =_xlfn.IFS($AE9<=$AX$5,"C",$AE9<=$AX$7,"N",TRUE,"S") -> C | AY9: =_xlfn.IFS($AF9<=$AY$5,"C",$AF9<=$AY$7,"N",TRUE,"S") -> C | AZ9: =IF(AND(AX9="C", AY9= "C"),"F2","F3") -> F2 | BA9: =1.76*AO9*sqrtefy/12 -> 12.50399181 | BB9: =+$BG9*$BF9/12 -> 41.30905952 | BC9: =+($AP9*$BD$5)/($AJ9*$AS9) -> 0.001511852927 | BD9: =+$BC9^2 -> 2.285699273e-06 | BE9: 0.003626648002 | BF9: =SQRT(($BC9+$BE9)) -> 0.07168333787 | BG9: =1.95*AR9*E/(0.7*Fy) -> 6915.257143 | BH9: =1.1*AT9*SQRT(E/Fy) -> 110.4851318 | BI9: =$BO9*$BN9 -> 476.2439242 | BJ9: =(AG9*AB9)/(AA9*AC9) -> 1.358946701 | BK9: =+($AP9)/($AJ9*$AS9) -> 0.001511852927 | BL9: =+$BC9^2 -> 2.285699273e-06 | BM9: =SQRT($BL9+$BK$5) -> 0.003483146631 | BN9: =+SQRT($BK9+$BM9) -> 0.07067531081 | BO9: 6738.476545 | BP9: =+$BH9 -> 110.4851318 | BQ9: 315.544532
A10: W44X335 | B10: 44X335 | C10: 44 | D10: 36 | F10: 326 | G10: 335 | H10: 503 | I10: 802 - 18 | J10: 318 - 16 | K10: 326 | L10: 336 | M10: 306 | N10: 223 | O10: 258 | P10: 77 | Q10: 730 | R10: 279 | S10: 88 | T10: 48 | U10: 15 - 6 | X10: 335 | Y10: 98.5 | Z10: 44 | AA10: 15.9 | AB10: 1.03 | AC10: 1.77 | AD10: 2.56 | AE10: 4.5 | AF10: 38 | AG10: 39.14 | AH10: 31100 | AI10: 1620 | AJ10: 1410 | AK10: 17.8 | AL10: 1200 | AM10: 236 | AN10: 150 | AO10: 3.49 | AP10: 74.7 | AQ10: 535000 | AR10: 4.24 | AS10: 42.2 | AT10: 4.123968504 | AV10: N | AW10: S | AX10: =_xlfn.IFS($AE10<=$AX$5,"C",$AE10<=$AX$7,"N",TRUE,"S") -> C | AY10: =_xlfn.IFS($AF10<=$AY$5,"C",$AF10<=$AY$7,"N",TRUE,"S") -> C | AZ10: F2 | BA10: 12.32738176 | BB10: 39.88881062 | BC10: 0.001255419986 | BD10: 1.576079341e-06 | BE10: 0.003626648002 | BF10: 0.0698717968 | BG10: 6850.628571 | BH10: 109.2501449 | BI10: 453.6413164 | BJ10: 1.432476993 | BK10: 0.001255419986 | BL10: 1.576079341e-06 | BM10: 0.003379747109 | BN10: 0.06808206147 | BO10: 6663.154825 | BP10: 109.2501449 | BQ10: 312.0174207
A11: W44X290 | B11: 44X290 | C11: 44 | D11: 33 | F11: 292 | G11: 290 | H11: 431 | I11: 723 | J11: 291 | K11: 292 | L11: 307 - 14.5 | M11: 279 | N11: 201 | O11: 234 | P11: 67 - 10.25 | Q11: 665 | R11: 252 - 13 | S11: 77 | T11: 40 | U11: 16 | X11: 290 | Y11: 85.4 | Z11: 43.6 | AA11: 15.8 | AB11: 0.865 | AC11: 1.58 | AD11: 2.36 | AE11: 5.02 | AF11: 45 | AG11: 38.925 | AH11: 27000 | AI11: 1410 | AJ11: 1240 | AK11: 17.8 | AL11: 1040 | AM11: 205 | AN11: 132 | AO11: 3.49 | AP11: 50.9 | AQ11: 461000 | AR11: 4.2 | AS11: 42 | AT11: 4.121311447 | AV11: N | AW11: S | AX11: =_xlfn.IFS($AE11<=$AX$5,"C",$AE11<=$AX$7,"N",TRUE,"S") -> C | AY11: =_xlfn.IFS($AF11<=$AY$5,"C",$AF11<=$AY$7,"N",TRUE,"S") -> C | AZ11: F2 | BA11: 12.32738176 | BB11: 38.37070874 | BC11: 0.0009773425499 | BD11: 9.551984599e-07 | BE11: 0.003626648002 | BF11: 0.06785271219 | BG11: 6786 | BH11: 109.1797555 | BI11: 434.8166998 | BJ11: 1.348747196 | BK11: 0.0009773425499 | BL11: 9.551984599e-07 | BM11: 0.003286610661 | BN11: 0.0652989526 | BO11: 6658.861781 | BP11: 109.1797555 | BQ11: 311.8163891
A12: W44X262 | B12: 44X262 | C12: 44 | D12: 30 | F12: 261 | G12: 262 | H12: 397 | I12: 652 - 17.625 | J12: 263 | K12: 261 | L12: 281 | M12: 250 | N12: 182 | O12: 211 | P12: 57 | Q12: 605 | R12: 230 | S12: 68 | T12: 35 | U12: 12 | X12: 262 | Y12: 77.2 | Z12: 43.3 | AA12: 15.8 | AB12: 0.785 | AC12: 1.42 | AD12: 2.2 | AE12: 5.57 | AF12: 49.6 | AG12: 38.936 | AH12: 24100 | AI12: 1270 | AJ12: 1110 | AK12: 17.7 | AL12: 923 | AM12: 182 | AN12: 117 | AO12: 3.47 | AP12: 37.3 | AQ12: 405000 | AR12: 4.17 | AS12: 41.9 | AT12: 4.117513908 | AV12: N | AW12: S | AX12: =_xlfn.IFS($AE12<=$AX$5,"C",$AE12<=$AX$7,"N",TRUE,"S") -> C | AY12: =_xlfn.IFS($AF12<=$AY$5,"C",$AF12<=$AY$7,"N",TRUE,"S") -> C | AZ12: F2 | BA12: 12.25673774 | BB12: 37.36411719 | BC12: 0.0008019953127 | BD12: 6.431964816e-07 | BE12: 0.003626648002 | BF12: 0.06654805267 | BG12: 6737.528571 | BH12: 109.0791529 | BI12: 422.895358 | BJ12: 1.362308789 | BK12: 0.0008019953127 | BL12: 6.431964816e-07 | BM12: 0.003238797255 | BN12: 0.06356722872 | BO12: 6652.726043 | BP12: 109.0791529 | BQ12: 311.5290692
A13: W44X230 | B13: 44X230 | C13: 44 | D13: 27 | F13: 235 | G13: 230 - 15.75 | H13: 372 | I13: 529 | J13: 241 | K13: 235 | L13: 258 | M13: 229 | N13: 166 | O13: 192 - 11.5 | P13: 50 | Q13: 550 | R13: 210 | S13: 60 | T13: 31 - 8 | U13: 9 | V13: =IF($C13 = V$7,RIGHT($B13,3),"") ->  | X13: 230 | Y13: 67.8 | Z13: 42.9 | AA13: 15.8 | AB13: 0.71 | AC13: 1.22 | AD13: 2.01 | AE13: 6.45 | AF13: 54.8 | AG13: 38.908 | AH13: 20800 | AI13: 1100 | AJ13: 971 | AK13: 17.5 | AL13: 796 | AM13: 157 | AN13: 101 | AO13: 3.43 | AP13: 24.9 | AQ13: 346000 | AR13: 4.13 | AS13: 41.7 | AT13: 4.097856357 | AV13: N | AW13: S | AX13: =_xlfn.IFS($AE13<=$AX$5,"C",$AE13<=$AX$7,"N",TRUE,"S") -> C | AY13: =_xlfn.IFS($AF13<=$AY$5,"C",$AF13<=$AY$7,"N",TRUE,"S") -> C | AZ13: F2 | BA13: 12.11544969 | BB13: 36.21582909 | BC13: 0.0006149560269 | BD13: 3.781709151e-07 | BE13: 0.003626648002 | BF13: 0.06512759806 | BG13: 6672.9 | BH13: 108.5583948 | BI13: 408.8185818 | BJ13: 1.433112679 | BK13: 0.0006149560269 | BL13: 3.781709151e-07 | BM13: 0.003197621318 | BN13: 0.06174607149 | BO13: 6620.965057 | BP13: 108.5583948 | BQ13: 310.0417886
A14: W40X655 | B14: 40X655 | C14: 40 | D14: 24 | F14: 211 | H14: 362 - 16 | I14: 487 | J14: 221 | K14: 211 | L14: 235 | M14: 207 | N14: 147 | O14: 175 | P14: 45 | Q14: 500 - 17 | R14: 190 | S14: 54 | T14: 28 | U14: 8.5 - 4 | X14: 655 | Y14: 193 | Z14: 43.6 | AA14: 16.9 | AB14: 1.97 | AC14: 3.54 | AD14: 4.72 | AE14: 2.39 | AF14: 17.3 | AG14: 34.081 | AH14: 56500 | AI14: 3080 | AJ14: 2590 | AK14: 17.1 | AL14: 2870 | AM14: 542 | AN14: 340 | AO14: 3.86 | AP14: 589 | AQ14: 1150000 | AR14: 4.71 | AS14: 40.1 | AT14: 4.477784417 | AV14: N | AW14: N | AX14: =_xlfn.IFS($AE14<=$AX$5,"C",$AE14<=$AX$7,"N",TRUE,"S") -> C | AY14: =_xlfn.IFS($AF14<=$AY$5,"C",$AF14<=$AY$7,"N",TRUE,"S") -> C | AZ14: F2 | BA14: 13.63429616 | BB14: 61.14969378 | BC14: 0.00567115031 | BD14: 3.216194583e-05 | BE14: 0.003626648002 | BF14: 0.09642509171 | BG14: 7610.014286 | BH14: 118.623262 | BI14: 797.5565289 | BJ14: 1.122247351 | BK14: 0.00567115031 | BL14: 3.216194583e-05 | BM14: 0.006481400852 | BN14: 0.1102386101 | BO14: 7234.820251 | BP14: 118.623262 | BQ14: 338.786958
A15: W40X593 | B15: 40X593 | C15: 40 | D15: 21 | F15: 191 | H15: 324 | I15: 441 - 17 | J15: 201 - 15.75 | K15: 191 | L15: 217 | M15: 192 | N15: 132 - 12.5 | O15: 158 | P15: 40 | Q15: 455 | R15: 170 | S15: 49 - 10 | T15: 24 - 6.5 | X15: 593 | Y15: 174 | Z15: 43 | AA15: 16.7 | AB15: 1.79 | AC15: 3.23 | AD15: 4.41 | AE15: 2.58 | AF15: 19.1 | AG15: 34.189 | AH15: 50400 | AI15: 2760 | AJ15: 2340 | AK15: 17 | AL15: 2520 | AM15: 481 | AN15: 302 | AO15: 3.8 | AP15: 445 | AQ15: 997000 | AR15: 4.63 | AS15: 39.8 | AT15: 4.420978829 | AV15: N | AW15: N | AX15: =_xlfn.IFS($AE15<=$AX$5,"C",$AE15<=$AX$7,"N",TRUE,"S") -> C | AY15: =_xlfn.IFS($AF15<=$AY$5,"C",$AF15<=$AY$7,"N",TRUE,"S") -> C | AZ15: F2 | BA15: 13.42236409 | BB15: 57.15159037 | BC15: 0.004778164326 | BD15: 2.283085433e-05 | BE15: 0.003626648002 | BF15: 0.09167776354 | BG15: 7480.757143 | BH15: 117.1183963 | BI15: 731.754893 | BJ15: 1.134541629 | BK15: 0.004778164326 | BL15: 2.283085433e-05 | BM15: 0.00571642069 | BN15: 0.1024430818 | BO15: 7143.03865 | BP15: 117.1183963 | BQ15: 334.4890752
A16: W40X503 | B16: 40X503 | C16: 40 | D16: 18 | F16: 173 - 15 | H16: 297 | I16: 395 | J16: 169 | K16: 173 - 15 | L16: 194 | M16: 176 | N16: 122 | O16: 143 | P16: 36 - 7 | Q16: 426 | R16: 152 - 12.5 | S16: 45 | T16: 21 | X16: 503 | Y16: 148 | Z16: 42.1 | AA16: 16.4 | AB16: 1.54 | AC16: 2.76 | AD16: 3.94 | AE16: 2.98 | AF16: 22.3 | AG16: 34.342 | AH16: 41600 | AI16: 2320 | AJ16: 1980 | AK16: 16.8 | AL16: 2040 | AM16: 394 | AN16: 249 | AO16: 3.72 | AP16: 277 | AQ16: 789000 | AR16: 4.5 | AS16: 39.3 | AT16: 4.331293222 | AV16: N | AW16: N | AX16: =_xlfn.IFS($AE16<=$AX$5,"C",$AE16<=$AX$7,"N",TRUE,"S") -> C | AY16: =_xlfn.IFS($AF16<=$AY$5,"C",$AF16<=$AY$7,"N",TRUE,"S") -> C | AZ16: F2 | BA16: 13.139788 | BB16: 51.36320226 | BC16: 0.003559770735 | BD16: 1.267196769e-05 | BE16: 0.003626648002 | BF16: 0.08477274761 | BG16: 7270.714286 | BH16: 114.7424894 | BI16: 637.7577806 | BJ16: 1.168404913 | BK16: 0.003559770735 | BL16: 1.267196769e-05 | BM16: 0.004745374471 | BN16: 0.0911325694 | BO16: 6998.132334 | BP16: 114.7424894 | BQ16: 327.7035065
A17: W40X431 | B17: 40X431 | C17: 40 | D17: 16 | F17: 148 | H17: 277 | I17: 361 | J17: 152 | K17: 148 | L17: 178 | M17: 162 - 13 | N17: 111 | O17: 130 | P17: 31 | Q17: 398 | R17: 136 | S17: 39 | T17: 18 - 5 | X17: 431 | Y17: 127 | Z17: 41.3 | AA17: 16.2 | AB17: 1.34 | AC17: 2.36 | AD17: 3.54 | AE17: 3.44 | AF17: 25.5 | AG17: 34.17 | AH17: 34800 | AI17: 1960 | AJ17: 1690 | AK17: 16.6 | AL17: 1690 | AM17: 328 | AN17: 208 | AO17: 3.65 | AP17: 177 | AQ17: 638000 | AR17: 4.41 | AS17: 38.9 | AT17: 4.269777557 | AV17: N | AW17: N | AX17: =_xlfn.IFS($AE17<=$AX$5,"C",$AE17<=$AX$7,"N",TRUE,"S") -> C | AY17: =_xlfn.IFS($AF17<=$AY$5,"C",$AF17<=$AY$7,"N",TRUE,"S") -> C | AZ17: F2 | BA17: 12.89253393 | BB17: 47.20056281 | BC17: 0.002692383748 | BD17: 7.248930248e-06 | BE17: 0.003626648002 | BF17: 0.07949233768 | BG17: 7125.3 | BH17: 113.1128466 | BI17: 570.0154809 | BJ17: 1.197630257 | BK17: 0.002692383748 | BL17: 7.248930248e-06 | BM17: 0.004134675492 | BN17: 0.08262602036 | BO17: 6898.740596 | BP17: 113.1128466 | BQ17: 323.0492617
A18: W40X397 | B18: 40X397 | C18: 40 | D18: 14 | F18: 132 | H18: 249 | I18: 330 | J18: 141 | K18: 132 | L18: 161 | M18: 146 | N18: 101 - 12.25 | O18: 119 | P18: 26 - 5.5 | Q18: 370 - 16.5 | R18: 120 | S18: 33 - 8 | T18: 15 | X18: 397 | Y18: 117 | Z18: 41 | AA18: 16.1 | AB18: 1.22 | AC18: 2.2 | AD18: 3.38 | AE18: 3.66 | AF18: 28 | AG18: 34.16 | AH18: 32000 | AI18: 1800 | AJ18: 1560 | AK18: 16.6 | AL18: 1540 | AM18: 300 | AN18: 191 | AO18: 3.64 | AP18: 142 | AQ18: 579000 | AR18: 4.38 | AS18: 38.8 | AT18: 4.249633568 | AV18: N | AW18: N | AX18: =_xlfn.IFS($AE18<=$AX$5,"C",$AE18<=$AX$7,"N",TRUE,"S") -> C | AY18: =_xlfn.IFS($AF18<=$AY$5,"C",$AF18<=$AY$7,"N",TRUE,"S") -> C | AZ18: F2 | BA18: 12.85721192 | BB18: 45.57657416 | BC18: 0.002346021676 | BD18: 5.503817704e-06 | BE18: 0.003626648002 | BF18: 0.0772830491 | BG18: 7076.828571 | BH18: 112.579202 | BI18: 543.4271961 | BJ18: 1.176600791 | BK18: 0.002346021676 | BL18: 5.503817704e-06 | BM18: 0.003917962338 | BN18: 0.07914533476 | BO18: 6866.193665 | BP18: 112.579202 | BQ18: 321.5251774
A19: W40X372 | B19: 40X372 | C19: 40 | D19: 12 | F19: 124 | H19: 215 | I19: 302 | J19: 130 | K19: 124 | L19: 146 - 14 | M19: 131 | N19: 93 | O19: 106 | Q19: 342 | R19: 106 | S19: 30 | T19: 13 | X19: 372 | Y19: 110 | Z19: 40.6 | AA19: 16.1 | AB19: 1.16 | AC19: 2.05 | AD19: 3.23 | AE19: 3.93 | AF19: 29.5 | AG19: 34.22 | AH19: 29600 | AI19: 1680 | AJ19: 1460 | AK19: 16.5 | AL19: 1420 | AM19: 277 | AN19: 177 | AO19: 3.6 | AP19: 116 | AQ19: 528000 | AR19: 4.33 | AS19: 38.6 | AT19: 4.241926469 | AV19: N | AW19: N | AX19: =_xlfn.IFS($AE19<=$AX$5,"C",$AE19<=$AX$7,"N",TRUE,"S") -> C | AY19: =_xlfn.IFS($AF19<=$AY$5,"C",$AF19<=$AY$7,"N",TRUE,"S") -> C | AZ19: F2 | BA19: 12.71592388 | BB19: 43.95781742 | BC19: 0.002058343388 | BD19: 4.236777505e-06 | BE19: 0.003626648002 | BF19: 0.07539888189 | BG19: 6996.042857 | BH19: 112.3750293 | BI19: 522.4658436 | BJ19: 1.202702621 | BK19: 0.002058343388 | BL19: 4.236777505e-06 | BM19: 0.003752784124 | BN19: 0.07623075175 | BO19: 6853.741195 | BP19: 112.3750293 | BQ19: 320.9420621
A20: W40X362 | B20: 40X362 | C20: 40 | D20: 10 | F20: 116 | H20: 199 - 15.75 | I20: 282 | J20: 118 - 11.5 | K20: 116 | L20: 129 | M20: 117 | N20: 83 | O20: 97 | Q20: 311 | R20: 96 | S20: 26 | T20: 10 - 4 | X20: 362 | Y20: 106 | Z20: 40.6 | AA20: 16 | AB20: 1.12 | AC20: 2.01 | AD20: 3.19 | AE20: 3.99 | AF20: 30.5 | AG20: 34.16 | AH20: 28900 | AI20: 1640 | AJ20: 1420 | AK20: 16.5 | AL20: 1380 | AM20: 270 | AN20: 173 | AO20: 3.6 | AP20: 109 | AQ20: 513000 | AR20: 4.33 | AS20: 38.6 | AT20: 4.21940349 | AV20: N | AW20: N | AX20: =_xlfn.IFS($AE20<=$AX$5,"C",$AE20<=$AX$7,"N",TRUE,"S") -> C | AY20: =_xlfn.IFS($AF20<=$AY$5,"C",$AF20<=$AY$7,"N",TRUE,"S") -> C | AZ20: F2 | BA20: 12.71592388 | BB20: 43.68740922 | BC20: 0.001988615632 | BD20: 3.95459213e-06 | BE20: 0.003626648002 | BF20: 0.07493506278 | BG20: 6996.042857 | BH20: 111.7783616 | BI20: 514.8617598 | BJ20: 1.189651741 | BK20: 0.001988615632 | BL20: 3.95459213e-06 | BM20: 0.00371499708 | BN20: 0.07552226633 | BO20: 6817.350496 | BP20: 111.7783616 | BQ20: 319.2379846
A21: W40X324 | B21: 40X324 | C21: 40 | D21: 8 | F21: 108 | H21: 392 | I21: 262 | K21: 108 | L21: 114 | M21: 104 - 12.75 | N21: 73 | O21: 86 | Q21: 283 | R21: 87 | S21: 22 - 5.75 | X21: 324 | Y21: 95.3 | Z21: 40.2 | AA21: 15.9 | AB21: 1 | AC21: 1.81 | AD21: 2.99 | AE21: 4.4 | AF21: 34.2 | AG21: 34.2 | AH21: 25600 | AI21: 1460 | AJ21: 1280 | AK21: 16.4 | AL21: 1220 | AM21: 239 | AN21: 153 | AO21: 3.58 | AP21: 79.4 | AQ21: 448000 | AR21: 4.27 | AS21: 38.4 | AT21: 4.193407042 | AV21: N | AW21: N | AX21: =_xlfn.IFS($AE21<=$AX$5,"C",$AE21<=$AX$7,"N",TRUE,"S") -> C | AY21: =_xlfn.IFS($AF21<=$AY$5,"C",$AF21<=$AY$7,"N",TRUE,"S") -> C | AZ21: F2 | BA21: 12.64527985 | BB21: 41.62570211 | BC21: 0.001615397135 | BD21: 2.609507905e-06 | BE21: 0.003626648002 | BF21: 0.07240196915 | BG21: 6899.1 | BH21: 111.0896765 | BI21: 485.9733479 | BJ21: 1.188366517 | BK21: 0.001615397135 | BL21: 2.609507905e-06 | BM21: 0.003529322751 | BN21: 0.07172670274 | BO21: 6775.347664 | BP21: 111.0896765 | BQ21: 317.2711062
A22: W40X297 | B22: 40X297 | C22: 40 | D22: 6 | F22: 99 | H22: 331 | I22: 247 | K22: 99 | L22: 102 | M22: 103 | N22: 68 | O22: 76 - 11 | Q22: 257 - 16 | R22: 79 | S22: 19 | X22: 297 | Y22: 87.3 | Z22: 39.8 | AA22: 15.8 | AB22: 0.93 | AC22: 1.65 | AD22: 2.83 | AE22: 4.8 | AF22: 36.8 | AG22: 34.224 | AH22: 23200 | AI22: 1330 | AJ22: 1170 | AK22: 16.3 | AL22: 1090 | AM22: 215 | AN22: 138 | AO22: 3.54 | AP22: 61.2 | AQ22: 399000 | AR22: 4.22 | AS22: 38.2 | AT22: 4.157641609 | AV22: N | AW22: S | AX22: =_xlfn.IFS($AE22<=$AX$5,"C",$AE22<=$AX$7,"N",TRUE,"S") -> C | AY22: =_xlfn.IFS($AF22<=$AY$5,"C",$AF22<=$AY$7,"N",TRUE,"S") -> C | AZ22: F2 | BA22: 12.50399181 | BB22: 40.16106458 | BC22: 0.001369311317 | BD22: 1.875013483e-06 | BE22: 0.003626648002 | BF22: 0.07068210041 | BG22: 6818.314286 | BH22: 110.1421962 | BI22: 465.0666532 | BJ22: 1.220879171 | BK22: 0.001369311317 | BL22: 1.875013483e-06 | BM22: 0.00342368583 | BN22: 0.06923147511 | BO22: 6717.560942 | BP22: 110.1421962 | BQ22: 314.5651112
A23: W40X277 | B23: 40X277 | C23: 40 | D23: 5 | F23: 90 - 10.375 | H23: 327 | I23: 231 - 16.5 | K23: 90 - 10.375 | L23: 94 | M23: 94 | N23: 62 | O23: 71 | Q23: 233 | R23: 72 | S23: 17 | X23: 277 | Y23: 81.5 | Z23: 39.7 | AA23: 15.8 | AB23: 0.83 | AC23: 1.58 | AD23: 2.76 | AE23: 5.03 | AF23: 41.2 | AG23: 34.196 | AH23: 21900 | AI23: 1250 | AJ23: 1100 | AK23: 16.4 | AL23: 1040 | AM23: 204 | AN23: 132 | AO23: 3.58 | AP23: 51.5 | AQ23: 379000 | AR23: 4.25 | AS23: 38.1 | AT23: 4.182018334 | AV23: N | AW23: S | AX23: =_xlfn.IFS($AE23<=$AX$5,"C",$AE23<=$AX$7,"N",TRUE,"S") -> C | AY23: =_xlfn.IFS($AF23<=$AY$5,"C",$AF23<=$AY$7,"N",TRUE,"S") -> C | AZ23: F2 | BA23: 12.64527985 | BB23: 39.87383076 | BC23: 0.00122882367 | BD23: 1.510007611e-06 | BE23: 0.003626648002 | BF23: 0.06968121462 | BG23: 6866.785714 | BH23: 110.7879725 | BI23: 458.2177476 | BJ23: 1.1369444 | BK23: 0.00122882367 | BL23: 1.510007611e-06 | BM23: 0.003369958277 | BN23: 0.06781431963 | BO23: 6756.946765 | BP23: 110.7879725 | BQ23: 316.4094422
A24: W40X249 | B24: 40X249 | C24: 40 | D24: 4 | H24: 294 | I24: 256 | L24: 84 - 10 | M24: 84 | N24: 55 | O24: 65 | Q24: 211 | R24: 65 - 12 | S24: 15 | X24: 249 | Y24: 73.5 | Z24: 39.4 | AA24: 15.8 | AB24: 0.75 | AC24: 1.42 | AD24: 2.6 | AE24: 5.55 | AF24: 45.6 | AG24: 34.2 | AH24: 19600 | AI24: 1120 | AJ24: 993 | AK24: 16.3 | AL24: 926 | AM24: 182 | AN24: 118 | AO24: 3.55 | AP24: 38.1 | AQ24: 334000 | AR24: 4.21 | AS24: 38 | AT24: 4.180171558 | AV24: N | AW24: S | AX24: =_xlfn.IFS($AE24<=$AX$5,"C",$AE24<=$AX$7,"N",TRUE,"S") -> C | AY24: =_xlfn.IFS($AF24<=$AY$5,"C",$AF24<=$AY$7,"N",TRUE,"S") -> C | AZ24: F2 | BA24: 12.53931382 | BB24: 38.59698697 | BC24: 0.001009699475 | BD24: 1.01949303e-06 | BE24: 0.003626648002 | BF24: 0.06809072974 | BG24: 6802.157143 | BH24: 110.7390486 | BI24: 443.1998066 | BJ24: 1.143251917 | BK24: 0.001009699475 | BL24: 1.01949303e-06 | BM24: 0.003296377437 | BN24: 0.06562070491 | BO24: 6753.962902 | BP24: 110.7390486 | BQ24: 316.269716
A25: W40X215 | B25: 40X215 | C25: 40 | H25: 278 - 12 | I25: 232 | M25: 76 | N25: 48 - 8.125 | O25: 60 | Q25: 193 | R25: 58 | S25: 12 - 4 | X25: 215 | Y25: 63.5 | Z25: 39 | AA25: 15.8 | AB25: 0.65 | AC25: 1.22 | AD25: 2.4 | AE25: 6.45 | AF25: 52.6 | AG25: 34.19 | AH25: 16700 | AI25: 964 | AJ25: 859 | AK25: 16.2 | AL25: 803 | AM25: 156 | AN25: 101 | AO25: 3.54 | AP25: 24.8 | AQ25: 284000 | AR25: 4.19 | AS25: 37.8 | AT25: 4.177348401 | AV25: N | AW25: S | AX25: =_xlfn.IFS($AE25<=$AX$5,"C",$AE25<=$AX$7,"N",TRUE,"S") -> C | AY25: =_xlfn.IFS($AF25<=$AY$5,"C",$AF25<=$AY$7,"N",TRUE,"S") -> C | AZ25: F2 | BA25: 12.50399181 | BB25: 37.38097592 | BC25: 0.0007637772481 | BD25: 5.833556847e-07 | BE25: 0.003626648002 | BF25: 0.0662602841 | BG25: 6769.842857 | BH25: 110.6642589 | BI25: 426.5132151 | BJ25: 1.152910355 | BK25: 0.0007637772481 | BL25: 5.833556847e-07 | BM25: 0.003229545922 | BN25: 0.06319274618 | BO25: 6749.401488 | BP25: 110.6642589 | BQ25: 316.0561174
A26: W40X199 | B26: 40X199 | C26: 40 | H26: 264 | I26: 210 | M26: 68 - 9 | N26: 57 | O26: 55 | Q26: 176 | R26: 53 - 10 | X26: 199 | Y26: 58.8 | Z26: 38.7 | AA26: 15.8 | AB26: 0.65 | AC26: 1.07 | AD26: 2.25 | AE26: 7.39 | AF26: 52.6 | AG26: 34.19 | AH26: 14900 | AI26: 869 | AJ26: 770 | AK26: 16 | AL26: 695 | AM26: 137 | AN26: 88.2 | AO26: 3.45 | AP26: 18.3 | AQ26: 246000 | AR26: 4.12 | AS26: 37.6 | AT26: 4.130938966 | AV26: N | AW26: S | AX26: =_xlfn.IFS($AE26<=$AX$5,"C",$AE26<=$AX$7,"N",TRUE,"S") -> C | AY26: =_xlfn.IFS($AF26<=$AY$5,"C",$AF26<=$AY$7,"N",TRUE,"S") -> C | AZ26: F2 | BA26: 12.18609371 | BB26: 36.20099617 | BC26: 0.0006320806853 | BD26: 3.995259927e-07 | BE26: 0.003626648002 | BF26: 0.06525893569 | BG26: 6656.742857 | BH26: 109.434803 | BI26: 413.2234784 | BJ26: 1.314533302 | BK26: 0.0006320806853 | BL26: 3.995259927e-07 | BM26: 0.003200958789 | BN26: 0.06191154557 | BO26: 6674.4171 | BP26: 109.434803 | BQ26: 312.5448024
A27: W40X392 | B27: 40X392 | C27: 40 | H27: 235 | I27: 194 | M27: 62 | N27: 50 | O27: 50 - 7.5 | Q27: 159 | R27: 50 | X27: 392 | Y27: 116 | Z27: 41.6 | AA27: 12.4 | AB27: 1.42 | AC27: 2.52 | AD27: 3.7 | AE27: 2.45 | AF27: 24.1 | AG27: 34.222 | AH27: 29900 | AI27: 1710 | AJ27: 1440 | AK27: 16.1 | AL27: 803 | AM27: 212 | AN27: 130 | AO27: 2.64 | AP27: 172 | AQ27: 306000 | AR27: 3.3 | AS27: 39.1 | AT27: 3.189959887 | AV27: N | AW27: N | AX27: =_xlfn.IFS($AE27<=$AX$5,"C",$AE27<=$AX$7,"N",TRUE,"S") -> C | AY27: =_xlfn.IFS($AF27<=$AY$5,"C",$AF27<=$AY$7,"N",TRUE,"S") -> C | AZ27: F2 | BA27: 9.325010842 | BB27: 36.31901167 | BC27: 0.003054845126 | BD27: 9.332078747e-06 | BE27: 0.003626648002 | BF27: 0.08174040083 | BG27: 5331.857143 | BH27: 84.50684809 | BI27: 444.3924887 | BJ27: 1.555147209 | BK27: 0.003054845126 | BL27: 9.332078747e-06 | BM27: 0.004379348116 | BN27: 0.0862217678 | BO27: 5154.06376 | BP27: 84.50684809 | BQ27: 241.3507899
A28: W40X331 | B28: 40X331 | C28: 40 | H28: 211 | I28: 182 | M28: 55 - 7 | N28: 44 - 6.5 | O28: 46 | Q28: 145 - 15.5 | R28: 45 | X28: 331 | Y28: 97.7 | Z28: 40.8 | AA28: 12.2 | AB28: 1.22 | AC28: 2.13 | AD28: 3.31 | AE28: 2.86 | AF28: 28 | AG28: 34.16 | AH28: 24700 | AI28: 1430 | AJ28: 1210 | AK28: 15.9 | AL28: 644 | AM28: 172 | AN28: 106 | AO28: 2.57 | AP28: 105 | AQ28: 241000 | AR28: 3.21 | AS28: 38.7 | AT28: 3.128461037 | AV28: N | AW28: N | AX28: =_xlfn.IFS($AE28<=$AX$5,"C",$AE28<=$AX$7,"N",TRUE,"S") -> C | AY28: =_xlfn.IFS($AF28<=$AY$5,"C",$AF28<=$AY$7,"N",TRUE,"S") -> C | AZ28: F2 | BA28: 9.077756766 | BB28: 33.11069816 | BC28: 0.002242296111 | BD28: 5.02789185e-06 | BE28: 0.003626648002 | BF28: 0.07660903415 | BG28: 5186.442857 | BH28: 82.87765082 | BI28: 394.7536851 | BJ28: 1.603755869 | BK28: 0.002242296111 | BL28: 5.02789185e-06 | BM28: 0.003856747727 | BN28: 0.07809637532 | BO28: 5054.69919 | BP28: 82.87765082 | BQ28: 236.6978173
A29: W40X327 | B29: 40X327 | C29: 40 | H29: 183 | I29: 170 | J29: =IF($C29 = J$7,RIGHT($B29,3),"") ->  | O29: 40 | Q29: 132 | R29: 40 - 8 | X29: 327 | Y29: 95.9 | Z29: 40.8 | AA29: 12.1 | AB29: 1.18 | AC29: 2.13 | AD29: 3.31 | AE29: 2.85 | AF29: 29 | AG29: 34.22 | AH29: 24500 | AI29: 1410 | AJ29: 1200 | AK29: 16 | AL29: 640 | AM29: 170 | AN29: 105 | AO29: 2.58 | AP29: 103 | AQ29: 239000 | AR29: 3.21 | AS29: 38.7 | AT29: 3.11039794 | AV29: N | AW29: N | AX29: =_xlfn.IFS($AE29<=$AX$5,"C",$AE29<=$AX$7,"N",TRUE,"S") -> C | AY29: =_xlfn.IFS($AF29<=$AY$5,"C",$AF29<=$AY$7,"N",TRUE,"S") -> C | AZ29: F2 | BA29: 9.113078777 | BB29: 33.04185305 | BC29: 0.00221791559 | BD29: 4.919149564e-06 | BE29: 0.003626648002 | BF29: 0.07644974553 | BG29: 5186.442857 | BH29: 82.39913214 | BI29: 391.2336253 | BJ29: 1.566740387 | BK29: 0.00221791559 | BL29: 4.919149564e-06 | BM29: 0.0038426242 | BN29: 0.07784946878 | BO29: 5025.514386 | BP29: 82.39913214 | BQ29: 235.3311723
A30: W40X294 | B30: 40X294 | C30: 40 | H30: 167 | I30: 160 | O30: 35 - 6 | Q30: 120 | R30: 35 | X30: 294 | Y30: 86.2 | Z30: 40.4 | AA30: 12 | AB30: 1.06 | AC30: 1.93 | AD30: 3.11 | AE30: 3.11 | AF30: 32.2 | AG30: 34.132 | AH30: 21900 | AI30: 1270 | AJ30: 1080 | AK30: 15.9 | AL30: 562 | AM30: 150 | AN30: 93.5 | AO30: 2.55 | AP30: 76.6 | AQ30: 208000 | AR30: 3.16 | AS30: 38.5 | AT30: 3.085623634 | AV30: N | AW30: N | AX30: =_xlfn.IFS($AE30<=$AX$5,"C",$AE30<=$AX$7,"N",TRUE,"S") -> C | AY30: =_xlfn.IFS($AF30<=$AY$5,"C",$AF30<=$AY$7,"N",TRUE,"S") -> C | AZ30: F2 | BA30: 9.007112745 | BB30: 31.46440998 | BC30: 0.001842231842 | BD30: 3.393818161e-06 | BE30: 0.003626648002 | BF30: 0.07395187519 | BG30: 5105.657143 | BH30: 81.7428234 | BI30: 369.0934223 | BJ30: 1.562172712 | BK30: 0.001842231842 | BL30: 3.393818161e-06 | BM30: 0.003638740076 | BN30: 0.07403358642 | BO30: 4985.486185 | BP30: 81.7428234 | BQ30: 233.4567605
A31: W40X278 | B31: 40X278 | C31: 40 | H31: 149 - 11.75 | I31: 150 | Q31: 109 | R31: 30 | X31: 278 | Y31: 82.3 | Z31: 40.2 | AA31: 12 | AB31: 1.03 | AC31: 1.81 | AD31: 2.99 | AE31: 3.31 | AF31: 33.3 | AG31: 34.299 | AH31: 20500 | AI31: 1190 | AJ31: 1020 | AK31: 15.8 | AL31: 521 | AM31: 140 | AN31: 87.1 | AO31: 2.52 | AP31: 65 | AQ31: 192000 | AR31: 3.13 | AS31: 38.4 | AT31: 3.072579295 | AV31: N | AW31: N | AX31: =_xlfn.IFS($AE31<=$AX$5,"C",$AE31<=$AX$7,"N",TRUE,"S") -> C | AY31: =_xlfn.IFS($AF31<=$AY$5,"C",$AF31<=$AY$7,"N",TRUE,"S") -> C | AZ31: F2 | BA31: 8.901146713 | BB31: 30.64065564 | BC31: 0.001659517974 | BD31: 2.753999906e-06 | BE31: 0.003626648002 | BF31: 0.07270602434 | BG31: 5057.185714 | BH31: 81.3972592 | BI31: 358.3070429 | BJ31: 1.626517956 | BK31: 0.001659517974 | BL31: 2.753999906e-06 | BM31: 0.003549733945 | BN31: 0.07217514752 | BO31: 4964.410261 | BP31: 81.3972592 | BQ31: 232.4698323
A32: W40X264 | B32: 40X264 | C32: 40 | I32: 135 - 12 | Q32: 99 | R32: 26 - 6.5 | X32: 264 | Y32: 77.4 | Z32: 40 | AA32: 11.9 | AB32: 0.96 | AC32: 1.73 | AD32: 2.91 | AE32: 3.45 | AF32: 35.6 | AG32: 34.176 | AH32: 19400 | AI32: 1130 | AJ32: 971 | AK32: 15.8 | AL32: 493 | AM32: 132 | AN32: 82.6 | AO32: 2.52 | AP32: 56.1 | AQ32: 181000 | AR32: 3.12 | AS32: 38.3 | AT32: 3.053556769 | AV32: N | AW32: N | AX32: =_xlfn.IFS($AE32<=$AX$5,"C",$AE32<=$AX$7,"N",TRUE,"S") -> C | AY32: =_xlfn.IFS($AF32<=$AY$5,"C",$AF32<=$AY$7,"N",TRUE,"S") -> C | AZ32: F2 | BA32: 8.901146713 | BB32: 30.10331536 | BC32: 0.001508498412 | BD32: 2.27556746e-06 | BE32: 0.003626648002 | BF32: 0.0716599359 | BG32: 5041.028571 | BH32: 80.8933238 | BI32: 348.5211341 | BJ32: 1.593673678 | BK32: 0.001508498412 | BL32: 2.27556746e-06 | BM32: 0.003481691922 | BN32: 0.07064127925 | BO32: 4933.675294 | BP32: 80.8933238 | BQ32: 231.0305974
A33: W40X235 | B33: 40X235 | C33: 40 | Q33: 90 - 14.5 | R33: 22 | X33: 235 | Y33: 69.1 | Z33: 39.7 | AA33: 11.9 | AB33: 0.83 | AC33: 1.58 | AD33: 2.76 | AE33: 3.77 | AF33: 41.2 | AG33: 34.196 | AH33: 17400 | AI33: 1010 | AJ33: 875 | AK33: 15.9 | AL33: 444 | AM33: 118 | AN33: 74.6 | AO33: 2.54 | AP33: 41.3 | AQ33: 161000 | AR33: 3.11 | AS33: 38.1 | AT33: 3.070611139 | AV33: N | AW33: S | AX33: =_xlfn.IFS($AE33<=$AX$5,"C",$AE33<=$AX$7,"N",TRUE,"S") -> C | AY33: =_xlfn.IFS($AF33<=$AY$5,"C",$AF33<=$AY$7,"N",TRUE,"S") -> C | AZ33: F2 | BA33: 8.971790734 | BB33: 29.20835783 | BC33: 0.001238845144 | BD33: 1.534737292e-06 | BE33: 0.003626648002 | BF33: 0.069753087 | BG33: 5024.871429 | BH33: 81.34511977 | BI33: 336.9428071 | BJ33: 1.50955643 | BK33: 0.001238845144 | BL33: 1.534737292e-06 | BM33: 0.003373625419 | BN33: 0.06791517182 | BO33: 4961.230283 | BP33: 81.34511977 | BQ33: 232.3209226
A34: W40X211 | B34: 40X211 | C34: 40 | Q34: 82 | R34: 19 | X34: 211 | Y34: 62.1 | Z34: 39.4 | AA34: 11.8 | AB34: 0.75 | AC34: 1.42 | AD34: 2.6 | AE34: 4.17 | AF34: 45.6 | AG34: 34.2 | AH34: 15500 | AI34: 906 | AJ34: 786 | AK34: 15.8 | AL34: 390 | AM34: 105 | AN34: 66.1 | AO34: 2.51 | AP34: 30.4 | AQ34: 141000 | AR34: 3.07 | AS34: 38 | AT34: 3.040511136 | AV34: N | AW34: S | AX34: =_xlfn.IFS($AE34<=$AX$5,"C",$AE34<=$AX$7,"N",TRUE,"S") -> C | AY34: =_xlfn.IFS($AF34<=$AY$5,"C",$AF34<=$AY$7,"N",TRUE,"S") -> C | AZ34: F2 | BA34: 8.865824702 | BB34: 28.17015873 | BC34: 0.001017811705 | BD34: 1.035940666e-06 | BE34: 0.003626648002 | BF34: 0.06815027297 | BG34: 4960.242857 | BH34: 80.54772532 | BI34: 322.7648569 | BJ34: 1.530794939 | BK34: 0.001017811705 | BL34: 1.035940666e-06 | BM34: 0.003298871298 | BN34: 0.06570146881 | BO34: 4912.597279 | BP34: 80.54772532 | BQ34: 230.0435713
A35: W40X183 | B35: 40X183 | C35: 40 | Q35: 74 | R35: 16 | X35: 183 | Y35: 53.3 | Z35: 39 | AA35: 11.8 | AB35: 0.65 | AC35: 1.2 | AD35: 2.38 | AE35: 4.92 | AF35: 52.6 | AG35: 34.19 | AH35: 13200 | AI35: 774 | AJ35: 675 | AK35: 15.7 | AL35: 331 | AM35: 88.3 | AN35: 56 | AO35: 2.49 | AP35: 19.3 | AQ35: 118000 | AR35: 3.04 | AS35: 37.8 | AT35: 3.032736435 | AV35: N | AW35: S | AX35: =_xlfn.IFS($AE35<=$AX$5,"C",$AE35<=$AX$7,"N",TRUE,"S") -> C | AY35: =_xlfn.IFS($AF35<=$AY$5,"C",$AF35<=$AY$7,"N",TRUE,"S") -> C | AZ35: F2 | BA35: 8.79518068 | BB35: 27.09854029 | BC35: 0.0007564177935 | BD35: 5.721678783e-07 | BE35: 0.003626648002 | BF35: 0.06620472638 | BG35: 4911.771429 | BH35: 80.34176176 | BI35: 309.2940013 | BJ35: 1.569456215 | BK35: 0.0007564177935 | BL35: 5.721678783e-07 | BM35: 0.003227813355 | BN35: 0.06312076638 | BO35: 4900.035583 | BP35: 80.34176176 | BQ35: 229.4553412
A36: W40X167 | B36: 40X167 | C36: 40 | Q36: 68 | R36: 14 - 4 | X36: 167 | Y36: 49.3 | Z36: 38.6 | AA36: 11.8 | AB36: 0.65 | AC36: 1.03 | AD36: 2.21 | AE36: 5.76 | AF36: 52.6 | AG36: 34.19 | AH36: 11600 | AI36: 693 | AJ36: 600 | AK36: 15.3 | AL36: 283 | AM36: 76 | AN36: 47.9 | AO36: 2.4 | AP36: 14 | AQ36: 99700 | AR36: 2.98 | AS36: 37.6 | AT36: 2.982139359 | AV36: N | AW36: S | AX36: =_xlfn.IFS($AE36<=$AX$5,"C",$AE36<=$AX$7,"N",TRUE,"S") -> C | AY36: =_xlfn.IFS($AF36<=$AY$5,"C",$AF36<=$AY$7,"N",TRUE,"S") -> C | AZ36: F2 | BA36: 8.477282583 | BB36: 26.14879771 | BC36: 0.0006205673759 | BD36: 3.85103868e-07 | BE36: 0.003626648002 | BF36: 0.06517066347 | BG36: 4814.828571 | BH36: 79.00136889 | BI36: 297.7712936 | BJ36: 1.828492677 | BK36: 0.0006205673759 | BL36: 3.85103868e-07 | BM36: 0.003198705214 | BN36: 0.06180026367 | BO36: 4818.285164 | BP36: 79.00136889 | BQ36: 225.6271914
A37: W40X149 | B37: 40X149 | C37: 40 | Q37: 61 - 10 | X37: 149 | Y37: 43.8 | Z37: 38.2 | AA37: 11.8 | AB37: 0.63 | AC37: 0.83 | AD37: 2.01 | AE37: 7.11 | AF37: 54.3 | AG37: 34.209 | AH37: 9800 | AI37: 598 | AJ37: 513 | AK37: 15 | AL37: 229 | AM37: 62.2 | AN37: 38.8 | AO37: 2.29 | AP37: 9.36 | AQ37: 80000 | AR37: 2.89 | AS37: 37.4 | AT37: 2.913713968 | AV37: N | AW37: S | AX37: =_xlfn.IFS($AE37<=$AX$5,"C",$AE37<=$AX$7,"N",TRUE,"S") -> C | AY37: =_xlfn.IFS($AF37<=$AY$5,"C",$AF37<=$AY$7,"N",TRUE,"S") -> C | AZ37: F2 | BA37: 8.088740465 | BB37: 24.95971507 | BC37: 0.0004878506426 | BD37: 2.379982495e-07 | BE37: 0.003626648002 | BF37: 0.06414435785 | BG37: 4669.414286 | BH37: 77.18867712 | BI37: 284.9431872 | BJ37: 2.200497243 | BK37: 0.0004878506426 | BL37: 2.379982495e-07 | BM37: 0.003175627407 | BN37: 0.06052667222 | BO37: 4707.729283 | BP37: 77.18867712 | BQ37: 220.4501601
A38: W36X925 | B38: 36X925 | C38: 36 | Q38: 53 | X38: 925 | Y38: 272 | Z38: 43.1 | AA38: 18.6 | AB38: 3.02 | AC38: 4.53 | AD38: 5.28 | AE38: 2.05 | AF38: 10.8 | AG38: 32.616 | AH38: 73000 | AI38: 4130 | AJ38: 3390 | AK38: 16.4 | AL38: 4940 | AM38: 862 | AN38: 531 | AO38: 4.26 | AP38: 1430 | AQ38: 1840000 | AR38: 5.3 | AS38: 38.6 | AT38: 4.912105424 | AV38: N | AW38: N | AX38: =_xlfn.IFS($AE38<=$AX$5,"C",$AE38<=$AX$7,"N",TRUE,"S") -> C | AY38: =_xlfn.IFS($AF38<=$AY$5,"C",$AF38<=$AY$7,"N",TRUE,"S") -> C | AZ38: F2 | BA38: 15.04717659 | BB38: 86.0920751 | BC38: 0.01092821007 | BD38: 0.0001194257753 | BE38: 0.003626648002 | BF38: 0.1206435165 | BG38: 8563.285714 | BH38: 130.1290805 | BI38: 1185.128146 | BJ38: 1.169032258 | BK38: 0.01092821007 | BL38: 0.0001194257753 | BM38: 0.01136980151 | BN38: 0.1493251874 | BO38: 7936.558907 | BP38: 130.1290805 | BQ38: 371.6474709
A39: W36X853 | B39: 36X853 | C39: 36 | Q39: 48 | X39: 853 | Y39: 251 | Z39: 43.1 | AA39: 18.2 | AB39: 2.52 | AC39: 4.53 | AD39: 5.28 | AE39: 2.01 | AF39: 12.9 | AG39: 32.508 | AH39: 70000 | AI39: 3920 | AJ39: 3250 | AK39: 16.7 | AL39: 4600 | AM39: 805 | AN39: 505 | AO39: 4.28 | AP39: 1240 | AQ39: 1710000 | AR39: 5.22 | AS39: 38.6 | AT39: 4.866372086 | AV39: N | AW39: N | AX39: =_xlfn.IFS($AE39<=$AX$5,"C",$AE39<=$AX$7,"N",TRUE,"S") -> C | AY39: =_xlfn.IFS($AF39<=$AY$5,"C",$AF39<=$AY$7,"N",TRUE,"S") -> C | AZ39: F2 | BA39: 15.11782061 | BB39: 81.69558728 | BC39: 0.009884416102 | BD39: 9.770168168e-05 | BE39: 0.003626648002 | BF39: 0.116237103 | BG39: 8434.028571 | BH39: 128.9175354 | BI39: 1119.014284 | BJ39: 0.9936220071 | BK39: 0.009884416102 | BL39: 9.770168168e-05 | BM39: 0.0103705493 | BN39: 0.1423199403 | BO39: 7862.666898 | BP39: 128.9175354 | BQ39: 368.1873091
A40: W36X802 | B40: 36X802 | C40: 36 | Q40: 43 - 8 | X40: 802 | Y40: 236 | Z40: 42.6 | AA40: 18 | AB40: 2.38 | AC40: 4.29 | AD40: 5.04 | AE40: 2.1 | AF40: 13.7 | AG40: 32.606 | AH40: 64800 | AI40: 3660 | AJ40: 3040 | AK40: 16.6 | AL40: 4210 | AM40: 744 | AN40: 468 | AO40: 4.22 | AP40: 1050 | AQ40: 1540000 | AR40: 5.15 | AS40: 38.3 | AT40: =$AA40/(SQRT(12*(1+$BJ40/6))) -> 4.809002147 | AV40: =IF($AE40<=$AV$7,"N","S") -> N | AW40: =IF($AF40<=$AW$7,"N","S") -> N | AX40: =_xlfn.IFS($AE40<=$AX$5,"C",$AE40<=$AX$7,"N",TRUE,"S") -> C | AY40: =_xlfn.IFS($AF40<=$AY$5,"C",$AF40<=$AY$7,"N",TRUE,"S") -> C | AZ40: F2 | BA40: 14.90588854 | BB40: 77.97337145 | BC40: 0.009018139343 | BD40: 8.132683721e-05 | BE40: =SQRT($BD$8+$BC$5) -> 0.003626648002 | BF40: 0.1124490433 | BG40: 8320.928571 | BH40: 127.3977192 | BI40: 1058.731755 | BJ40: 1.004950531 | BK40: 0.009018139343 | BL40: 8.132683721e-05 | BM40: 0.009548478852 | BN40: 0.1362593784 | BO40: =1.95*$AT40*E/$BJ$5 -> 7769.973469 | BP40: 127.3977192 | BQ40: =pi*$AT40*SQRT(E/Fy) -> 363.8467279
A41: W36X723 | B41: 36X723 | C41: 36 | Q41: 38 | X41: 723 | Y41: 213 | Z41: 41.8 | AA41: 17.8 | AB41: 2.17 | AC41: 3.9 | AD41: 4.65 | AE41: 2.28 | AF41: 15 | AG41: 32.55 | AH41: 57300 | AI41: 3270 | AJ41: 2740 | AK41: 16.4 | AL41: 3700 | AM41: 658 | AN41: 416 | AO41: 4.17 | AP41: 785 | AQ41: 1330000 | AR41: 5.06 | AS41: 37.9 | AT41: 4.751321253 | AV41: N | AW41: N | AX41: =_xlfn.IFS($AE41<=$AX$5,"C",$AE41<=$AX$7,"N",TRUE,"S") -> C | AY41: =_xlfn.IFS($AF41<=$AY$5,"C",$AF41<=$AY$7,"N",TRUE,"S") -> C | AZ41: F2 | BA41: 14.72927849 | BB41: 72.0559188 | BC41: 0.007559270458 | BD41: 5.714256986e-05 | BE41: 0.003626648002 | BF41: 0.1057635025 | BG41: 8175.514286 | BH41: 125.8696653 | BI41: 963.2432658 | BJ41: 1.017480553 | BK41: 0.007559270458 | BL41: 5.714256986e-05 | BM41: 0.008184691872 | BN41: 0.125474947 | BO41: 7676.777625 | BP41: 125.8696653 | BQ41: 359.48262
A42: W36X652 | B42: 36X652 | C42: 36 | Q42: 34 | X42: 652 | Y42: 192 | Z42: 41.1 | AA42: 17.6 | AB42: 1.97 | AC42: 3.54 | AD42: 4.49 | AE42: 2.48 | AF42: 16.3 | AG42: 32.111 | AH42: 50600 | AI42: 2910 | AJ42: 2460 | AK42: 16.2 | AL42: 3230 | AM42: 581 | AN42: 367 | AO42: 4.1 | AP42: 593 | AQ42: 1130000 | AR42: 4.96 | AS42: 37.6 | AT42: 4.698658064 | AV42: N | AW42: N | AX42: =_xlfn.IFS($AE42<=$AX$5,"C",$AE42<=$AX$7,"N",TRUE,"S") -> C | AY42: =_xlfn.IFS($AF42<=$AY$5,"C",$AF42<=$AY$7,"N",TRUE,"S") -> C | AZ42: F2 | BA42: 14.48202441 | BB42: 66.90874455 | BC42: 0.006411088047 | BD42: 4.110204995e-05 | BE42: 0.003626648002 | BF42: 0.1001885026 | BG42: 8013.942857 | BH42: 124.474538 | BI42: 883.6713271 | BJ42: 1.015322772 | BK42: 0.006411088047 | BL42: 4.110204995e-05 | BM42: 0.007137833083 | BN42: 0.116399833 | BO42: 7591.688958 | BP42: 124.474538 | BQ42: 355.498149
A43: W36X529 | B43: 36X529 | C43: 36 | Q43: 30 - 6.75 | X43: 529 | Y43: 156 | Z43: 39.8 | AA43: 17.2 | AB43: 1.61 | AC43: 2.91 | AD43: 3.86 | AE43: 2.96 | AF43: 19.9 | AG43: 32.039 | AH43: 39600 | AI43: 2330 | AJ43: 1990 | AK43: 16 | AL43: 2490 | AM43: 454 | AN43: 289 | AO43: 4 | AP43: 327 | AQ43: 846000 | AR43: 4.8 | AS43: 36.9 | AT43: 4.586883909 | AV43: N | AW43: N | AX43: =_xlfn.IFS($AE43<=$AX$5,"C",$AE43<=$AX$7,"N",TRUE,"S") -> C | AY43: =_xlfn.IFS($AF43<=$AY$5,"C",$AF43<=$AY$7,"N",TRUE,"S") -> C | AZ43: F2 | BA43: 14.12880431 | BB43: 58.09317055 | BC43: 0.004453160109 | BD43: 1.983063496e-05 | BE43: 0.003626648002 | BF43: 0.08988775284 | BG43: 7755.428571 | BH43: 121.5134721 | BI43: 737.4259136 | BJ43: 1.030583993 | BK43: 0.004453160109 | BL43: 1.983063496e-05 | BM43: 0.005447682639 | BN43: 0.09950297859 | BO43: 7411.093859 | BP43: 121.5134721 | BQ43: 347.0413717
A44: W36X487 | B44: 36X487 | C44: 36 | Q44: 26 | X44: 487 | Y44: 143 | Z44: 39.3 | AA44: 17.1 | AB44: 1.5 | AC44: 2.68 | AD44: 3.63 | AE44: 3.19 | AF44: 21.4 | AG44: 32.1 | AH44: 36000 | AI44: 2130 | AJ44: 1830 | AK44: 15.8 | AL44: 2250 | AM44: 412 | AN44: 263 | AO44: 3.96 | AP44: 258 | AQ44: 754000 | AR44: 4.74 | AS44: 36.6 | AT44: 4.553716494 | AV44: N | AW44: N | AX44: =_xlfn.IFS($AE44<=$AX$5,"C",$AE44<=$AX$7,"N",TRUE,"S") -> C | AY44: =_xlfn.IFS($AF44<=$AY$5,"C",$AF44<=$AY$7,"N",TRUE,"S") -> C | AZ44: F2 | BA44: 13.98751626 | BB44: 55.19166926 | BC44: 0.003852011108 | BD44: 1.483798958e-05 | BE44: 0.003626648002 | BF44: 0.08647924092 | BG44: 7658.485714 | BH44: 120.6348173 | BI44: 690.9935314 | BJ44: 1.050667714 | BK44: 0.003852011108 | BL44: 1.483798958e-05 | BM44: 0.004968359966 | BN44: 0.09391683062 | BO44: 7357.504793 | BP44: 120.6348173 | BQ44: 344.5319414
A45: W36X441 | B45: 36X441 | C45: 36 | Q45: 22 - 5 | X45: 441 | Y45: 130 | Z45: 38.9 | AA45: 17 | AB45: 1.36 | AC45: 2.44 | AD45: 3.39 | AE45: 3.48 | AF45: 23.6 | AG45: 32.096 | AH45: 32100 | AI45: 1910 | AJ45: 1650 | AK45: 15.7 | AL45: 1990 | AM45: 368 | AN45: 235 | AO45: 3.92 | AP45: 194 | AQ45: 661000 | AR45: 4.69 | AS45: 36.5 | AT45: 4.526553692 | AV45: N | AW45: N | AX45: =_xlfn.IFS($AE45<=$AX$5,"C",$AE45<=$AX$7,"N",TRUE,"S") -> C | AY45: =_xlfn.IFS($AF45<=$AY$5,"C",$AF45<=$AY$7,"N",TRUE,"S") -> C | AZ45: F2 | BA45: 13.84622822 | BB45: 52.25585022 | BC45: 0.003221253632 | BD45: 1.037647496e-05 | BE45: 0.003626648002 | BF45: 0.08275204912 | BG45: 7577.7 | BH45: 119.9152337 | BI45: 642.527922 | BJ45: 1.052327869 | BK45: 0.003221253632 | BL45: 1.037647496e-05 | BM45: 0.004497008577 | BN45: 0.08785364084 | BO45: 7313.617465 | BP45: 119.9152337 | BQ45: 342.4768172
A46: W36X395 | B46: 36X395 | C46: 36 | X46: 395 | Y46: 116 | Z46: 38.4 | AA46: 16.8 | AB46: 1.22 | AC46: 2.2 | AD46: 3.15 | AE46: 3.83 | AF46: 26.3 | AG46: 32.086 | AH46: 28500 | AI46: 1710 | AJ46: 1490 | AK46: 15.7 | AL46: 1750 | AM46: 325 | AN46: 208 | AO46: 3.88 | AP46: 142 | AQ46: 575000 | AR46: 4.61 | AS46: 36.2 | AT46: 4.471148875 | AV46: N | AW46: N | AX46: =_xlfn.IFS($AE46<=$AX$5,"C",$AE46<=$AX$7,"N",TRUE,"S") -> C | AY46: =_xlfn.IFS($AF46<=$AY$5,"C",$AF46<=$AY$7,"N",TRUE,"S") -> C | AZ46: F2 | BA46: 13.70494018 | BB46: 49.10742234 | BC46: 0.002632652304 | BD46: 6.930858156e-06 | BE46: 0.003626648002 | BF46: 0.07911573994 | BG46: 7448.442857 | BH46: 118.4474765 | BI46: 592.5823845 | BJ46: 1.059115801 | BK46: 0.002632652304 | BL46: 6.930858156e-06 | BM46: 0.004096030924 | BN46: 0.0820285513 | BO46: 7224.099111 | BP46: 118.4474765 | BQ46: 338.2849161
A47: W36X361 | B47: 36X361 | C47: 36 | X47: 361 | Y47: 106 | Z47: 38 | AA47: 16.7 | AB47: 1.12 | AC47: 2.01 | AD47: 2.96 | AE47: 4.16 | AF47: 28.6 | AG47: 32.032 | AH47: 25700 | AI47: 1550 | AJ47: 1350 | AK47: 15.6 | AL47: 1570 | AM47: 293 | AN47: 188 | AO47: 3.85 | AP47: 109 | AQ47: 509000 | AR47: 4.58 | AS47: 36 | AT47: 4.441494693 | AV47: N | AW47: N | AX47: =_xlfn.IFS($AE47<=$AX$5,"C",$AE47<=$AX$7,"N",TRUE,"S") -> C | AY47: =_xlfn.IFS($AF47<=$AY$5,"C",$AF47<=$AY$7,"N",TRUE,"S") -> C | AZ47: F2 | BA47: 13.59897414 | BB47: 47.24407668 | BC47: 0.002242798354 | BD47: 5.030144456e-06 | BE47: 0.003626648002 | BF47: 0.07661231204 | BG47: 7399.971429 | BH47: 117.6618925 | BI47: 560.4706393 | BJ47: 1.068783031 | BK47: 0.002242798354 | BL47: 5.030144456e-06 | BM47: 0.00385703975 | BN47: 0.07810146032 | BO47: 7176.186425 | BP47: 117.6618925 | BQ47: 336.0412954
A48: W36X330 | B48: 36X330 | C48: 36 | X48: 330 | Y48: 96.9 | Z48: 37.7 | AA48: 16.6 | AB48: 1.02 | AC48: 1.85 | AD48: 2.8 | AE48: 4.49 | AF48: 31.4 | AG48: 32.028 | AH48: 23300 | AI48: 1410 | AJ48: 1240 | AK48: 15.5 | AL48: 1420 | AM48: 265 | AN48: 171 | AO48: 3.83 | AP48: 84.3 | AQ48: 456000 | AR48: 4.53 | AS48: 35.9 | AT48: 4.41646336 | AV48: N | AW48: N | AX48: =_xlfn.IFS($AE48<=$AX$5,"C",$AE48<=$AX$7,"N",TRUE,"S") -> C | AY48: =_xlfn.IFS($AF48<=$AY$5,"C",$AF48<=$AY$7,"N",TRUE,"S") -> C | AZ48: F2 | BA48: 13.52833012 | BB48: 45.31738006 | BC48: 0.001893701141 | BD48: 3.586104012e-06 | BE48: 0.003626648002 | BF48: 0.0742990521 | BG48: 7319.185714 | BH48: 116.9987747 | BI48: 532.0206282 | BJ48: 1.063775969 | BK48: 0.001893701141 | BL48: 3.586104012e-06 | BM48: 0.003665066874 | BN48: 0.07455714597 | BO48: 7135.742943 | BP48: 116.9987747 | BQ48: 334.1474371
A49: W36X302 | B49: 36X302 | C49: 36 | X49: 302 | Y49: 89 | Z49: 37.3 | AA49: 16.7 | AB49: 0.945 | AC49: 1.68 | AD49: 2.63 | AE49: 4.96 | AF49: 33.9 | AG49: 32.0355 | AH49: 21100 | AI49: 1280 | AJ49: 1130 | AK49: 15.4 | AL49: 1300 | AM49: 241 | AN49: 156 | AO49: 3.82 | AP49: 64.3 | AQ49: 412000 | AR49: 4.53 | AS49: 35.6 | AT49: 4.438275825 | AV49: N | AW49: N | AX49: =_xlfn.IFS($AE49<=$AX$5,"C",$AE49<=$AX$7,"N",TRUE,"S") -> C | AY49: =_xlfn.IFS($AF49<=$AY$5,"C",$AF49<=$AY$7,"N",TRUE,"S") -> C | AZ49: F2 | BA49: 13.49300811 | BB49: 44.08859038 | BC49: 0.001598389182 | BD49: 2.554847976e-06 | BE49: 0.003626648002 | BF49: 0.07228441867 | BG49: 7319.185714 | BH49: 117.5766198 | BI49: 513.1119467 | BJ49: 1.079040045 | BK49: 0.001598389182 | BL49: 2.554847976e-06 | BM49: 0.003521570552 | BN49: 0.07155389391 | BO49: 7170.985654 | BP49: 117.5766198 | BQ49: 335.7977574
A50: W36X282 | B50: 36X282 | C50: 36 | X50: 282 | Y50: 82.9 | Z50: 37.1 | AA50: 16.6 | AB50: 0.885 | AC50: 1.57 | AD50: 2.52 | AE50: 5.29 | AF50: 36.2 | AG50: 32.037 | AH50: 19600 | AI50: 1190 | AJ50: 1050 | AK50: 15.4 | AL50: 1200 | AM50: 223 | AN50: 144 | AO50: 3.8 | AP50: 52.7 | AQ50: 378000 | AR50: 4.5 | AS50: 35.5 | AT50: 4.408942375 | AV50: N | AW50: S | AX50: =_xlfn.IFS($AE50<=$AX$5,"C",$AE50<=$AX$7,"N",TRUE,"S") -> C | AY50: =_xlfn.IFS($AF50<=$AY$5,"C",$AF50<=$AY$7,"N",TRUE,"S") -> C | AZ50: F2 | BA50: 13.42236409 | BB50: 43.01610676 | BC50: 0.001413816231 | BD50: 1.998876334e-06 | BE50: 0.003626648002 | BF50: 0.07099622689 | BG50: 7270.714286 | BH50: 116.7995325 | BI50: 496.3841642 | BJ50: 1.087895979 | BK50: 0.001413816231 | BL50: 1.998876334e-06 | BM50: 0.003441727402 | BN50: 0.06968173098 | BO50: 7123.591179 | BP50: 116.7995325 | BQ50: 333.578403
A51: W36X262 | B51: 36X262 | C51: 36 | X51: 262 | Y51: 77.2 | Z51: 36.9 | AA51: 16.6 | AB51: 0.84 | AC51: 1.44 | AD51: 2.39 | AE51: 5.75 | AF51: 38.2 | AG51: 32.088 | AH51: 17900 | AI51: 1100 | AJ51: 972 | AK51: 15.3 | AL51: 1090 | AM51: 204 | AN51: 132 | AO51: 3.76 | AP51: 41.6 | AQ51: 342000 | AR51: 4.46 | AS51: 35.5 | AT51: 4.396648276 | AV51: N | AW51: S | AX51: =_xlfn.IFS($AE51<=$AX$5,"C",$AE51<=$AX$7,"N",TRUE,"S") -> C | AY51: =_xlfn.IFS($AF51<=$AY$5,"C",$AF51<=$AY$7,"N",TRUE,"S") -> C | AZ51: F2 | BA51: 13.28107605 | BB51: 41.74382302 | BC51: 0.001205587434 | BD51: 1.453441061e-06 | BE51: 0.003626648002 | BF51: 0.06951428224 | BG51: 7206.085714 | BH51: 116.4738433 | BI51: 480.0744232 | BJ51: 1.127590361 | BK51: 0.001205587434 | BL51: 1.453441061e-06 | BM51: 0.003361555033 | BN51: 0.06758063677 | BO51: 7103.72743 | BP51: 116.4738433 | BQ51: 332.6482376
A52: W36X247 | B52: 36X247 | C52: 36 | X52: 247 | Y52: 72.5 | Z52: 36.7 | AA52: 16.5 | AB52: 0.8 | AC52: 1.35 | AD52: 2.3 | AE52: 6.11 | AF52: 40.1 | AG52: 32.08 | AH52: 16700 | AI52: 1030 | AJ52: 913 | AK52: 15.2 | AL52: 1010 | AM52: 190 | AN52: 123 | AO52: 3.74 | AP52: 34.7 | AQ52: 316000 | AR52: 4.42 | AS52: 35.4 | AT52: 4.362654614 | AV52: N | AW52: S | AX52: =_xlfn.IFS($AE52<=$AX$5,"C",$AE52<=$AX$7,"N",TRUE,"S") -> C | AY52: =_xlfn.IFS($AF52<=$AY$5,"C",$AF52<=$AY$7,"N",TRUE,"S") -> C | AZ52: F2 | BA52: 13.21043203 | BB52: 40.80068476 | BC52: 0.00107363197 | BD52: 1.152685607e-06 | BE52: 0.003626648002 | BF52: 0.06855858788 | BG52: 7141.457143 | BH52: 115.5732999 | BI52: 467.0411136 | BJ52: 1.152143659 | BK52: 0.00107363197 | BL52: 1.152685607e-06 | BM52: 0.003316518775 | BN52: 0.06625821266 | BO52: 7048.803384 | BP52: 115.5732999 | BQ52: 330.0762939
A53: W36X231 | B53: 36X231 | C53: 36 | X53: 231 | Y53: 68.2 | Z53: 36.5 | AA53: 16.5 | AB53: 0.76 | AC53: 1.26 | AD53: 2.21 | AE53: 6.54 | AF53: 42.2 | AG53: 32.072 | AH53: 15600 | AI53: 963 | AJ53: 854 | AK53: 15.1 | AL53: 940 | AM53: 176 | AN53: 114 | AO53: 3.71 | AP53: 28.7 | AQ53: 292000 | AR53: 4.4 | AS53: 35.2 | AT53: 4.356482084 | AV53: N | AW53: S | AX53: =_xlfn.IFS($AE53<=$AX$5,"C",$AE53<=$AX$7,"N",TRUE,"S") -> C | AY53: =_xlfn.IFS($AF53<=$AY$5,"C",$AF53<=$AY$7,"N",TRUE,"S") -> C | AZ53: F2 | BA53: 13.10446599 | BB53: 40.09905529 | BC53: 0.0009547317437 | BD53: 9.115127024e-07 | BE53: 0.003626648002 | BF53: 0.0676858903 | BG53: 7109.142857 | BH53: 115.4097803 | BI53: 458.0483163 | BJ53: 1.172425204 | BK53: 0.0009547317437 | BL53: 9.115127024e-07 | BM53: 0.003279957908 | BN53: 0.0650744931 | BO53: 7038.830339 | BP53: 115.4097803 | BQ53: 329.6092834
A54: W36X387 | B54: 36X387 | C54: 36 | X54: 387 | Y54: 114 | Z54: 39.1 | AA54: 12.7 | AB54: 1.42 | AC54: 2.56 | AD54: 3.31 | AE54: 2.48 | AF54: 22.9 | AG54: 32.518 | AH54: 26500 | AI54: 1610 | AJ54: 1360 | AK54: 15.2 | AL54: 882 | AM54: 224 | AN54: 139 | AO54: 2.78 | AP54: 172 | AQ54: 294000 | AR54: 3.44 | AS54: 36.5 | AT54: 3.296697521 | AV54: N | AW54: N | AX54: =_xlfn.IFS($AE54<=$AX$5,"C",$AE54<=$AX$7,"N",TRUE,"S") -> C | AY54: =_xlfn.IFS($AF54<=$AY$5,"C",$AF54<=$AY$7,"N",TRUE,"S") -> C | AZ54: F2 | BA54: 9.819518993 | BB54: 39.00441271 | BC54: 0.003464947623 | BD54: 1.200586203e-05 | BE54: 0.003626648002 | BF54: 0.08421161217 | BG54: 5558.057143 | BH54: 87.33448898 | BI54: 480.5576317 | BJ54: 1.420262057 | BK54: 0.003464947623 | BL54: 1.200586203e-05 | BM54: 0.004674662898 | BN54: 0.09021979007 | BO54: 5326.52128 | BP54: 87.33448898 | BQ54: 249.4265066
A55: W36X350 | B55: 36X350 | C55: 36 | X55: 350 | Y55: 103 | Z55: 38.6 | AA55: 12.6 | AB55: 1.3 | AC55: 2.32 | AD55: 3.07 | AE55: 2.72 | AF55: 25 | AG55: 32.5 | AH55: 23600 | AI55: 1440 | AJ55: 1220 | AK55: 15.1 | AL55: 780 | AM55: 199 | AN55: 124 | AO55: 2.75 | AP55: 129 | AQ55: 257000 | AR55: 3.41 | AS55: 36.3 | AT55: 3.265227596 | AV55: N | AW55: N | AX55: =_xlfn.IFS($AE55<=$AX$5,"C",$AE55<=$AX$7,"N",TRUE,"S") -> C | AY55: =_xlfn.IFS($AF55<=$AY$5,"C",$AF55<=$AY$7,"N",TRUE,"S") -> C | AZ55: F2 | BA55: 9.71355296 | BB55: 37.12881144 | BC55: 0.002912884433 | BD55: 8.48489572e-06 | BE55: 0.003626648002 | BF55: 0.08086737559 | BG55: 5509.585714 | BH55: 86.50080321 | BI55: 447.4822121 | BJ55: 1.445333881 | BK55: 0.002912884433 | BL55: 8.48489572e-06 | BM55: 0.004281530906 | BN55: 0.08481989943 | BO55: 5275.674872 | BP55: 86.50080321 | BQ55: 247.0455076
A56: W36X318 | B56: 36X318 | C56: 36 | X56: 318 | Y56: 93.4 | Z56: 38.2 | AA56: 12.4 | AB56: 1.18 | AC56: 2.13 | AD56: 2.88 | AE56: 2.91 | AF56: 27.5 | AG56: 32.45 | AH56: 21200 | AI56: 1300 | AJ56: 1110 | AK56: 15.1 | AL56: 682 | AM56: 176 | AN56: 110 | AO56: 2.7 | AP56: 98.3 | AQ56: 222000 | AR56: 3.33 | AS56: 36.1 | AT56: 3.212444356 | AV56: N | AW56: N | AX56: =_xlfn.IFS($AE56<=$AX$5,"C",$AE56<=$AX$7,"N",TRUE,"S") -> C | AY56: =_xlfn.IFS($AF56<=$AY$5,"C",$AF56<=$AY$7,"N",TRUE,"S") -> C | AZ56: F2 | BA56: 9.536942906 | BB56: 34.96004418 | BC56: 0.002453145666 | BD56: 6.017923661e-06 | BE56: 0.003626648002 | BF56: 0.07797303167 | BG56: 5380.328571 | BH56: 85.1024956 | BI56: 416.4032901 | BJ56: 1.449757686 | BK56: 0.002453145666 | BL56: 6.017923661e-06 | BM56: 0.003983030861 | BN56: 0.08022578468 | BO56: 5190.392239 | BP56: 85.1024956 | BQ56: 243.0519538
A57: W36X286 | B57: 36X286 | C57: 36 | X57: 286 | Y57: 83.9 | Z57: 37.8 | AA57: 12.3 | AB57: 1.06 | AC57: 1.93 | AD57: 2.68 | AE57: 3.19 | AF57: 30.6 | AG57: 32.436 | AH57: 18900 | AI57: 1160 | AJ57: 1000 | AK57: 15 | AL57: 602 | AM57: 156 | AN57: 97.9 | AO57: 2.68 | AP57: 72.8 | AQ57: 194000 | AR57: 3.29 | AS57: 35.9 | AT57: 3.186840638 | AV57: N | AW57: N | AX57: =_xlfn.IFS($AE57<=$AX$5,"C",$AE57<=$AX$7,"N",TRUE,"S") -> C | AY57: =_xlfn.IFS($AF57<=$AY$5,"C",$AF57<=$AY$7,"N",TRUE,"S") -> C | AZ57: F2 | BA57: 9.466298885 | BB57: 33.31013879 | BC57: 0.002027855153 | BD57: 4.112196522e-06 | BE57: 0.003626648002 | BF57: 0.07519643047 | BG57: 5315.7 | BH57: 84.42421449 | BI57: 390.9192399 | BJ57: 1.448340705 | BK57: 0.002027855153 | BL57: 4.112196522e-06 | BM57: 0.003736148779 | BN57: 0.07592103748 | BO57: 5149.023945 | BP57: 84.42421449 | BQ57: 241.1147891
A58: W36X256 | B58: 36X256 | C58: 36 | X58: 256 | Y58: 75.3 | Z58: 37.4 | AA58: 12.2 | AB58: 0.96 | AC58: 1.73 | AD58: 2.48 | AE58: 3.53 | AF58: 33.8 | AG58: 32.448 | AH58: 16800 | AI58: 1040 | AJ58: 895 | AK58: 14.9 | AL58: 528 | AM58: 137 | AN58: 86.5 | AO58: 2.65 | AP58: 52.9 | AQ58: 168000 | AR58: 3.24 | AS58: 35.7 | AT58: 3.155102381 | AV58: N | AW58: N | AX58: =_xlfn.IFS($AE58<=$AX$5,"C",$AE58<=$AX$7,"N",TRUE,"S") -> C | AY58: =_xlfn.IFS($AF58<=$AY$5,"C",$AF58<=$AY$7,"N",TRUE,"S") -> C | AZ58: F2 | BA58: 9.360332853 | BB58: 31.70583051 | BC58: 0.001655634321 | BD58: 2.741125004e-06 | BE58: 0.003626648002 | BF58: 0.07267931151 | BG58: 5234.914286 | BH58: 83.58342019 | BI58: 367.7291575 | BJ58: 1.475887425 | BK58: 0.001655634321 | BL58: 2.741125004e-06 | BM58: 0.00354791998 | BN58: 0.07213566594 | BO58: 5097.743989 | BP58: 83.58342019 | BQ58: 238.7134882
A59: W36X232 | B59: 36X232 | C59: 36 | X59: 232 | Y59: 68 | Z59: 37.1 | AA59: 12.1 | AB59: 0.87 | AC59: 1.57 | AD59: 2.32 | AE59: 3.86 | AF59: 37.3 | AG59: 32.451 | AH59: 15000 | AI59: 936 | AJ59: 809 | AK59: 14.8 | AL59: 468 | AM59: 122 | AN59: 77.2 | AO59: 2.62 | AP59: 39.6 | AQ59: 148000 | AR59: 3.21 | AS59: 35.5 | AT59: 3.127095488 | AV59: N | AW59: S | AX59: =_xlfn.IFS($AE59<=$AX$5,"C",$AE59<=$AX$7,"N",TRUE,"S") -> C | AY59: =_xlfn.IFS($AF59<=$AY$5,"C",$AF59<=$AY$7,"N",TRUE,"S") -> C | AZ59: F2 | BA59: 9.25436682 | BB59: 30.57821816 | BC59: 0.001378854089 | BD59: 1.901238598e-06 | BE59: 0.003626648002 | BF59: 0.07074957307 | BG59: 5186.442857 | BH59: 82.84147538 | BI59: 350.2790842 | BJ59: 1.486148866 | BK59: 0.001378854089 | BL59: 1.901238598e-06 | BM59: 0.003427513643 | BN59: 0.06932797222 | BO59: 5052.492853 | BP59: 82.84147538 | BQ59: 236.5945006
A60: W36X210 | B60: 36X210 | C60: 36 | X60: 210 | Y60: 61.9 | Z60: 36.7 | AA60: 12.2 | AB60: 0.83 | AC60: 1.36 | AD60: 2.11 | AE60: 4.48 | AF60: 39.1 | AG60: 32.453 | AH60: 13200 | AI60: 833 | AJ60: 719 | AK60: 14.6 | AL60: 411 | AM60: 107 | AN60: 67.5 | AO60: 2.58 | AP60: 28 | AQ60: 128000 | AR60: 3.18 | AS60: 35.3 | AT60: 3.124421062 | AV60: N | AW60: S | AX60: =_xlfn.IFS($AE60<=$AX$5,"C",$AE60<=$AX$7,"N",TRUE,"S") -> C | AY60: =_xlfn.IFS($AF60<=$AY$5,"C",$AF60<=$AY$7,"N",TRUE,"S") -> C | AZ60: F2 | BA60: 9.113078777 | BB60: 29.4465251 | BC60: 0.001103200463 | BD60: 1.217051262e-06 | BE60: 0.003626648002 | BF60: 0.06877389377 | BG60: 5137.971429 | BH60: 82.77062578 | BI60: 335.9750349 | BJ60: 1.623432377 | BK60: 0.001103200463 | BL60: 1.217051262e-06 | BM60: 0.003326208418 | BN60: 0.06655380441 | BO60: 5048.171744 | BP60: 82.77062578 | BQ60: 236.3921548
A61: W36X194 | B61: 36X194 | C61: 36 | X61: 194 | Y61: 57 | Z61: 36.5 | AA61: 12.1 | AB61: 0.765 | AC61: 1.26 | AD61: 2.01 | AE61: 4.81 | AF61: 42.4 | AG61: 32.436 | AH61: 12100 | AI61: 767 | AJ61: 664 | AK61: 14.6 | AL61: 375 | AM61: 97.7 | AN61: 61.9 | AO61: 2.56 | AP61: 22.2 | AQ61: 116000 | AR61: 3.15 | AS61: 35.2 | AT61: 3.097975679 | AV61: N | AW61: S | AX61: =_xlfn.IFS($AE61<=$AX$5,"C",$AE61<=$AX$7,"N",TRUE,"S") -> C | AY61: =_xlfn.IFS($AF61<=$AY$5,"C",$AF61<=$AY$7,"N",TRUE,"S") -> C | AZ61: F2 | BA61: 9.042434756 | BB61: 28.69189173 | BC61: 0.0009498220153 | BD61: 9.021618608e-07 | BE61: 0.003626648002 | BF61: 0.0676496121 | BG61: 5089.5 | BH61: 82.0700477 | BI61: 325.4829525 | BJ61: 1.627544274 | BK61: 0.0009498220153 | BL61: 9.021618608e-07 | BM61: 0.003278532147 | BN61: 0.06502579613 | BO61: 5005.443561 | BP61: 82.0700477 | BQ61: 234.3913101
A62: W36X182 | B62: 36X182 | C62: 36 | X62: 182 | Y62: 53.6 | Z62: 36.3 | AA62: 12.1 | AB62: 0.725 | AC62: 1.18 | AD62: 1.93 | AE62: 5.12 | AF62: 44.8 | AG62: 32.48 | AH62: 11300 | AI62: 718 | AJ62: 623 | AK62: 14.5 | AL62: 347 | AM62: 90.7 | AN62: 57.6 | AO62: 2.55 | AP62: 18.5 | AQ62: 107000 | AR62: 3.13 | AS62: 35.1 | AT62: 3.093576984 | AV62: N | AW62: S | AX62: =_xlfn.IFS($AE62<=$AX$5,"C",$AE62<=$AX$7,"N",TRUE,"S") -> C | AY62: =_xlfn.IFS($AF62<=$AY$5,"C",$AF62<=$AY$7,"N",TRUE,"S") -> C | AZ62: F2 | BA62: 9.007112745 | BB62: 28.18451742 | BC62: 0.000846012082 | BD62: 7.157364428e-07 | BE62: 0.003626648002 | BF62: 0.06687794916 | BG62: 5057.185714 | BH62: 81.95351965 | BI62: 319.8930941 | BJ62: 1.649250595 | BK62: 0.000846012082 | BL62: 7.157364428e-07 | BM62: 0.003249976557 | BN62: 0.06399991124 | BO62: 4998.336527 | BP62: 81.95351965 | BQ62: 234.0585071
A63: W36X170 | B63: 36X170 | C63: 36 | X63: 170 | Y63: 50 | Z63: 36.2 | AA63: 12 | AB63: 0.68 | AC63: 1.1 | AD63: 1.85 | AE63: 5.47 | AF63: 47.7 | AG63: 32.436 | AH63: 10500 | AI63: 668 | AJ63: 581 | AK63: 14.5 | AL63: 320 | AM63: 83.8 | AN63: 53.2 | AO63: 2.53 | AP63: 15.1 | AQ63: 98500 | AR63: 3.11 | AS63: 35.1 | AT63: 3.063668709 | AV63: N | AW63: S | AX63: =_xlfn.IFS($AE63<=$AX$5,"C",$AE63<=$AX$7,"N",TRUE,"S") -> C | AY63: =_xlfn.IFS($AF63<=$AY$5,"C",$AF63<=$AY$7,"N",TRUE,"S") -> C | AZ63: F2 | BA63: 8.936468723 | BB63: 27.67196528 | BC63: 0.0007404465236 | BD63: 5.482610543e-07 | BE63: 0.003626648002 | BF63: 0.06608399598 | BG63: 5024.871429 | BH63: 81.16120434 | BI63: 311.6761438 | BJ63: 1.670945455 | BK63: 0.0007404465236 | BL63: 5.482610543e-07 | BM63: 0.003224107975 | BN63: 0.06296470835 | BO63: 4950.0133 | BP63: 81.16120434 | BQ63: 231.7956618
A64: W36X160 | B64: 36X160 | C64: 36 | X64: 160 | Y64: 47 | Z64: 36 | AA64: 12 | AB64: 0.65 | AC64: 1.02 | AD64: 1.77 | AE64: 5.88 | AF64: 49.9 | AG64: 32.435 | AH64: 9760 | AI64: 624 | AJ64: 542 | AK64: 14.4 | AL64: 295 | AM64: 77.3 | AN64: 49.1 | AO64: 2.5 | AP64: 12.4 | AQ64: 90200 | AR64: 3.09 | AS64: 35 | AT64: 3.053435728 | AV64: N | AW64: S | AX64: =_xlfn.IFS($AE64<=$AX$5,"C",$AE64<=$AX$7,"N",TRUE,"S") -> C | AY64: =_xlfn.IFS($AF64<=$AY$5,"C",$AF64<=$AY$7,"N",TRUE,"S") -> C | AZ64: F2 | BA64: 8.830502691 | BB64: 27.2194594 | BC64: 0.0006536636795 | BD64: 4.272762059e-07 | BE64: 0.003626648002 | BF64: 0.06542409098 | BG64: 4992.557143 | BH64: 80.89011725 | BI64: 306.4701356 | BJ64: 1.722446895 | BK64: 0.0006536636795 | BL64: 4.272762059e-07 | BM64: 0.00320529053 | BN64: 0.0621204814 | BO64: 4933.479727 | BP64: 80.89011725 | BQ64: 231.0214395
A65: W36X150 | B65: 36X150 | C65: 36 | X65: 150 | Y65: 44.3 | Z65: 35.9 | AA65: 12 | AB65: 0.625 | AC65: 0.94 | AD65: 1.69 | AE65: 6.37 | AF65: 51.9 | AG65: 32.4375 | AH65: 9040 | AI65: 581 | AJ65: 504 | AK65: 14.3 | AL65: 270 | AM65: 70.9 | AN65: 45.1 | AO65: 2.47 | AP65: 10.1 | AQ65: 82200 | AR65: 3.06 | AS65: 35 | AT65: 3.038745923 | AV65: N | AW65: S | AX65: =_xlfn.IFS($AE65<=$AX$5,"C",$AE65<=$AX$7,"N",TRUE,"S") -> C | AY65: =_xlfn.IFS($AF65<=$AY$5,"C",$AF65<=$AY$7,"N",TRUE,"S") -> C | AZ65: F2 | BA65: 8.724536659 | BB65: 26.69860444 | BC65: 0.0005725623583 | BD65: 3.278276541e-07 | BE65: 0.003626648002 | BF65: 0.06480131449 | BG65: 4944.085714 | BH65: 80.50096215 | BI65: 301.1520192 | BJ65: 1.797290559 | BK65: 0.0005725623583 | BL65: 3.278276541e-07 | BM65: 0.003189739618 | BN65: 0.06133760654 | BO65: 4909.745198 | BP65: 80.50096215 | BQ65: 229.9100161
A66: W36X135 | B66: 36X135 | C66: 36 | X66: 135 | Y66: 39.9 | Z66: 35.6 | AA66: 12 | AB66: 0.6 | AC66: 0.79 | AD66: 1.54 | AE66: 7.56 | AF66: 54.1 | AG66: 32.46 | AH66: 7800 | AI66: 509 | AJ66: 439 | AK66: 14 | AL66: 225 | AM66: 59.7 | AN66: 37.7 | AO66: 2.38 | AP66: 7 | AQ66: 68100 | AR66: 2.99 | AS66: 34.8 | AT66: 2.989846088 | AV66: N | AW66: S | AX66: =_xlfn.IFS($AE66<=$AX$5,"C",$AE66<=$AX$7,"N",TRUE,"S") -> C | AY66: =_xlfn.IFS($AF66<=$AY$5,"C",$AF66<=$AY$7,"N",TRUE,"S") -> C | AZ66: F2 | BA66: 8.406638562 | BB66: 25.73015558 | BC66: 0.0004581991464 | BD66: 2.099464578e-07 | BE66: 0.003626648002 | BF66: 0.06391280895 | BG66: 4830.985714 | BH66: 79.20553179 | BI66: 291.0256167 | BJ66: 2.05443038 | BK66: 0.0004581991464 | BL66: 2.099464578e-07 | BM66: 0.003171207599 | BN66: 0.06024455781 | BO66: 4830.737037 | BP66: 79.20553179 | BQ66: 226.2102787
A67: W33X387 | B67: 33X387 | C67: 33 | X67: 387 | Y67: 114 | Z67: 36 | AA67: 16.2 | AB67: 1.26 | AC67: 2.28 | AD67: 3.07 | AE67: 3.55 | AF67: 23.7 | AG67: 29.862 | AH67: 24300 | AI67: 1560 | AJ67: 1350 | AK67: 14.6 | AL67: 1620 | AM67: 312 | AN67: 200 | AO67: 3.77 | AP67: 148 | AQ67: 459000 | AR67: 4.49 | AS67: 33.7 | AT67: 4.323865392 | AV67: N | AW67: N | AX67: =_xlfn.IFS($AE67<=$AX$5,"C",$AE67<=$AX$7,"N",TRUE,"S") -> C | AY67: =_xlfn.IFS($AF67<=$AY$5,"C",$AF67<=$AY$7,"N",TRUE,"S") -> C | AZ67: F2 | BA67: 13.31639806 | BB67: 50.14366516 | BC67: 0.003253104737 | BD67: 1.058269043e-05 | BE67: 0.003626648002 | BF67: 0.0829442749 | BG67: 7254.557143 | BH67: 114.5457149 | BI67: 615.9289192 | BJ67: 1.018684211 | BK67: 0.003253104737 | BL67: 1.058269043e-05 | BM67: 0.004519878495 | BN67: 0.08816452366 | BO67: 6986.131084 | BP67: 114.5457149 | BQ67: 327.1415206
A68: W33X354 | B68: 33X354 | C68: 33 | X68: 354 | Y68: 104 | Z68: 35.6 | AA68: 16.1 | AB68: 1.16 | AC68: 2.09 | AD68: 2.88 | AE68: 3.85 | AF68: 25.7 | AG68: 29.812 | AH68: 22000 | AI68: 1420 | AJ68: 1240 | AK68: 14.5 | AL68: 1460 | AM68: 282 | AN68: 181 | AO68: 3.74 | AP68: 115 | AQ68: 408000 | AR68: 4.44 | AS68: 33.5 | AT68: 4.29440992 | AV68: N | AW68: N | AX68: =_xlfn.IFS($AE68<=$AX$5,"C",$AE68<=$AX$7,"N",TRUE,"S") -> C | AY68: =_xlfn.IFS($AF68<=$AY$5,"C",$AF68<=$AY$7,"N",TRUE,"S") -> C | AZ68: F2 | BA68: 13.21043203 | BB68: 47.80669668 | BC68: 0.002768415985 | BD68: 7.664127064e-06 | BE68: 0.003626648002 | BF68: 0.07996914396 | BG68: 7173.771429 | BH68: 113.7653951 | BI68: 578.5676646 | BJ68: 1.027725044 | BK68: 0.002768415985 | BL68: 7.664127064e-06 | BM68: 0.004184583401 | BN68: 0.08338464718 | BO68: 6938.539457 | BP68: 113.7653951 | BQ68: 324.9129341
A69: W33X318 | B69: 33X318 | C69: 33 | X69: 318 | Y69: 93.7 | Z69: 35.2 | AA69: 16 | AB69: 1.04 | AC69: 1.89 | AD69: 2.68 | AE69: 4.23 | AF69: 28.7 | AG69: 29.848 | AH69: 19500 | AI69: 1270 | AJ69: 1110 | AK69: 14.5 | AL69: 1290 | AM69: 250 | AN69: 161 | AO69: 3.71 | AP69: 84.4 | AQ69: 357000 | AR69: 4.4 | AS69: 33.3 | AT69: 4.268102958 | AV69: N | AW69: N | AX69: =_xlfn.IFS($AE69<=$AX$5,"C",$AE69<=$AX$7,"N",TRUE,"S") -> C | AY69: =_xlfn.IFS($AF69<=$AY$5,"C",$AF69<=$AY$7,"N",TRUE,"S") -> C | AZ69: F2 | BA69: 13.10446599 | BB69: 45.54389747 | BC69: 0.002283364446 | BD69: 5.213753191e-06 | BE69: 0.003626648002 | BF69: 0.07687660533 | BG69: 7109.142857 | BH69: 113.068484 | BI69: 541.4214424 | BJ69: 1.026518519 | BK69: 0.002283364446 | BL69: 5.213753191e-06 | BM69: 0.003880768528 | BN69: 0.07851199255 | BO69: 6896.034922 | BP69: 113.068484 | BQ69: 322.9225623
A70: W33X291 | B70: 33X291 | C70: 33 | X70: 291 | Y70: 85.6 | Z70: 34.8 | AA70: 15.9 | AB70: 0.96 | AC70: 1.73 | AD70: 2.52 | AE70: 4.6 | AF70: 31 | AG70: 29.76 | AH70: 17700 | AI70: 1160 | AJ70: 1020 | AK70: 14.4 | AL70: 1160 | AM70: 226 | AN70: 146 | AO70: 3.68 | AP70: 65.1 | AQ70: 319000 | AR70: 4.34 | AS70: 33.1 | AT70: 4.237776548 | AV70: N | AW70: N | AX70: =_xlfn.IFS($AE70<=$AX$5,"C",$AE70<=$AX$7,"N",TRUE,"S") -> C | AY70: =_xlfn.IFS($AF70<=$AY$5,"C",$AF70<=$AY$7,"N",TRUE,"S") -> C | AZ70: F2 | BA70: 12.99849996 | BB70: 43.55211672 | BC70: 0.001928203305 | BD70: 3.717967987e-06 | BE70: 0.003626648002 | BF70: 0.07453087486 | BG70: 7012.2 | BH70: 112.2650916 | BI70: 512.8981045 | BJ70: 1.038630167 | BK70: 0.001928203305 | BL70: 3.717967987e-06 | BM70: 0.003683012241 | BN70: 0.07490804727 | BO70: 6847.036108 | BP70: 112.2650916 | BQ70: 320.6280811
A71: W33X263 | B71: 33X263 | C71: 33 | X71: 263 | Y71: 77.4 | Z71: 34.5 | AA71: 15.8 | AB71: 0.87 | AC71: 1.57 | AD71: 2.36 | AE71: 5.03 | AF71: 34.3 | AG71: 29.841 | AH71: 15900 | AI71: 1040 | AJ71: 919 | AK71: 14.3 | AL71: 1040 | AM71: 202 | AN71: 131 | AO71: 3.66 | AP71: 48.7 | AQ71: 281000 | AR71: 4.31 | AS71: 32.9 | AT71: 4.208745249 | AV71: N | AW71: N | AX71: =_xlfn.IFS($AE71<=$AX$5,"C",$AE71<=$AX$7,"N",TRUE,"S") -> C | AY71: =_xlfn.IFS($AF71<=$AY$5,"C",$AF71<=$AY$7,"N",TRUE,"S") -> C | AZ71: F2 | BA71: 12.92785594 | BB71: 41.99685318 | BC71: 0.00161071073 | BD71: 2.594389057e-06 | BE71: 0.003626648002 | BF71: 0.07236959812 | BG71: 6963.728571 | BH71: 111.4960087 | BI71: 487.4270701 | BJ71: 1.046588325 | BK71: 0.00161071073 | BL71: 2.594389057e-06 | BM71: 0.00352718021 | BN71: 0.071679083 | BO71: 6800.129824 | BP71: 111.4960087 | BQ71: 318.4315874
A72: W33X241 | B72: 33X241 | C72: 33 | X72: 241 | Y72: 71.1 | Z72: 34.2 | AA72: 15.9 | AB72: 0.83 | AC72: 1.4 | AD72: 2.19 | AE72: 5.66 | AF72: 35.9 | AG72: 29.797 | AH72: 14200 | AI72: 940 | AJ72: 831 | AK72: 14.1 | AL72: 933 | AM72: 182 | AN72: 118 | AO72: 3.62 | AP72: 36.2 | AQ72: 251000 | AR72: 4.29 | AS72: 32.8 | AT72: =$AA72/(SQRT(12*(1+$BJ72/6))) -> 4.216148465 | AV72: =IF($AE72<=$AV$7,"N","S") -> N | AW72: =IF($AF72<=$AW$7,"N","S") -> S | AX72: =_xlfn.IFS($AE72<=$AX$5,"C",$AE72<=$AX$7,"N",TRUE,"S") -> C | AY72: =_xlfn.IFS($AF72<=$AY$5,"C",$AF72<=$AY$7,"N",TRUE,"S") -> C | AZ72: F2 | BA72: 12.7865679 | BB72: 40.65854087 | BC72: 0.001328108949 | BD72: 1.76387338e-06 | BE72: =SQRT($BD$8+$BC$5) -> 0.003626648002 | BF72: 0.07039003445 | BG72: 6931.414286 | BH72: 111.6921311 | BI72: 468.7750945 | BJ72: 1.1110292 | BK72: 0.001328108949 | BL72: 1.76387338e-06 | BM72: 0.003407416112 | BN72: 0.06881515139 | BO72: =1.95*$AT72*E/$BJ$5 -> 6812.091306 | BP72: 111.6921311 | BQ72: =pi*$AT72*SQRT(E/Fy) -> 318.991711
A73: W33X221 | B73: =RIGHT(A73,LEN(A73)-1) -> 33X221 | C73: =LEFT(B73,(FIND("X",B73)-1)) -> 33 | X73: 221 | Y73: 65.3 | Z73: 33.9 | AA73: 15.8 | AB73: 0.775 | AC73: 1.28 | AD73: 2.06 | AE73: 6.2 | AF73: 38.5 | AG73: =+AF73*AB73 -> 29.8375 | AH73: 12900 | AI73: 857 | AJ73: 759 | AK73: 14.1 | AL73: 840 | AM73: 164 | AN73: 106 | AO73: 3.59 | AP73: 27.8 | AQ73: 224000 | AR73: 4.25 | AS73: 32.6 | AT73: 4.180129085 | AV73: N | AW73: S | AX73: =_xlfn.IFS($AE73<=$AX$5,"C",$AE73<=$AX$7,"N",TRUE,"S") -> C | AY73: =_xlfn.IFS($AF73<=$AY$5,"C",$AF73<=$AY$7,"N",TRUE,"S") -> C | AZ73: =IF(AND(AX73="C", AY73= "C"),"F2","F3") -> F2 | BA73: =1.76*AO73*sqrtefy/12 -> 12.68060186 | BB73: =+$BG73*$BF73/12 -> 39.43912574 | BC73: =+($AP73*$BD$5)/($AJ73*$AS73) -> 0.001123531932 | BD73: =+$BC73^2 -> 1.262324002e-06 | BE73: 0.003626648002 | BF73: =SQRT(($BC73+$BE73)) -> 0.06892154912 | BG73: =1.95*AR73*E/(0.7*Fy) -> 6866.785714 | BH73: =1.1*AT73*SQRT(E/Fy) -> 110.7379234 | BI73: =$BO73*$BN73 -> 450.8718353 | BJ73: =(AG73*AB73)/(AA73*AC73) -> 1.143397078 | BK73: =+($AP73)/($AJ73*$AS73) -> 0.001123531932 | BL73: =+$BC73^2 -> 1.262324002e-06 | BM73: =SQRT($BL73+$BK$5) -> 0.003333006928 | BN73: =+SQRT($BK73+$BM73) -> 0.06675731315 | BO73: 6753.894278 | BP73: =+$BH73 -> 110.7379234 | BQ73: 316.2665025
A74: W33X201 | B74: 33X201 | C74: 33 | X74: 201 | Y74: 59.1 | Z74: 33.7 | AA74: 15.7 | AB74: 0.715 | AC74: 1.15 | AD74: 1.94 | AE74: 6.85 | AF74: 41.7 | AG74: 29.8155 | AH74: 11600 | AI74: 773 | AJ74: 686 | AK74: 14 | AL74: 749 | AM74: 147 | AN74: 95.2 | AO74: 3.56 | AP74: 20.8 | AQ74: 198000 | AR74: 4.21 | AS74: 32.6 | AT74: 4.142860902 | AV74: N | AW74: S | AX74: =_xlfn.IFS($AE74<=$AX$5,"C",$AE74<=$AX$7,"N",TRUE,"S") -> C | AY74: =_xlfn.IFS($AF74<=$AY$5,"C",$AF74<=$AY$7,"N",TRUE,"S") -> C | AZ74: F2 | BA74: 12.57463583 | BB74: 38.26415275 | BC74: 0.0009300828131 | BD74: 8.650540393e-07 | BE74: 0.003626648002 | BF74: 0.0675035615 | BG74: 6802.157143 | BH74: 109.750633 | BI74: 433.9523782 | BJ74: 1.18073013 | BK74: 0.0009300828131 | BL74: 8.650540393e-07 | BM74: 0.003272868041 | BN74: 0.06483016932 | BO74: 6693.679544 | BP74: 109.750633 | BQ74: 313.4468102
A75: W33X169 | B75: 33X169 | C75: 33 | X75: 169 | Y75: 49.5 | Z75: 33.8 | AA75: 11.5 | AB75: 0.67 | AC75: 1.22 | AD75: 1.92 | AE75: 4.71 | AF75: 44.7 | AG75: 29.949 | AH75: 9290 | AI75: 629 | AJ75: 549 | AK75: 13.7 | AL75: 310 | AM75: 84.4 | AN75: 53.9 | AO75: 2.5 | AP75: 17.7 | AQ75: 82400 | AR75: 3.03 | AS75: 32.6 | AT75: 2.983199738 | AV75: N | AW75: S | AX75: =_xlfn.IFS($AE75<=$AX$5,"C",$AE75<=$AX$7,"N",TRUE,"S") -> C | AY75: =_xlfn.IFS($AF75<=$AY$5,"C",$AF75<=$AY$7,"N",TRUE,"S") -> C | AZ75: F2 | BA75: 8.830502691 | BB75: 27.71666026 | BC75: 0.000988970465 | BD75: 9.780625806e-07 | BE75: 0.003626648002 | BF75: 0.06793834312 | BG75: 4895.614286 | BH75: 79.02945996 | BI75: 315.2978189 | BJ75: 1.430208838 | BK75: 0.000988970465 | BL75: 9.780625806e-07 | BM75: 0.003290087196 | BN75: 0.0654145065 | BO75: 4819.998435 | BP75: 79.02945996 | BQ75: 225.7074192
A76: W33X152 | B76: 33X152 | C76: 33 | X76: 152 | Y76: 44.9 | Z76: 33.5 | AA76: 11.6 | AB76: 0.635 | AC76: 1.06 | AD76: 1.76 | AE76: 5.48 | AF76: 47.2 | AG76: 29.972 | AH76: 8160 | AI76: 559 | AJ76: 487 | AK76: 13.5 | AL76: 273 | AM76: 73.9 | AN76: 47.2 | AO76: 2.47 | AP76: 12.4 | AQ76: 71700 | AR76: 3.01 | AS76: 32.4 | AT76: 2.985600515 | AV76: N | AW76: S | AX76: =_xlfn.IFS($AE76<=$AX$5,"C",$AE76<=$AX$7,"N",TRUE,"S") -> C | AY76: =_xlfn.IFS($AF76<=$AY$5,"C",$AF76<=$AY$7,"N",TRUE,"S") -> C | AZ76: F2 | BA76: 8.724536659 | BB76: 26.92109947 | BC76: 0.0007858645778 | BD76: 6.175831346e-07 | BE76: 0.003626648002 | BF76: 0.06642674596 | BG76: 4863.3 | BH76: 79.09306015 | BI76: 305.8773941 | BJ76: 1.547838321 | BK76: 0.0007858645778 | BL76: 6.175831346e-07 | BM76: 0.003234840693 | BN76: 0.06340903146 | BO76: 4823.877404 | BP76: 79.09306015 | BQ76: 225.8890608
A77: W33X141 | B77: 33X141 | C77: 33 | X77: 141 | Y77: 41.5 | Z77: 33.3 | AA77: 11.5 | AB77: 0.605 | AC77: 0.96 | AD77: 1.66 | AE77: 6.01 | AF77: 49.6 | AG77: 30.008 | AH77: 7450 | AI77: 514 | AJ77: 448 | AK77: 13.4 | AL77: 246 | AM77: 66.9 | AN77: 42.7 | AO77: 2.43 | AP77: 9.7 | AQ77: 64400 | AR77: 2.98 | AS77: 32.3 | AT77: 2.941097569 | AV77: N | AW77: S | AX77: =_xlfn.IFS($AE77<=$AX$5,"C",$AE77<=$AX$7,"N",TRUE,"S") -> C | AY77: =_xlfn.IFS($AF77<=$AY$5,"C",$AF77<=$AY$7,"N",TRUE,"S") -> C | AZ77: F2 | BA77: 8.583248616 | BB77: 26.3015502 | BC77: 0.000670333923 | BD77: 4.493475684e-07 | BE77: 0.003626648002 | BF77: 0.06555136859 | BG77: 4814.828571 | BH77: 77.91410999 | BI77: 295.9630929 | BJ77: 1.644460145 | BK77: 0.000670333923 | BL77: 4.493475684e-07 | BM77: 0.003208731641 | BN77: 0.06228214483 | BO77: 4751.973357 | BP77: 77.91410999 | BQ77: 222.5219898
A78: W33X130 | B78: 33X130 | C78: 33 | X78: 130 | Y78: 38.3 | Z78: 33.1 | AA78: 11.5 | AB78: 0.58 | AC78: 0.855 | AD78: 1.56 | AE78: 6.73 | AF78: 51.7 | AG78: 29.986 | AH78: 6710 | AI78: 467 | AJ78: 406 | AK78: 13.2 | AL78: 218 | AM78: 59.5 | AN78: 37.9 | AO78: 2.39 | AP78: 7.37 | AQ78: 56600 | AR78: 2.94 | AS78: 32.2 | AT78: 2.917463519 | AV78: N | AW78: S | AX78: =_xlfn.IFS($AE78<=$AX$5,"C",$AE78<=$AX$7,"N",TRUE,"S") -> C | AY78: =_xlfn.IFS($AF78<=$AY$5,"C",$AF78<=$AY$7,"N",TRUE,"S") -> C | AZ78: F2 | BA78: 8.441960573 | BB78: 25.62466644 | BC78: 0.0005637487379 | BD78: 3.178126395e-07 | BE78: 0.003626648002 | BF78: 0.06473327382 | BG78: 4750.2 | BH78: 77.28800837 | BI78: 288.7331662 | BJ78: 1.768815662 | BK78: 0.0005637487379 | BL78: 3.178126395e-07 | BM78: 0.003188169352 | BN78: 0.06125290271 | BO78: 4713.787486 | BP78: 77.28800837 | BQ78: 220.7338493
A79: W33X118 | B79: 33X118 | C79: 33 | X79: 118 | Y79: 34.7 | Z79: 32.9 | AA79: 11.5 | AB79: 0.55 | AC79: 0.74 | AD79: 1.44 | AE79: 7.76 | AF79: 54.5 | AG79: 29.975 | AH79: 5900 | AI79: 415 | AJ79: 359 | AK79: 13 | AL79: 187 | AM79: 51.3 | AN79: 32.6 | AO79: 2.32 | AP79: 5.3 | AQ79: 48300 | AR79: 2.89 | AS79: 32.2 | AT79: 2.886336763 | AV79: N | AW79: S | AX79: =_xlfn.IFS($AE79<=$AX$5,"C",$AE79<=$AX$7,"N",TRUE,"S") -> C | AY79: =_xlfn.IFS($AF79<=$AY$5,"C",$AF79<=$AY$7,"N",TRUE,"S") -> C | AZ79: F2 | BA79: 8.194706497 | BB79: 24.87048677 | BC79: 0.0004584854409 | BD79: 2.102088995e-07 | BE79: 0.003626648002 | BF79: 0.06391504864 | BG79: 4669.414286 | BH79: 76.46341367 | BI79: 280.962909 | BJ79: 1.937279671 | BK79: 0.0004584854409 | BL79: 2.102088995e-07 | BM79: 0.003171248977 | BN79: 0.06024727727 | BO79: 4663.495542 | BP79: 76.46341367 | BQ79: 218.3788143
A80: W30X391 | B80: 30X391 | C80: 30 | X80: 391 | Y80: 115 | Z80: 33.2 | AA80: 15.6 | AB80: 1.36 | AC80: 2.44 | AD80: 3.23 | AE80: 3.19 | AF80: 19.7 | AG80: 26.792 | AH80: 20700 | AI80: 1450 | AJ80: 1250 | AK80: 13.4 | AL80: 1550 | AM80: 310 | AN80: 198 | AO80: 3.67 | AP80: 173 | AQ80: 366000 | AR80: 4.37 | AS80: 30.8 | AT80: 4.182062355 | AV80: N | AW80: N | AX80: =_xlfn.IFS($AE80<=$AX$5,"C",$AE80<=$AX$7,"N",TRUE,"S") -> C | AY80: =_xlfn.IFS($AF80<=$AY$5,"C",$AF80<=$AY$7,"N",TRUE,"S") -> C | AZ80: F2 | BA80: 12.96317795 | BB80: 53.02087639 | BC80: 0.004493506494 | BD80: 2.019160061e-05 | BE80: 0.003626648002 | BF80: 0.09011189985 | BG80: 7060.671429 | BH80: 110.7891386 | BI80: 674.8302203 | BJ80: 0.9572593527 | BK80: 0.004493506494 | BL80: 2.019160061e-05 | BM80: 0.005480712708 | BN80: 0.09987101282 | BO80: 6757.01789 | BP80: 110.7891386 | BQ80: 316.4127728
A81: W30X357 | B81: 30X357 | C81: 30 | X81: 357 | Y81: 105 | Z81: 32.8 | AA81: 15.5 | AB81: 1.24 | AC81: 2.24 | AD81: 3.03 | AE81: 3.45 | AF81: 21.6 | AG81: 26.784 | AH81: 18700 | AI81: 1320 | AJ81: 1140 | AK81: 13.3 | AL81: 1390 | AM81: 279 | AN81: 179 | AO81: 3.64 | AP81: 134 | AQ81: 324000 | AR81: 4.31 | AS81: 30.6 | AT81: 4.155459711 | AV81: N | AW81: N | AX81: =_xlfn.IFS($AE81<=$AX$5,"C",$AE81<=$AX$7,"N",TRUE,"S") -> C | AY81: =_xlfn.IFS($AF81<=$AY$5,"C",$AF81<=$AY$7,"N",TRUE,"S") -> C | AZ81: F2 | BA81: 12.85721192 | BB81: 50.14888799 | BC81: 0.003841302603 | BD81: 1.475560569e-05 | BE81: 0.003626648002 | BF81: 0.08641730501 | BG81: 6963.728571 | BH81: 110.0843945 | BI81: 629.8812078 | BJ81: 0.9565714286 | BK81: 0.003841302603 | BL81: 1.475560569e-05 | BM81: 0.004960062184 | BN81: 0.09381558925 | BO81: 6714.035618 | BP81: 110.0843945 | BQ81: 314.4000299
A82: W30X326 | B82: 30X326 | C82: 30 | X82: 326 | Y82: 95.9 | Z82: 32.4 | AA82: 15.4 | AB82: 1.14 | AC82: 2.05 | AD82: 2.84 | AE82: 3.75 | AF82: 23.4 | AG82: 26.676 | AH82: 16800 | AI82: 1190 | AJ82: 1040 | AK82: 13.2 | AL82: 1240 | AM82: 252 | AN82: 162 | AO82: 3.6 | AP82: 103 | AQ82: 287000 | AR82: 4.26 | AS82: 30.4 | AT82: 4.126662028 | AV82: N | AW82: N | AX82: =_xlfn.IFS($AE82<=$AX$5,"C",$AE82<=$AX$7,"N",TRUE,"S") -> C | AY82: =_xlfn.IFS($AF82<=$AY$5,"C",$AF82<=$AY$7,"N",TRUE,"S") -> C | AZ82: F2 | BA82: 12.71592388 | BB82: 47.59144287 | BC82: 0.00325784413 | BD82: 1.061354837e-05 | BE82: 0.003626648002 | BF82: 0.08297283972 | BG82: 6882.942857 | BH82: 109.3215004 | BI82: 588.1457181 | BJ82: 0.9632765283 | BK82: 0.00325784413 | BL82: 1.061354837e-05 | BM82: 0.004523290788 | BN82: 0.08821074151 | BO82: 6667.506791 | BP82: 109.3215004 | BQ82: 312.2212114
A83: W30X292 | B83: 30X292 | C83: 30 | X83: 292 | Y83: 86 | Z83: 32 | AA83: 15.3 | AB83: 1.02 | AC83: 1.85 | AD83: 2.64 | AE83: 4.12 | AF83: 26.2 | AG83: 26.724 | AH83: 14900 | AI83: 1060 | AJ83: 930 | AK83: 13.2 | AL83: 1100 | AM83: 223 | AN83: 144 | AO83: 3.58 | AP83: 75.2 | AQ83: 250000 | AR83: 4.22 | AS83: 30.2 | AT83: 4.099938975 | AV83: N | AW83: N | AX83: =_xlfn.IFS($AE83<=$AX$5,"C",$AE83<=$AX$7,"N",TRUE,"S") -> C | AY83: =_xlfn.IFS($AF83<=$AY$5,"C",$AF83<=$AY$7,"N",TRUE,"S") -> C | AZ83: F2 | BA83: 12.64527985 | BB83: 45.11372055 | BC83: 0.002677490565 | BD83: 7.168955724e-06 | BE83: 0.003626648002 | BF83: 0.07939860557 | BG83: 6818.314286 | BH83: 108.6135664 | BI83: 546.3559873 | BJ83: 0.963027027 | BK83: 0.002677490565 | BL83: 7.168955724e-06 | BM83: 0.004124992958 | BN83: 0.0824771697 | BO83: 6624.329972 | BP83: 108.6135664 | BQ83: 310.1993584
A84: W30X261 | B84: 30X261 | C84: 30 | X84: 261 | Y84: 77 | Z84: 31.6 | AA84: 15.2 | AB84: 0.93 | AC84: 1.65 | AD84: 2.44 | AE84: 4.59 | AF84: 28.7 | AG84: 26.691 | AH84: 13100 | AI84: 943 | AJ84: 829 | AK84: 13.1 | AL84: 959 | AM84: 196 | AN84: 127 | AO84: 3.53 | AP84: 54.1 | AQ84: 215000 | AR84: 4.16 | AS84: 30 | AT84: 4.065351862 | AV84: N | AW84: N | AX84: =_xlfn.IFS($AE84<=$AX$5,"C",$AE84<=$AX$7,"N",TRUE,"S") -> C | AY84: =_xlfn.IFS($AF84<=$AY$5,"C",$AF84<=$AY$7,"N",TRUE,"S") -> C | AZ84: F2 | BA84: 12.4686698 | BB84: 42.6642387 | BC84: 0.00217531162 | BD84: 4.731980646e-06 | BE84: 0.003626648002 | BF84: 0.07617059552 | BG84: 6721.371429 | BH84: 107.6973017 | BI84: 508.5142168 | BJ84: 0.9897380383 | BK84: 0.00217531162 | BL84: 4.731980646e-06 | BM84: 0.003818192219 | BN84: 0.07741772303 | BO84: 6568.44708 | BP84: 107.6973017 | BQ84: 307.5825145
A85: W30X235 | B85: 30X235 | C85: 30 | X85: 235 | Y85: 69.3 | Z85: 31.3 | AA85: 15.1 | AB85: 0.83 | AC85: 1.5 | AD85: 2.29 | AE85: 5.02 | AF85: 32.2 | AG85: 26.726 | AH85: 11700 | AI85: 847 | AJ85: 748 | AK85: 13 | AL85: 855 | AM85: 175 | AN85: 114 | AO85: 3.51 | AP85: 40.3 | AQ85: 190000 | AR85: 4.13 | AS85: 29.8 | AT85: 4.041606664 | AV85: N | AW85: N | AX85: =_xlfn.IFS($AE85<=$AX$5,"C",$AE85<=$AX$7,"N",TRUE,"S") -> C | AY85: =_xlfn.IFS($AF85<=$AY$5,"C",$AF85<=$AY$7,"N",TRUE,"S") -> C | AZ85: F2 | BA85: 12.39802578 | BB85: 40.9937087 | BC85: 0.0018079532 | BD85: 3.268694772e-06 | BE85: 0.003626648002 | BF85: 0.0737197477 | BG85: 6672.9 | BH85: 107.0682556 | BI85: 481.1681787 | BJ85: 0.9793633554 | BK85: 0.0018079532 | BL85: 3.268694772e-06 | BM85: 0.003621506033 | BN85: 0.07368486434 | BO85: 6530.081625 | BP85: 107.0682556 | BQ85: 305.7859646
A86: W30X211 | B86: 30X211 | C86: 30 | X86: 211 | Y86: 62.3 | Z86: 30.9 | AA86: 15.1 | AB86: 0.775 | AC86: 1.32 | AD86: 2.1 | AE86: 5.74 | AF86: 34.5 | AG86: 26.7375 | AH86: 10300 | AI86: 751 | AJ86: 665 | AK86: 12.9 | AL86: 757 | AM86: 155 | AN86: 100 | AO86: 3.49 | AP86: 28.4 | AQ86: 166000 | AR86: 4.11 | AS86: 29.6 | AT86: 4.024274188 | AV86: N | AW86: N | AX86: =_xlfn.IFS($AE86<=$AX$5,"C",$AE86<=$AX$7,"N",TRUE,"S") -> C | AY86: =_xlfn.IFS($AF86<=$AY$5,"C",$AF86<=$AY$7,"N",TRUE,"S") -> C | AZ86: F2 | BA86: 12.32738176 | BB86: 39.40082482 | BC86: 0.00144279618 | BD86: 2.081660816e-06 | BE86: 0.003626648002 | BF86: 0.07120002936 | BG86: 6640.585714 | BH86: 106.6090921 | BI86: 454.9841878 | BJ86: 1.039612809 | BK86: 0.00144279618 | BL86: 2.081660816e-06 | BM86: 0.003453733052 | BN86: 0.0699752044 | BO86: 6502.077295 | BP86: 106.6090921 | BQ86: 304.474598
A87: W30X191 | B87: 30X191 | C87: 30 | X87: 191 | Y87: 56.1 | Z87: 30.7 | AA87: 15 | AB87: 0.71 | AC87: 1.19 | AD87: 1.97 | AE87: 6.35 | AF87: 37.7 | AG87: 26.767 | AH87: 9200 | AI87: 675 | AJ87: 600 | AK87: 12.8 | AL87: 673 | AM87: 138 | AN87: 89.5 | AO87: 3.46 | AP87: 21 | AQ87: 146000 | AR87: 4.06 | AS87: 29.5 | AT87: 3.99052429 | AV87: N | AW87: S | AX87: =_xlfn.IFS($AE87<=$AX$5,"C",$AE87<=$AX$7,"N",TRUE,"S") -> C | AY87: =_xlfn.IFS($AF87<=$AY$5,"C",$AF87<=$AY$7,"N",TRUE,"S") -> C | AZ87: F2 | BA87: 12.22141572 | BB87: 37.92462404 | BC87: 0.001186440678 | BD87: 1.407641482e-06 | BE87: 0.003626648002 | BF87: 0.06937642741 | BG87: 6559.8 | BH87: 105.7150064 | BI87: 434.4889302 | BJ87: 1.064681793 | BK87: 0.001186440678 | BL87: 1.407641482e-06 | BM87: 0.003354735855 | BN87: 0.06738825219 | BO87: 6447.547103 | BP87: 105.7150064 | BQ87: 301.9210974
A88: W30X173 | B88: 30X173 | C88: 30 | X88: 173 | Y88: 50.9 | Z88: 30.4 | AA88: 15 | AB88: 0.655 | AC88: 1.07 | AD88: 1.85 | AE88: 7.04 | AF88: 40.8 | AG88: 26.724 | AH88: 8230 | AI88: 607 | AJ88: 541 | AK88: 12.7 | AL88: 598 | AM88: 123 | AN88: 79.8 | AO88: 3.42 | AP88: 15.6 | AQ88: 129000 | AR88: 4.03 | AS88: 29.3 | AT88: 3.983222774 | AV88: N | AW88: S | AX88: =_xlfn.IFS($AE88<=$AX$5,"C",$AE88<=$AX$7,"N",TRUE,"S") -> C | AY88: =_xlfn.IFS($AF88<=$AY$5,"C",$AF88<=$AY$7,"N",TRUE,"S") -> C | AZ88: F2 | BA88: 12.08012768 | BB88: 36.84480345 | BC88: 0.0009841464107 | BD88: 9.685441577e-07 | BE88: 0.003626648002 | BF88: 0.06790283066 | BG88: 6511.328571 | BH88: 105.5215783 | BI88: 420.6828144 | BJ88: 1.090605607 | BK88: 0.0009841464107 | BL88: 9.685441577e-07 | BM88: 0.003288640347 | BN88: 0.06536655688 | BO88: 6435.749939 | BP88: 105.5215783 | BQ88: 301.3686683
A89: W30X148 | B89: 30X148 | C89: 30 | X89: 148 | Y89: 43.6 | Z89: 30.7 | AA89: 10.5 | AB89: 0.65 | AC89: 1.18 | AD89: 1.83 | AE89: 4.44 | AF89: 41.6 | AG89: 27.04 | AH89: 6680 | AI89: 500 | AJ89: 436 | AK89: 12.4 | AL89: 227 | AM89: 68 | AN89: 43.3 | AO89: 2.28 | AP89: 14.5 | AQ89: 49400 | AR89: 2.77 | AS89: 29.5 | AT89: 2.725928098 | AV89: N | AW89: S | AX89: =_xlfn.IFS($AE89<=$AX$5,"C",$AE89<=$AX$7,"N",TRUE,"S") -> C | AY89: =_xlfn.IFS($AF89<=$AY$5,"C",$AF89<=$AY$7,"N",TRUE,"S") -> C | AZ89: F2 | BA89: 8.053418454 | BB89: 25.71536373 | BC89: 0.001127351889 | BD89: 1.270922282e-06 | BE89: 0.003626648002 | BF89: 0.06894925591 | BG89: 4475.528571 | BH89: 72.21394621 | BI89: 294.1891383 | BJ89: 1.418563358 | BK89: 0.001127351889 | BL89: 1.270922282e-06 | BM89: 0.003334296546 | BN89: 0.06679557198 | BO89: 4404.320969 | BP89: 72.21394621 | BQ89: 206.2423739
A90: W30X132 | B90: 30X132 | C90: 30 | X90: 132 | Y90: 38.8 | Z90: 30.3 | AA90: 10.5 | AB90: 0.615 | AC90: 1 | AD90: 1.65 | AE90: 5.27 | AF90: 43.9 | AG90: 26.9985 | AH90: 5770 | AI90: 437 | AJ90: 380 | AK90: 12.2 | AL90: 196 | AM90: 58.4 | AN90: 37.2 | AO90: 2.25 | AP90: 9.72 | AQ90: 42100 | AR90: 2.75 | AS90: 29.3 | AT90: 2.696505397 | AV90: N | AW90: S | AX90: =_xlfn.IFS($AE90<=$AX$5,"C",$AE90<=$AX$7,"N",TRUE,"S") -> C | AY90: =_xlfn.IFS($AF90<=$AY$5,"C",$AF90<=$AY$7,"N",TRUE,"S") -> C | AZ90: F2 | BA90: 7.947452422 | BB90: 24.83735595 | BC90: 0.0008730016167 | BD90: 7.621318227e-07 | BE90: 0.003626648002 | BF90: 0.06707942768 | BG90: 4443.214286 | BH90: 71.43449449 | BI90: 279.9926114 | BJ90: 1.581340714 | BK90: 0.0008730016167 | BL90: 7.621318227e-07 | BM90: 0.003257106538 | BN90: 0.06426591752 | BO90: 4356.782291 | BP90: 71.43449449 | BQ90: 204.0162669
A91: W30X124 | B91: 30X124 | C91: 30 | X91: 124 | Y91: 36.5 | Z91: 30.2 | AA91: 10.5 | AB91: 0.585 | AC91: 0.93 | AD91: 1.58 | AE91: 5.65 | AF91: 46.2 | AG91: 27.027 | AH91: 5360 | AI91: 408 | AJ91: 355 | AK91: 12.1 | AL91: 181 | AM91: 54 | AN91: 34.4 | AO91: 2.23 | AP91: 7.99 | AQ91: 38600 | AR91: 2.73 | AS91: 29.3 | AT91: 2.689810205 | AV91: N | AW91: S | AX91: =_xlfn.IFS($AE91<=$AX$5,"C",$AE91<=$AX$7,"N",TRUE,"S") -> C | AY91: =_xlfn.IFS($AF91<=$AY$5,"C",$AF91<=$AY$7,"N",TRUE,"S") -> C | AZ91: F2 | BA91: 7.8768084 | BB91: 24.3677731 | BC91: 0.0007681584387 | BD91: 5.900673869e-07 | BE91: 0.003626648002 | BF91: 0.06629333632 | BG91: 4410.9 | BH91: 71.25712877 | BI91: 274.8197655 | BJ91: 1.619129032 | BK91: 0.0007681584387 | BL91: 5.900673869e-07 | BM91: 0.003230584864 | BN91: 0.06323561736 | BO91: 4345.964774 | BP91: 71.25712877 | BQ91: 203.509712
A92: W30X116 | B92: 30X116 | C92: 30 | X92: 116 | Y92: 34.2 | Z92: 30 | AA92: 10.5 | AB92: 0.565 | AC92: 0.85 | AD92: 1.5 | AE92: 6.17 | AF92: 47.8 | AG92: 27.007 | AH92: 4930 | AI92: 378 | AJ92: 329 | AK92: 12 | AL92: 164 | AM92: 49.2 | AN92: 31.3 | AO92: 2.19 | AP92: 6.43 | AQ92: 34900 | AR92: 2.7 | AS92: 29.2 | AT92: 2.673966318 | AV92: N | AW92: S | AX92: =_xlfn.IFS($AE92<=$AX$5,"C",$AE92<=$AX$7,"N",TRUE,"S") -> C | AY92: =_xlfn.IFS($AF92<=$AY$5,"C",$AF92<=$AY$7,"N",TRUE,"S") -> C | AZ92: F2 | BA92: 7.735520357 | BB92: 23.82744518 | BC92: 0.0006693175667 | BD92: 4.479860051e-07 | BE92: 0.003626648002 | BF92: 0.06554361577 | BG92: 4362.428571 | BH92: 70.8374003 | BI92: 269.0390213 | BJ92: 1.709686835 | BK92: 0.0006693175667 | BL92: 4.479860051e-07 | BM92: 0.003208519469 | BN92: 0.06227228144 | BO92: 4320.36558 | BP92: 70.8374003 | BQ92: 202.3109713
A93: W30X108 | B93: 30X108 | C93: 30 | X93: 108 | Y93: 31.7 | Z93: 29.8 | AA93: 10.5 | AB93: 0.545 | AC93: 0.76 | AD93: 1.41 | AE93: 6.89 | AF93: 49.6 | AG93: 27.032 | AH93: 4470 | AI93: 346 | AJ93: 299 | AK93: 11.9 | AL93: 146 | AM93: 43.9 | AN93: 27.9 | AO93: 2.15 | AP93: 4.99 | AQ93: 30900 | AR93: 2.67 | AS93: 29 | AT93: 2.650607562 | AV93: N | AW93: S | AX93: =_xlfn.IFS($AE93<=$AX$5,"C",$AE93<=$AX$7,"N",TRUE,"S") -> C | AY93: =_xlfn.IFS($AF93<=$AY$5,"C",$AF93<=$AY$7,"N",TRUE,"S") -> C | AZ93: F2 | BA93: 7.594232314 | BB93: 23.30393691 | BC93: 0.00057548149 | BD93: 3.311789454e-07 | BE93: 0.003626648002 | BF93: 0.06482383429 | BG93: 4313.957143 | BH93: 70.21859163 | BI93: 262.8061546 | BJ93: 1.846170426 | BK93: 0.00057548149 | BL93: 3.311789454e-07 | BM93: 0.003190264898 | BN93: 0.06136567761 | BO93: 4282.624504 | BP93: 70.21859163 | BQ93: 200.5436593
A94: W30X99 | B94: 30X99 | C94: 30 | X94: 99 | Y94: 29 | Z94: 29.7 | AA94: 10.5 | AB94: 0.52 | AC94: 0.67 | AD94: 1.32 | AE94: 7.8 | AF94: 51.9 | AG94: 26.988 | AH94: 3990 | AI94: 312 | AJ94: 269 | AK94: 11.7 | AL94: 128 | AM94: 38.6 | AN94: 24.5 | AO94: 2.1 | AP94: 3.77 | AQ94: 26800 | AR94: 2.62 | AS94: 29 | AT94: 2.625845558 | AV94: N | AW94: S | AX94: =_xlfn.IFS($AE94<=$AX$5,"C",$AE94<=$AX$7,"N",TRUE,"S") -> C | AY94: =_xlfn.IFS($AF94<=$AY$5,"C",$AF94<=$AY$7,"N",TRUE,"S") -> C | AZ94: F2 | BA94: 7.417622261 | BB94: 22.61524315 | BC94: 0.0004832713755 | BD94: 2.335512223e-07 | BE94: 0.003626648002 | BF94: 0.0641086529 | BG94: 4233.171429 | BH94: 69.56260879 | BI94: 256.606338 | BJ94: 1.994848614 | BK94: 0.0004832713755 | BL94: 2.335512223e-07 | BM94: 0.003174927149 | BN94: 0.06048304328 | BO94: 4242.61618 | BP94: 69.56260879 | BQ94: 198.6701783
A95: W30X90 | B95: 30X90 | C95: 30 | X95: 90 | Y95: 26.3 | Z95: 29.5 | AA95: 10.4 | AB95: 0.47 | AC95: 0.61 | AD95: 1.26 | AE95: 8.52 | AF95: 57.5 | AG95: 27.025 | AH95: 3610 | AI95: 283 | AJ95: 245 | AK95: 11.7 | AL95: 115 | AM95: 34.7 | AN95: 22.1 | AO95: 2.09 | AP95: 2.84 | AQ95: 24000 | AR95: 2.6 | AS95: 28.9 | AT95: 2.599647869 | AV95: N | AW95: S | AX95: =_xlfn.IFS($AE95<=$AX$5,"C",$AE95<=$AX$7,"N",TRUE,"S") -> C | AY95: =_xlfn.IFS($AF95<=$AY$5,"C",$AF95<=$AY$7,"N",TRUE,"S") -> C | AZ95: F2 | BA95: 7.38230025 | BB95: 22.21712709 | BC95: 0.0004011016171 | BD95: 1.608825073e-07 | BE95: 0.003626648002 | BF95: 0.06346455403 | BG95: 4200.857143 | BH95: 68.8685925 | BI95: 250.7738763 | BJ95: 2.002167402 | BK95: 0.0004011016171 | BL95: 1.608825073e-07 | BM95: 0.003163462294 | BN95: 0.05970396897 | BO95: 4200.288199 | BP95: 68.8685925 | BQ95: 196.6880741
A96: W27X539 | B96: 27X539 | C96: 27 | X96: 539 | Y96: 159 | Z96: 32.5 | AA96: 15.3 | AB96: 1.97 | AC96: 3.54 | AD96: 4.33 | AE96: 2.15 | AF96: 12.1 | AG96: 23.837 | AH96: 25600 | AI96: 1890 | AJ96: 1570 | AK96: 12.7 | AL96: 2110 | AM96: 437 | AN96: 277 | AO96: 3.65 | AP96: 496 | AQ96: 443000 | AR96: 4.41 | AS96: 29 | AT96: 4.128503477 | AV96: N | AW96: N | AX96: =_xlfn.IFS($AE96<=$AX$5,"C",$AE96<=$AX$7,"N",TRUE,"S") -> C | AY96: =_xlfn.IFS($AF96<=$AY$5,"C",$AF96<=$AY$7,"N",TRUE,"S") -> C | AZ96: F2 | BA96: 12.89253393 | BB96: 71.55066138 | BC96: 0.0108939161 | BD96: 0.000118677408 | BE96: 0.003626648002 | BF96: 0.1205013033 | BG96: 7125.3 | BH96: 109.3702832 | BI96: 994.5677444 | BJ96: 0.8670080499 | BK96: 0.0108939161 | BL96: 0.000118677408 | BM96: 0.01133684344 | BN96: 0.1490998308 | BO96: 6670.482047 | BP96: 109.3702832 | BQ96: 312.3605346
A97: W27X368 | B97: 27X368 | C97: 27 | X97: 368 | Y97: 109 | Z97: 30.4 | AA97: 14.7 | AB97: 1.38 | AC97: 2.48 | AD97: 3.27 | AE97: 2.96 | AF97: 17.3 | AG97: 23.874 | AH97: 16200 | AI97: 1240 | AJ97: 1060 | AK97: 12.2 | AL97: 1310 | AM97: 279 | AN97: 179 | AO97: 3.48 | AP97: 170 | AQ97: 255000 | AR97: 4.15 | AS97: 27.9 | AT97: 3.956039898 | AV97: N | AW97: N | AX97: =_xlfn.IFS($AE97<=$AX$5,"C",$AE97<=$AX$7,"N",TRUE,"S") -> C | AY97: =_xlfn.IFS($AF97<=$AY$5,"C",$AF97<=$AY$7,"N",TRUE,"S") -> C | AZ97: F2 | BA97: 12.29205975 | BB97: 54.10229321 | BC97: 0.005748292419 | BD97: 3.304286573e-05 | BE97: 0.003626648002 | BF97: 0.09682427599 | BG97: 6705.214286 | BH97: 104.8014629 | BI97: 708.8103988 | BJ97: 0.903722844 | BK97: 0.005748292419 | BL97: 3.304286573e-05 | BM97: 0.006549005796 | BN97: 0.1108931838 | BO97: 6391.830178 | BP97: 104.8014629 | BQ97: 299.3120253
A98: W27X336 | B98: 27X336 | C98: 27 | X98: 336 | Y98: 99.2 | Z98: 30 | AA98: 14.6 | AB98: 1.26 | AC98: 2.28 | AD98: 3.07 | AE98: 3.19 | AF98: 18.9 | AG98: 23.814 | AH98: 14600 | AI98: 1130 | AJ98: 972 | AK98: 12.1 | AL98: 1180 | AM98: 252 | AN98: 162 | AO98: 3.45 | AP98: 131 | AQ98: 226000 | AR98: 4.1 | AS98: 27.7 | AT98: 3.929790627 | AV98: N | AW98: N | AX98: =_xlfn.IFS($AE98<=$AX$5,"C",$AE98<=$AX$7,"N",TRUE,"S") -> C | AY98: =_xlfn.IFS($AF98<=$AY$5,"C",$AF98<=$AY$7,"N",TRUE,"S") -> C | AZ98: F2 | BA98: 12.18609371 | BB98: 50.87159075 | BC98: 0.004865475182 | BD98: 2.367284875e-05 | BE98: 0.003626648002 | BF98: 0.09215271664 | BG98: 6624.428571 | BH98: 104.1060801 | BI98: 655.4087304 | BJ98: 0.9013950973 | BK98: 0.004865475182 | BL98: 2.367284875e-05 | BM98: 0.005789599289 | BN98: 0.1032234202 | BO98: 6349.418856 | BP98: 104.1060801 | BQ98: 297.3260184
A99: W27X307 | B99: 27X307 | C99: 27 | X99: 307 | Y99: 90.2 | Z99: 29.6 | AA99: 14.4 | AB99: 1.16 | AC99: 2.09 | AD99: 2.88 | AE99: 3.46 | AF99: 20.6 | AG99: 23.896 | AH99: 13100 | AI99: 1030 | AJ99: 887 | AK99: 12 | AL99: 1050 | AM99: 227 | AN99: 146 | AO99: 3.41 | AP99: 101 | AQ99: 199000 | AR99: 4.04 | AS99: 27.5 | AT99: 3.870455562 | AV99: N | AW99: N | AX99: =_xlfn.IFS($AE99<=$AX$5,"C",$AE99<=$AX$7,"N",TRUE,"S") -> C | AY99: =_xlfn.IFS($AF99<=$AY$5,"C",$AF99<=$AY$7,"N",TRUE,"S") -> C | AZ99: F2 | BA99: 12.04480567 | BB99: 47.94007897 | BC99: 0.004140616993 | BD99: 1.714470908e-05 | BE99: 0.003626648002 | BF99: 0.08813208834 | BG99: 6527.485714 | BH99: 102.5342048 | BI99: 604.23453 | BJ99: 0.9210313663 | BK99: 0.004140616993 | BL99: 1.714470908e-05 | BM99: 0.005195317147 | BN99: 0.09662263782 | BO99: 6253.550344 | BP99: 102.5342048 | BQ99: 292.8367567
A100: W27X281 | B100: 27X281 | C100: 27 | X100: 281 | Y100: 83.1 | Z100: 29.3 | AA100: 14.4 | AB100: 1.06 | AC100: 1.93 | AD100: 2.72 | AE100: 3.72 | AF100: 22.5 | AG100: 23.85 | AH100: 11900 | AI100: 936 | AJ100: 814 | AK100: 12 | AL100: 953 | AM100: 206 | AN100: 133 | AO100: 3.39 | AP100: 79.5 | AQ100: 178000 | AR100: 4 | AS100: 27.4 | AT100: 3.873641826 | AV100: N | AW100: N | AX100: =_xlfn.IFS($AE100<=$AX$5,"C",$AE100<=$AX$7,"N",TRUE,"S") -> C | AY100: =_xlfn.IFS($AF100<=$AY$5,"C",$AF100<=$AY$7,"N",TRUE,"S") -> C | AZ100: F2 | BA100: 11.97416165 | BB100: 45.67103179 | BC100: 0.003564446995 | BD100: 1.270528238e-05 | BE100: 0.003626648002 | BF100: 0.08480032427 | BG100: 6462.857143 | BH100: 102.6186137 | BI100: 570.652267 | BJ100: 0.9096502591 | BK100: 0.003564446995 | BL100: 1.270528238e-05 | BM100: 0.004748883401 | BN100: 0.09117746649 | BO100: 6258.698436 | BP100: 102.6186137 | BQ100: 293.0778279
A101: W27X258 | B101: 27X258 | C101: 27 | X101: 258 | Y101: 76.1 | Z101: 29 | AA101: 14.3 | AB101: 0.98 | AC101: 1.77 | AD101: 2.56 | AE101: 4.03 | AF101: 24.4 | AG101: 23.912 | AH101: 10800 | AI101: 852 | AJ101: 745 | AK101: 11.9 | AL101: 859 | AM101: 187 | AN101: 120 | AO101: 3.36 | AP101: 61.6 | AQ101: 159000 | AR101: 3.96 | AS101: 27.2 | AT101: 3.842244794 | AV101: N | AW101: N | AX101: =_xlfn.IFS($AE101<=$AX$5,"C",$AE101<=$AX$7,"N",TRUE,"S") -> C | AY101: =_xlfn.IFS($AF101<=$AY$5,"C",$AF101<=$AY$7,"N",TRUE,"S") -> C | AZ101: F2 | BA101: 11.86819562 | BB101: 43.53395784 | BC101: 0.003039873668 | BD101: 9.240831915e-06 | BE101: 0.003626648002 | BF101: 0.08164877016 | BG101: 6398.228571 | BH101: 101.786859 | BI101: 534.3468855 | BJ101: 0.925833037 | BK101: 0.003039873668 | BL101: 9.240831915e-06 | BM101: 0.00436891784 | BN101: 0.0860743371 | BO101: 6207.969802 | BP101: 101.786859 | BQ101: 290.7023439
A102: W27X235 | B102: 27X235 | C102: 27 | X102: 235 | Y102: 69.4 | Z102: 28.7 | AA102: 14.2 | AB102: 0.91 | AC102: 1.61 | AD102: 2.4 | AE102: 4.41 | AF102: 26.2 | AG102: 23.842 | AH102: 9700 | AI102: 772 | AJ102: 677 | AK102: 11.8 | AL102: 769 | AM102: 168 | AN102: 108 | AO102: 3.33 | AP102: 47 | AQ102: 141000 | AR102: 3.92 | AS102: 27.1 | AT102: 3.809008501 | AV102: N | AW102: N | AX102: =_xlfn.IFS($AE102<=$AX$5,"C",$AE102<=$AX$7,"N",TRUE,"S") -> C | AY102: =_xlfn.IFS($AF102<=$AY$5,"C",$AF102<=$AY$7,"N",TRUE,"S") -> C | AZ102: F2 | BA102: 11.76222958 | BB102: 41.52017327 | BC102: 0.002561768601 | BD102: 6.562658367e-06 | BE102: 0.003626648002 | BF102: 0.07866648971 | BG102: 6333.6 | BH102: 100.9063795 | BI102: 500.4523964 | BJ102: 0.9490079608 | BK102: 0.002561768601 | BL102: 6.562658367e-06 | BM102: 0.00405083566 | BN102: 0.08131792091 | BO102: 6154.26945 | BP102: 100.9063795 | BQ102: 288.1877024
A103: W27X217 | B103: 27X217 | C103: 27 | X103: 217 | Y103: 63.9 | Z103: 28.4 | AA103: 14.1 | AB103: 0.83 | AC103: 1.5 | AD103: 2.29 | AE103: 4.71 | AF103: 28.7 | AG103: 23.821 | AH103: 8910 | AI103: 711 | AJ103: 627 | AK103: 11.8 | AL103: 704 | AM103: 154 | AN103: 100 | AO103: 3.32 | AP103: 37.6 | AQ103: 128000 | AR103: 3.89 | AS103: 26.9 | AT103: 3.786051678 | AV103: N | AW103: N | AX103: =_xlfn.IFS($AE103<=$AX$5,"C",$AE103<=$AX$7,"N",TRUE,"S") -> C | AY103: =_xlfn.IFS($AF103<=$AY$5,"C",$AF103<=$AY$7,"N",TRUE,"S") -> C | AZ103: F2 | BA103: 11.72690757 | BB103: 40.08034327 | BC103: 0.002229297475 | BD103: 4.969767231e-06 | BE103: 0.003626648002 | BF103: 0.07652414963 | BG103: 6285.128571 | BH103: 100.2982186 | BI103: 476.9242419 | BJ103: 0.9348193853 | BK103: 0.002229297475 | BL103: 4.969767231e-06 | BM103: 0.003849204906 | BN103: 0.07796475089 | BO103: 6117.177782 | BP103: 100.2982186 | BQ103: 286.4508005
A104: W27X194 | B104: 27X194 | C104: 27 | X104: 194 | Y104: 57.1 | Z104: 28.1 | AA104: 14 | AB104: 0.75 | AC104: 1.34 | AD104: 2.13 | AE104: 5.24 | AF104: 31.8 | AG104: 23.85 | AH104: 7860 | AI104: 631 | AJ104: 559 | AK104: 11.7 | AL104: 619 | AM104: 136 | AN104: 88.1 | AO104: 3.29 | AP104: 27.1 | AQ104: 111000 | AR104: 3.85 | AS104: 26.8 | AT104: =$AA104/(SQRT(12*(1+$BJ104/6))) -> 3.754149598 | AV104: =IF($AE104<=$AV$7,"N","S") -> N | AW104: =IF($AF104<=$AW$7,"N","S") -> N | AX104: =_xlfn.IFS($AE104<=$AX$5,"C",$AE104<=$AX$7,"N",TRUE,"S") -> C | AY104: =_xlfn.IFS($AF104<=$AY$5,"C",$AF104<=$AY$7,"N",TRUE,"S") -> C | AZ104: F2 | BA104: 11.62094154 | BB104: 38.21792193 | BC104: 0.001808933864 | BD104: 3.272241724e-06 | BE104: =SQRT($BD$8+$BC$5) -> 0.003626648002 | BF104: 0.0737263987 | BG104: 6220.5 | BH104: 99.45308438 | BI104: 447.0058687 | BJ104: 0.9534914712 | BK104: 0.001808933864 | BL104: 3.272241724e-06 | BM104: 0.003621995707 | BN104: 0.07369484087 | BO104: =1.95*$AT104*E/$BJ$5 -> 6065.633136 | BP104: 99.45308438 | BQ104: =pi*$AT104*SQRT(E/Fy) -> 284.0371049
A105: W27X178 | B105: 27X178 | C105: 27 | X105: 178 | Y105: 52.5 | Z105: 27.8 | AA105: 14.1 | AB105: 0.725 | AC105: 1.19 | AD105: 1.98 | AE105: 5.92 | AF105: 32.9 | AG105: 23.8525 | AH105: 7020 | AI105: 570 | AJ105: 505 | AK105: 11.6 | AL105: 555 | AM105: 122 | AN105: 78.8 | AO105: 3.25 | AP105: 20.1 | AQ105: 98400 | AR105: 3.83 | AS105: 26.6 | AT105: 3.760163845 | AV105: N | AW105: N | AX105: =_xlfn.IFS($AE105<=$AX$5,"C",$AE105<=$AX$7,"N",TRUE,"S") -> C | AY105: =_xlfn.IFS($AF105<=$AY$5,"C",$AF105<=$AY$7,"N",TRUE,"S") -> C | AZ105: F2 | BA105: 11.4796535 | BB105: 36.90988605 | BC105: 0.001496315045 | BD105: 2.238958714e-06 | BE105: 0.003626648002 | BF105: 0.0715748772 | BG105: 6188.185714 | BH105: 99.61241086 | BI105: 428.419725 | BJ105: 1.030637255 | BK105: 0.001496315045 | BL105: 2.238958714e-06 | BM105: 0.003476430625 | BN105: 0.07051769757 | BO105: 6075.350441 | BP105: 99.61241086 | BQ105: 284.4921398
A106: W27X161 | B106: 27X161 | C106: 27 | X106: 161 | Y106: 47.6 | Z106: 27.6 | AA106: 14 | AB106: 0.66 | AC106: 1.08 | AD106: 1.87 | AE106: 6.49 | AF106: 36.1 | AG106: 23.826 | AH106: 6310 | AI106: 515 | AJ106: 458 | AK106: 11.5 | AL106: 497 | AM106: 109 | AN106: 70.9 | AO106: 3.23 | AP106: 15.1 | AQ106: 87300 | AR106: 3.79 | AS106: 26.5 | AT106: 3.731006227 | AV106: N | AW106: S | AX106: =_xlfn.IFS($AE106<=$AX$5,"C",$AE106<=$AX$7,"N",TRUE,"S") -> C | AY106: =_xlfn.IFS($AF106<=$AY$5,"C",$AF106<=$AY$7,"N",TRUE,"S") -> C | AZ106: F2 | BA106: 11.40900948 | BB106: 35.61407553 | BC106: 0.001244129521 | BD106: 1.547858266e-06 | BE106: 0.003626648002 | BF106: 0.06979095588 | BG106: 6123.557143 | BH106: 98.83998159 | BI106: 409.7296376 | BJ106: 1.04002381 | BK106: 0.001244129521 | BL106: 1.547858266e-06 | BM106: 0.003375569499 | BN106: 0.06796836779 | BO106: 6028.240061 | BP106: 98.83998159 | BQ106: 282.2860889
A107: W27X146 | B107: 27X146 | C107: 27 | X107: 146 | Y107: 43.2 | Z107: 27.4 | AA107: 14 | AB107: 0.605 | AC107: 0.975 | AD107: 1.76 | AE107: 7.16 | AF107: 39.4 | AG107: 23.837 | AH107: 5660 | AI107: 464 | AJ107: 414 | AK107: 11.5 | AL107: 443 | AM107: 97.7 | AN107: 63.5 | AO107: 3.2 | AP107: 11.3 | AQ107: 77200 | AR107: 3.76 | AS107: 26.4 | AT107: 3.726644831 | AV107: N | AW107: S | AX107: =_xlfn.IFS($AE107<=$AX$5,"C",$AE107<=$AX$7,"N",TRUE,"S") -> C | AY107: =_xlfn.IFS($AF107<=$AY$5,"C",$AF107<=$AY$7,"N",TRUE,"S") -> C | AZ107: F2 | BA107: 11.30304344 | BB107: 34.56122862 | BC107: 0.001033889621 | BD107: 1.068927748e-06 | BE107: 0.003626648002 | BF107: 0.06826813036 | BG107: 6075.085714 | BH107: 98.72444164 | BI107: 396.5657228 | BJ107: 1.056511722 | BK107: 0.001033889621 | BL107: 1.068927748e-06 | BM107: 0.003303867268 | BN107: 0.06586164961 | BO107: 6021.193292 | BP107: 98.72444164 | BQ107: 281.9561078
A108: W27X129 | B108: 27X129 | C108: 27 | X108: 129 | Y108: 37.8 | Z108: 27.6 | AA108: 10 | AB108: 0.61 | AC108: 1.1 | AD108: 1.7 | AE108: 4.55 | AF108: 39.7 | AG108: 24.217 | AH108: 4760 | AI108: 395 | AJ108: 345 | AK108: 11.2 | AL108: 184 | AM108: 57.6 | AN108: 36.8 | AO108: 2.21 | AP108: 11.1 | AQ108: 32500 | AR108: 2.66 | AS108: 26.5 | AT108: 2.60945572 | AV108: N | AW108: S | AX108: =_xlfn.IFS($AE108<=$AX$5,"C",$AE108<=$AX$7,"N",TRUE,"S") -> C | AY108: =_xlfn.IFS($AF108<=$AY$5,"C",$AF108<=$AY$7,"N",TRUE,"S") -> C | AZ108: F2 | BA108: 7.806164379 | BB108: 24.91848521 | BC108: 0.001214109926 | BD108: 1.474062913e-06 | BE108: 0.003626648002 | BF108: 0.06957555553 | BG108: 4297.8 | BH108: 69.12841728 | BI108: 285.2903325 | BJ108: 1.342942727 | BK108: 0.001214109926 | BL108: 1.474062913e-06 | BM108: 0.003364620943 | BN108: 0.06766632005 | BO108: 4216.134885 | BP108: 69.12841728 | BQ108: 197.4301313
A109: W27X114 | B109: 27X114 | C109: 27 | X109: 114 | Y109: 33.6 | Z109: 27.3 | AA109: 10.1 | AB109: 0.57 | AC109: 0.93 | AD109: 1.53 | AE109: 5.41 | AF109: 42.5 | AG109: 24.225 | AH109: 4080 | AI109: 343 | AJ109: 299 | AK109: 11 | AL109: 159 | AM109: 49.3 | AN109: 31.5 | AO109: 2.18 | AP109: 7.33 | AQ109: 27600 | AR109: 2.65 | AS109: 26.4 | AT109: 2.613030048 | AV109: N | AW109: S | AX109: =_xlfn.IFS($AE109<=$AX$5,"C",$AE109<=$AX$7,"N",TRUE,"S") -> C | AY109: =_xlfn.IFS($AF109<=$AY$5,"C",$AF109<=$AY$7,"N",TRUE,"S") -> C | AZ109: F2 | BA109: 7.700198347 | BB109: 24.08159367 | BC109: 0.0009286003851 | BD109: 8.622986752e-07 | BE109: 0.003626648002 | BF109: 0.06749258023 | BG109: 4281.642857 | BH109: 69.22310662 | BI109: 273.6451547 | BJ109: 1.47005749 | BK109: 0.0009286003851 | BL109: 8.622986752e-07 | BM109: 0.003272447074 | BN109: 0.0648154878 | BO109: 4221.909978 | BP109: 69.22310662 | BQ109: 197.7005632
A110: W27X102 | B110: 27X102 | C110: 27 | X110: 102 | Y110: 30 | Z110: 27.1 | AA110: 10 | AB110: 0.515 | AC110: 0.83 | AD110: 1.43 | AE110: 6.03 | AF110: 47.1 | AG110: 24.2565 | AH110: 3620 | AI110: 305 | AJ110: 267 | AK110: 11 | AL110: 139 | AM110: 43.4 | AN110: 27.8 | AO110: 2.15 | AP110: 5.28 | AQ110: 24000 | AR110: 2.62 | AS110: 26.3 | AT110: 2.581116286 | AV110: N | AW110: S | AX110: =_xlfn.IFS($AE110<=$AX$5,"C",$AE110<=$AX$7,"N",TRUE,"S") -> C | AY110: =_xlfn.IFS($AF110<=$AY$5,"C",$AF110<=$AY$7,"N",TRUE,"S") -> C | AZ110: F2 | BA110: 7.594232314 | BB110: 23.34265515 | BC110: 0.0007519118213 | BD110: 5.653713869e-07 | BE110: 0.003626648002 | BF110: 0.06617068704 | BG110: 4233.171429 | BH110: 68.37766292 | BI110: 263.0517624 | BJ110: 1.505071988 | BK110: 0.0007519118213 | BL110: 5.653713869e-07 | BM110: 0.003226760382 | BN110: 0.06307671681 | BO110: 4170.346456 | BP110: 68.37766292 | BQ110: 195.2859837
A111: W27X94 | B111: 27X94 | C111: 27 | X111: 94 | Y111: 27.6 | Z111: 26.9 | AA111: 10 | AB111: 0.49 | AC111: 0.745 | AD111: 1.34 | AE111: 6.7 | AF111: 49.5 | AG111: 24.255 | AH111: 3270 | AI111: 278 | AJ111: 243 | AK111: 10.9 | AL111: 124 | AM111: 38.8 | AN111: 24.8 | AO111: 2.12 | AP111: 4.03 | AQ111: 21300 | AR111: 2.59 | AS111: 26.2 | AT111: 2.56574015 | AV111: N | AW111: S | AX111: =_xlfn.IFS($AE111<=$AX$5,"C",$AE111<=$AX$7,"N",TRUE,"S") -> C | AY111: =_xlfn.IFS($AF111<=$AY$5,"C",$AF111<=$AY$7,"N",TRUE,"S") -> C | AZ111: F2 | BA111: 7.488266282 | BB111: 22.75985424 | BC111: 0.0006329909214 | BD111: 4.006775065e-07 | BE111: 0.003626648002 | BF111: 0.06526590935 | BG111: 4184.7 | BH111: 67.9703259 | BI111: 256.6909919 | BJ111: 1.595295302 | BK111: 0.0006329909214 | BL111: 4.006775065e-07 | BM111: 0.003201138654 | BN111: 0.06192034864 | BO111: 4145.503014 | BP111: 67.9703259 | BQ111: 194.1226329
A112: W27X84 | B112: 27X84 | C112: 27 | X112: 84 | Y112: 24.7 | Z112: 26.7 | AA112: 10 | AB112: 0.46 | AC112: 0.64 | AD112: 1.24 | AE112: 7.78 | AF112: 52.7 | AG112: 24.242 | AH112: 2850 | AI112: 244 | AJ112: 213 | AK112: 10.7 | AL112: 106 | AM112: 33.2 | AN112: 21.2 | AO112: 2.07 | AP112: 2.81 | AQ112: 17900 | AR112: 2.54 | AS112: 26.1 | AT112: 2.541249903 | AV112: N | AW112: S | AX112: =_xlfn.IFS($AE112<=$AX$5,"C",$AE112<=$AX$7,"N",TRUE,"S") -> C | AY112: =_xlfn.IFS($AF112<=$AY$5,"C",$AF112<=$AY$7,"N",TRUE,"S") -> C | AZ112: F2 | BA112: 7.311656228 | BB112: 21.98380342 | BC112: 0.0005054593204 | BD112: 2.554891246e-07 | BE112: 0.003626648002 | BF112: 0.06428146951 | BG112: 4103.914286 | BH112: 67.32154232 | BI112: 249.2081767 | BJ112: 1.74239375 | BK112: 0.0005054593204 | BL112: 2.554891246e-07 | BM112: 0.003178380138 | BN112: 0.0606946411 | BO112: 4105.933772 | BP112: 67.32154232 | BQ112: 192.2697129
A113: W24X370 | B113: 24X370 | C113: 24 | X113: 370 | Y113: 109 | Z113: 28 | AA113: 13.7 | AB113: 1.52 | AC113: 2.72 | AD113: 3.22 | AE113: 2.51 | AF113: 14.2 | AG113: 21.584 | AH113: 13400 | AI113: 1130 | AJ113: 957 | AK113: 11.1 | AL113: 1160 | AM113: 267 | AN113: 170 | AO113: 3.27 | AP113: 201 | AQ113: 186000 | AR113: 3.92 | AS113: 25.3 | AT113: 3.693161852 | AV113: N | AW113: N | AX113: =_xlfn.IFS($AE113<=$AX$5,"C",$AE113<=$AX$7,"N",TRUE,"S") -> C | AY113: =_xlfn.IFS($AF113<=$AY$5,"C",$AF113<=$AY$7,"N",TRUE,"S") -> C | AZ113: F2 | BA113: 11.55029752 | BB113: 57.64456157 | BC113: 0.008301634307 | BD113: 6.891713216e-05 | BE113: 0.003626648002 | BF113: 0.109216676 | BG113: 6333.6 | BH113: 97.83742701 | BI113: 782.0429412 | BJ113: 0.8804121941 | BK113: 0.008301634307 | BL113: 6.891713216e-05 | BM113: 0.00887489399 | BN113: 0.1310592549 | BO113: 5967.094363 | BP113: 97.83742701 | BQ113: 279.4228021
A114: W24X335 | B114: 24X335 | C114: 24 | X114: 335 | Y114: 98.3 | Z114: 27.5 | AA114: 13.5 | AB114: 1.38 | AC114: 2.48 | AD114: 2.98 | AE114: 2.73 | AF114: 15.6 | AG114: 21.528 | AH114: 11900 | AI114: 1020 | AJ114: 864 | AK114: 11 | AL114: 1030 | AM114: 238 | AN114: 152 | AO114: 3.23 | AP114: 152 | AQ114: 161000 | AR114: 3.86 | AS114: 25 | AT114: 3.637412387 | AV114: N | AW114: N | AX114: =_xlfn.IFS($AE114<=$AX$5,"C",$AE114<=$AX$7,"N",TRUE,"S") -> C | AY114: =_xlfn.IFS($AF114<=$AY$5,"C",$AF114<=$AY$7,"N",TRUE,"S") -> C | AZ114: F2 | BA114: 11.40900948 | BB114: 53.66909576 | BC114: 0.007037037037 | BD114: 4.951989026e-05 | BE114: 0.003626648002 | BF114: 0.1032651201 | BG114: 6236.657143 | BH114: 96.36053961 | BI114: 713.5679819 | BJ114: 0.8873548387 | BK114: 0.007037037037 | BL114: 4.951989026e-05 | BM114: 0.007704966024 | BN114: 0.1214166507 | BO114: 5877.019156 | BP114: 96.36053961 | BQ114: 275.2048251
A115: W24X306 | B115: 24X306 | C115: 24 | X115: 306 | Y115: 89.7 | Z115: 27.1 | AA115: 13.4 | AB115: 1.26 | AC115: 2.28 | AD115: 2.78 | AE115: 2.94 | AF115: 17.1 | AG115: 21.546 | AH115: 10700 | AI115: 922 | AJ115: 789 | AK115: 10.9 | AL115: 919 | AM115: 214 | AN115: 137 | AO115: 3.2 | AP115: 117 | AQ115: 142000 | AR115: 3.81 | AS115: 24.8 | AT115: 3.610146961 | AV115: N | AW115: N | AX115: =_xlfn.IFS($AE115<=$AX$5,"C",$AE115<=$AX$7,"N",TRUE,"S") -> C | AY115: =_xlfn.IFS($AF115<=$AY$5,"C",$AF115<=$AY$7,"N",TRUE,"S") -> C | AZ115: F2 | BA115: 11.30304344 | BB115: 50.27829446 | BC115: 0.005979394088 | BD115: 3.575315366e-05 | BE115: 0.003626648002 | BF115: 0.09801041827 | BG115: 6155.871429 | BH115: 95.63823737 | BI115: 658.1734901 | BJ115: 0.8885820896 | BK115: 0.005979394088 | BL115: 3.575315366e-05 | BM115: 0.006752759794 | BN115: 0.1128368463 | BO115: 5832.966019 | BP115: 95.63823737 | BQ115: 273.1419365
A116: W24X279 | B116: 24X279 | C116: 24 | X116: 279 | Y116: 81.9 | Z116: 26.7 | AA116: 13.3 | AB116: 1.16 | AC116: 2.09 | AD116: 2.59 | AE116: 3.18 | AF116: 18.6 | AG116: 21.576 | AH116: 9600 | AI116: 835 | AJ116: 718 | AK116: 10.8 | AL116: 823 | AM116: 193 | AN116: 124 | AO116: 3.17 | AP116: 90.5 | AQ116: 125000 | AR116: 3.76 | AS116: 24.6 | AT116: 3.580138293 | AV116: N | AW116: N | AX116: =_xlfn.IFS($AE116<=$AX$5,"C",$AE116<=$AX$7,"N",TRUE,"S") -> C | AY116: =_xlfn.IFS($AF116<=$AY$5,"C",$AF116<=$AY$7,"N",TRUE,"S") -> C | AZ116: F2 | BA116: 11.19707741 | BB116: 47.35713146 | BC116: 0.005123762937 | BD116: 2.625294663e-05 | BE116: 0.003626648002 | BF116: 0.0935436312 | BG116: 6075.085714 | BH116: 94.8432625 | BI116: 610.3121473 | BJ116: 0.9003906896 | BK116: 0.005123762937 | BL116: 2.625294663e-05 | BM116: 0.006008290756 | BN116: 0.105508548 | BO116: 5784.480585 | BP116: 94.8432625 | BQ116: 270.8714955
A117: W24X250 | B117: 24X250 | C117: 24 | X117: 250 | Y117: 73.5 | Z117: 26.3 | AA117: 13.2 | AB117: 1.04 | AC117: 1.89 | AD117: 2.39 | AE117: 3.49 | AF117: 20.7 | AG117: 21.528 | AH117: 8490 | AI117: 744 | AJ117: 644 | AK117: 10.7 | AL117: 724 | AM117: 171 | AN117: 110 | AO117: 3.14 | AP117: 66.6 | AQ117: 108000 | AR117: 3.71 | AS117: 24.4 | AT117: 3.553982105 | AV117: N | AW117: N | AX117: =_xlfn.IFS($AE117<=$AX$5,"C",$AE117<=$AX$7,"N",TRUE,"S") -> C | AY117: =_xlfn.IFS($AF117<=$AY$5,"C",$AF117<=$AY$7,"N",TRUE,"S") -> C | AZ117: F2 | BA117: 11.09111138 | BB117: 44.30033391 | BC117: 0.004238366765 | BD117: 1.796375284e-05 | BE117: 0.003626648002 | BF117: 0.08868491848 | BG117: 5994.3 | BH117: 94.15034562 | BI117: 560.0333586 | BJ117: 0.8974314574 | BK117: 0.004238366765 | BL117: 1.796375284e-05 | BM117: 0.005273553263 | BN117: 0.09752907273 | BO117: 5742.219658 | BP117: 94.15034562 | BQ117: 268.8925312
A118: W24X229 | B118: 24X229 | C118: 24 | X118: 229 | Y118: 67.2 | Z118: 26 | AA118: 13.1 | AB118: 0.96 | AC118: 1.73 | AD118: 2.23 | AE118: 3.79 | AF118: 22.5 | AG118: 21.6 | AH118: 7650 | AI118: 675 | AJ118: 588 | AK118: 10.7 | AL118: 651 | AM118: 154 | AN118: 99.4 | AO118: 3.11 | AP118: 51.3 | AQ118: 96100 | AR118: 3.67 | AS118: 24.3 | AT118: 3.522581901 | AV118: N | AW118: N | AX118: =_xlfn.IFS($AE118<=$AX$5,"C",$AE118<=$AX$7,"N",TRUE,"S") -> C | AY118: =_xlfn.IFS($AF118<=$AY$5,"C",$AF118<=$AY$7,"N",TRUE,"S") -> C | AZ118: F2 | BA118: 10.98514535 | BB118: 41.97850077 | BC118: 0.003590325019 | BD118: 1.289043374e-05 | BE118: 0.003626648002 | BF118: 0.08495276935 | BG118: 5929.671429 | BH118: 93.31850686 | BI118: 520.3482116 | BJ118: 0.9149715395 | BK118: 0.003590325019 | BL118: 1.289043374e-05 | BM118: 0.004768337752 | BN118: 0.0914257227 | BO118: 5691.4859 | BP118: 93.31850686 | BQ118: 266.5168072
A119: W24X207 | B119: 24X207 | C119: 24 | X119: 207 | Y119: 60.7 | Z119: 25.7 | AA119: 13 | AB119: 0.87 | AC119: 1.57 | AD119: 2.07 | AE119: 4.14 | AF119: 24.8 | AG119: 21.576 | AH119: 6820 | AI119: 606 | AJ119: 531 | AK119: 10.6 | AL119: 578 | AM119: 137 | AN119: 88.8 | AO119: 3.08 | AP119: 38.3 | AQ119: 84100 | AR119: 3.62 | AS119: 24.1 | AT119: 3.494496865 | AV119: N | AW119: N | AX119: =_xlfn.IFS($AE119<=$AX$5,"C",$AE119<=$AX$7,"N",TRUE,"S") -> C | AY119: =_xlfn.IFS($AF119<=$AY$5,"C",$AF119<=$AY$7,"N",TRUE,"S") -> C | AZ119: F2 | BA119: 10.87917932 | BB119: 39.65563676 | BC119: 0.002992865571 | BD119: 8.957244327e-06 | BE119: 0.003626648002 | BF119: 0.08136039314 | BG119: 5848.885714 | BH119: 92.57449192 | BI119: 483.367792 | BJ119: 0.9197021068 | BK119: 0.002992865571 | BL119: 8.957244327e-06 | BM119: 0.004336341258 | BN119: 0.08561078687 | BO119: 5646.108507 | BP119: 92.57449192 | BQ119: 264.3919073
A120: W24X192 | B120: 24X192 | C120: 24 | X120: 192 | Y120: 56.5 | Z120: 25.5 | AA120: 13 | AB120: 0.81 | AC120: 1.46 | AD120: 1.96 | AE120: 4.43 | AF120: 26.6 | AG120: 21.546 | AH120: 6260 | AI120: 559 | AJ120: 491 | AK120: 10.5 | AL120: 530 | AM120: 126 | AN120: 81.8 | AO120: 3.07 | AP120: 30.8 | AQ120: 76300 | AR120: 3.6 | AS120: 24 | AT120: 3.494545903 | AV120: N | AW120: N | AX120: =_xlfn.IFS($AE120<=$AX$5,"C",$AE120<=$AX$7,"N",TRUE,"S") -> C | AY120: =_xlfn.IFS($AF120<=$AY$5,"C",$AF120<=$AY$7,"N",TRUE,"S") -> C | AZ120: F2 | BA120: 10.8438573 | BB120: 38.29046976 | BC120: 0.00261371351 | BD120: 6.831498312e-06 | BE120: 0.003626648002 | BF120: 0.07899595883 | BG120: 5816.571429 | BH120: 92.57579101 | BI120: 462.0775203 | BJ120: 0.9195079031 | BK120: 0.00261371351 | BL120: 6.831498312e-06 | BM120: 0.004083884118 | BN120: 0.08183885158 | BO120: 5646.187738 | BP120: 92.57579101 | BQ120: 264.3956175
A121: W24X176 | B121: 24X176 | C121: 24 | X121: 176 | Y121: 51.7 | Z121: 25.2 | AA121: 12.9 | AB121: 0.75 | AC121: 1.34 | AD121: 1.84 | AE121: 4.81 | AF121: 28.7 | AG121: 21.525 | AH121: 5680 | AI121: 511 | AJ121: 450 | AK121: 10.5 | AL121: 479 | AM121: 115 | AN121: 74.3 | AO121: 3.04 | AP121: 23.9 | AQ121: 68400 | AR121: 3.57 | AS121: 23.9 | AT121: 3.464059022 | AV121: N | AW121: N | AX121: =_xlfn.IFS($AE121<=$AX$5,"C",$AE121<=$AX$7,"N",TRUE,"S") -> C | AY121: =_xlfn.IFS($AF121<=$AY$5,"C",$AF121<=$AY$7,"N",TRUE,"S") -> C | AZ121: F2 | BA121: 10.73789127 | BB121: 36.76101784 | BC121: 0.002222222222 | BD121: 4.938271605e-06 | BE121: 0.003626648002 | BF121: 0.07647790677 | BG121: 5768.1 | BH121: 91.76814754 | BI121: 435.9621554 | BJ121: 0.9339205137 | BK121: 0.002222222222 | BL121: 4.938271605e-06 | BM121: 0.003845111544 | BN121: 0.0778930919 | BO121: 5596.929648 | BP121: 91.76814754 | BQ121: 262.0889951
A122: W24X162 | B122: 24X162 | C122: 24 | X122: 162 | Y122: 47.8 | Z122: 25 | AA122: 13 | AB122: 0.705 | AC122: 1.22 | AD122: 1.72 | AE122: 5.31 | AF122: 30.6 | AG122: 21.573 | AH122: 5170 | AI122: 468 | AJ122: 414 | AK122: 10.4 | AL122: 443 | AM122: 105 | AN122: 68.4 | AO122: 3.05 | AP122: 18.5 | AQ122: 62600 | AR122: 3.57 | AS122: 23.8 | AT122: 3.484628313 | AV122: N | AW122: N | AX122: =_xlfn.IFS($AE122<=$AX$5,"C",$AE122<=$AX$7,"N",TRUE,"S") -> C | AY122: =_xlfn.IFS($AF122<=$AY$5,"C",$AF122<=$AY$7,"N",TRUE,"S") -> C | AZ122: F2 | BA122: 10.77321328 | BB122: 35.66145487 | BC122: 0.001877562619 | BD122: 3.525241389e-06 | BE122: 0.003626648002 | BF122: 0.07419036744 | BG122: 5768.1 | BH122: 92.31305909 | BI122: 418.8447165 | BJ122: 0.9589511349 | BK122: 0.001877562619 | BL122: 3.525241389e-06 | BM122: 0.003656754376 | BN122: 0.07439299023 | BO122: 5630.163746 | BP122: 92.31305909 | BQ122: 263.6452576
A123: W24X146 | B123: 24X146 | C123: 24 | X123: 146 | Y123: 43 | Z123: 24.7 | AA123: 12.9 | AB123: 0.65 | AC123: 1.09 | AD123: 1.59 | AE123: 5.92 | AF123: 33.2 | AG123: 21.58 | AH123: 4580 | AI123: 418 | AJ123: 371 | AK123: 10.3 | AL123: 391 | AM123: 93.2 | AN123: 60.5 | AO123: 3.01 | AP123: 13.4 | AQ123: 54600 | AR123: 3.53 | AS123: 23.6 | AT123: 3.448265646 | AV123: N | AW123: N | AX123: =_xlfn.IFS($AE123<=$AX$5,"C",$AE123<=$AX$7,"N",TRUE,"S") -> C | AY123: =_xlfn.IFS($AF123<=$AY$5,"C",$AF123<=$AY$7,"N",TRUE,"S") -> C | AZ123: F2 | BA123: 10.63192524 | BB123: 34.13191677 | BC123: 0.001530449084 | BD123: 2.342274399e-06 | BE123: 0.003626648002 | BF123: 0.07181293119 | BG123: 5703.471429 | BH123: 91.34975719 | BI123: 394.8125854 | BJ123: 0.9975819643 | BK123: 0.001530449084 | BL123: 2.342274399e-06 | BM123: 0.003491258452 | BN123: 0.07086400734 | BO123: 5571.412065 | BP123: 91.34975719 | BQ123: 260.8940761
A124: W24X131 | B124: 24X131 | C124: 24 | X124: 131 | Y124: 38.6 | Z124: 24.5 | AA124: 12.9 | AB124: 0.605 | AC124: 0.96 | AD124: 1.46 | AE124: 6.7 | AF124: 35.6 | AG124: 21.538 | AH124: 4020 | AI124: 370 | AJ124: 329 | AK124: 10.2 | AL124: 340 | AM124: 81.5 | AN124: 53 | AO124: 2.97 | AP124: 9.5 | AQ124: 47100 | AR124: 3.49 | AS124: 23.5 | AT124: 3.4348857 | AV124: N | AW124: N | AX124: =_xlfn.IFS($AE124<=$AX$5,"C",$AE124<=$AX$7,"N",TRUE,"S") -> C | AY124: =_xlfn.IFS($AF124<=$AY$5,"C",$AF124<=$AY$7,"N",TRUE,"S") -> C | AZ124: F2 | BA124: 10.4906372 | BB124: 32.74316805 | BC124: 0.001228739572 | BD124: 1.509800936e-06 | BE124: 0.003626648002 | BF124: 0.06968061117 | BG124: 5638.842857 | BH124: 90.99530224 | BI124: 376.350801 | BJ124: 1.05220365 | BK124: 0.001228739572 | BL124: 1.509800936e-06 | BM124: 0.003369927612 | BN124: 0.06781347347 | BO124: 5549.793895 | BP124: 90.99530224 | BQ124: 259.881756
A125: W24X117 | B125: 24X117 | C125: 24 | X125: 117 | Y125: 34.4 | Z125: 24.3 | AA125: 12.8 | AB125: 0.55 | AC125: 0.85 | AD125: 1.35 | AE125: 7.53 | AF125: 39.2 | AG125: 21.56 | AH125: 3540 | AI125: 327 | AJ125: 291 | AK125: 10.1 | AL125: 297 | AM125: 71.4 | AN125: 46.5 | AO125: 2.94 | AP125: 6.72 | AQ125: 40800 | AR125: 3.46 | AS125: 23.5 | AT125: 3.399188371 | AV125: N | AW125: S | AX125: =_xlfn.IFS($AE125<=$AX$5,"C",$AE125<=$AX$7,"N",TRUE,"S") -> C | AY125: =_xlfn.IFS($AF125<=$AY$5,"C",$AF125<=$AY$7,"N",TRUE,"S") -> C | AZ125: F2 | BA125: 10.38467116 | BB125: 31.62844428 | BC125: 0.0009826716385 | BD125: 9.656435491e-07 | BE125: 0.003626648002 | BF125: 0.06789197036 | BG125: 5590.371429 | BH125: 90.04962616 | BI125: 358.9202997 | BJ125: 1.089889706 | BK125: 0.0009826716385 | BL125: 9.656435491e-07 | BM125: 0.003288199314 | BN125: 0.06535190091 | BO125: 5492.11721 | BP125: 90.04962616 | BQ125: 257.1809137
A126: W24X104 | B126: 24X104 | C126: 24 | X126: 104 | Y126: 30.7 | Z126: 24.1 | AA126: 12.8 | AB126: 0.5 | AC126: 0.75 | AD126: 1.25 | AE126: 8.5 | AF126: 43.1 | AG126: 21.55 | AH126: 3100 | AI126: 289 | AJ126: 258 | AK126: 10.1 | AL126: 259 | AM126: 62.4 | AN126: 40.7 | AO126: 2.91 | AP126: 4.72 | AQ126: 35200 | AR126: 3.42 | AS126: 23.4 | AT126: 3.391422668 | AV126: N | AW126: S | AX126: =_xlfn.IFS($AE126<=$AX$5,"C",$AE126<=$AX$7,"N",TRUE,"S") -> C | AY126: =_xlfn.IFS($AF126<=$AY$5,"C",$AF126<=$AY$7,"N",TRUE,"S") -> C | AZ126: F2 | BA126: 10.27870513 | BB126: 30.57406898 | BC126: 0.0007818193865 | BD126: 6.112415531e-07 | BE126: 0.003626648002 | BF126: 0.06639629047 | BG126: 5525.742857 | BH126: 89.843901 | BI126: 347.2370179 | BJ126: 1.122395833 | BK126: 0.0007818193865 | BL126: 6.112415531e-07 | BM126: 0.003233860345 | BN126: 0.06336939112 | BO126: 5479.570054 | BP126: 89.843901 | BQ126: 256.5933645
A127: W24X103 | B127: 24X103 | C127: 24 | X127: 103 | Y127: 30.3 | Z127: 24.5 | AA127: 9 | AB127: 0.55 | AC127: 0.98 | AD127: 1.48 | AE127: 4.59 | AF127: 39.2 | AG127: 21.56 | AH127: 3000 | AI127: 280 | AJ127: 245 | AK127: 10 | AL127: 119 | AM127: 41.5 | AN127: 26.5 | AO127: 1.99 | AP127: 7.07 | AQ127: 16600 | AR127: 2.4 | AS127: 23.5 | AT127: 2.348270036 | AV127: N | AW127: S | AX127: =_xlfn.IFS($AE127<=$AX$5,"C",$AE127<=$AX$7,"N",TRUE,"S") -> C | AY127: =_xlfn.IFS($AF127<=$AY$5,"C",$AF127<=$AY$7,"N",TRUE,"S") -> C | AZ127: F2 | BA127: 7.029080142 | BB127: 22.51499226 | BC127: 0.001227963526 | BD127: 1.507894421e-06 | BE127: 0.003626648002 | BF127: 0.06967504236 | BG127: 3877.714286 | BH127: 62.20921463 | BI127: 257.2637427 | BJ127: 1.344444444 | BK127: 0.001227963526 | BL127: 1.507894421e-06 | BM127: 0.003369644729 | BN127: 0.06780566536 | BO127: 3794.133444 | BP127: 62.20921463 | BQ127: 177.6689514
A128: W24X94 | B128: 24X94 | C128: 24 | X128: 94 | Y128: 27.7 | Z128: 24.3 | AA128: 9.07 | AB128: 0.515 | AC128: 0.875 | AD128: 1.38 | AE128: 5.18 | AF128: 41.9 | AG128: 21.5785 | AH128: 2700 | AI128: 254 | AJ128: 222 | AK128: 9.87 | AL128: 109 | AM128: 37.5 | AN128: 24 | AO128: 1.98 | AP128: 5.26 | AQ128: 15000 | AR128: 2.4 | AS128: 23.4 | AT128: 2.357590529 | AV128: N | AW128: S | AX128: =_xlfn.IFS($AE128<=$AX$5,"C",$AE128<=$AX$7,"N",TRUE,"S") -> C | AY128: =_xlfn.IFS($AF128<=$AY$5,"C",$AF128<=$AY$7,"N",TRUE,"S") -> C | AZ128: F2 | BA128: 6.993758131 | BB128: 22.00979828 | BC128: 0.001012551013 | BD128: 1.025259553e-06 | BE128: 0.003626648002 | BF128: 0.06811166577 | BG128: 3877.714286 | BH128: 62.45612854 | BI128: 250.070034 | BJ128: 1.400274374 | BK128: 0.001012551013 | BL128: 1.025259553e-06 | BM128: 0.003297251997 | BN128: 0.06564908994 | BO128: 3809.192698 | BP128: 62.45612854 | BQ128: 178.3741353
A129: W24X84 | B129: 24X84 | C129: 24 | X129: 84 | Y129: 24.7 | Z129: 24.1 | AA129: 9.02 | AB129: 0.47 | AC129: 0.77 | AD129: 1.27 | AE129: 5.86 | AF129: 45.9 | AG129: 21.573 | AH129: 2370 | AI129: 224 | AJ129: 196 | AK129: 9.79 | AL129: 94.4 | AM129: 32.6 | AN129: 20.9 | AO129: 1.95 | AP129: 3.7 | AQ129: 12800 | AR129: 2.37 | AS129: 23.3 | AT129: 2.335211432 | AV129: N | AW129: S | AX129: =_xlfn.IFS($AE129<=$AX$5,"C",$AE129<=$AX$7,"N",TRUE,"S") -> C | AY129: =_xlfn.IFS($AF129<=$AY$5,"C",$AF129<=$AY$7,"N",TRUE,"S") -> C | AZ129: F2 | BA129: 6.887792099 | BB129: 21.25537206 | BC129: 0.0008101953228 | BD129: 6.56416461e-07 | BE129: 0.003626648002 | BF129: 0.06660963387 | BG129: 3829.242857 | BH129: 61.8632725 | BI129: 240.1450579 | BJ129: 1.459859763 | BK129: 0.0008101953228 | BL129: 6.56416461e-07 | BM129: 0.00324083749 | BN129: 0.06364772433 | BO129: 3773.034471 | BP129: 61.8632725 | BQ129: 176.6809439
A130: W24X76 | B130: 24X76 | C130: 24 | X130: 76 | Y130: 22.4 | Z130: 23.9 | AA130: 8.99 | AB130: 0.44 | AC130: 0.68 | AD130: 1.18 | AE130: 6.61 | AF130: 49 | AG130: 21.56 | AH130: 2100 | AI130: 200 | AJ130: 176 | AK130: 9.69 | AL130: 82.5 | AM130: 28.6 | AN130: 18.4 | AO130: 1.92 | AP130: 2.68 | AQ130: 11100 | AR130: 2.33 | AS130: 23.2 | AT130: 2.313234996 | AV130: N | AW130: S | AX130: =_xlfn.IFS($AE130<=$AX$5,"C",$AE130<=$AX$7,"N",TRUE,"S") -> C | AY130: =_xlfn.IFS($AF130<=$AY$5,"C",$AF130<=$AY$7,"N",TRUE,"S") -> C | AZ130: F2 | BA130: 6.781826067 | BB130: 20.53114038 | BC130: 0.0006563479624 | BD130: 4.307926477e-07 | BE130: 0.003626648002 | BF130: 0.06544460225 | BG130: 3764.614286 | BH130: 61.28108357 | BI130: 232.2741967 | BJ130: 1.55178957 | BK130: 0.0006563479624 | BL130: 4.307926477e-07 | BM130: 0.00320583902 | BN130: 0.06214649614 | BO130: 3737.526829 | BP130: 61.28108357 | BQ130: 175.0182176
A131: W24X68 | B131: 24X68 | C131: 24 | X131: 68 | Y131: 20.1 | Z131: 23.7 | AA131: 8.97 | AB131: 0.415 | AC131: 0.585 | AD131: 1.09 | AE131: 7.66 | AF131: 52 | AG131: 21.58 | AH131: 1830 | AI131: 177 | AJ131: 154 | AK131: 9.55 | AL131: 70.4 | AM131: 24.5 | AN131: 15.7 | AO131: 1.87 | AP131: 1.87 | AQ131: 9430 | AR131: 2.3 | AS131: 23.1 | AT131: 2.284777317 | AV131: N | AW131: S | AX131: =_xlfn.IFS($AE131<=$AX$5,"C",$AE131<=$AX$7,"N",TRUE,"S") -> C | AY131: =_xlfn.IFS($AF131<=$AY$5,"C",$AF131<=$AY$7,"N",TRUE,"S") -> C | AZ131: F2 | BA131: 6.605216013 | BB131: 19.95520468 | BC131: 0.0005256648114 | BD131: 2.763234939e-07 | BE131: 0.003626648002 | BF131: 0.06443844204 | BG131: 3716.142857 | BH131: 60.52719674 | BI131: 224.7700933 | BJ131: 1.706676576 | BK131: 0.0005256648114 | BL131: 2.763234939e-07 | BM131: 0.003181655964 | BN131: 0.06088777197 | BO131: 3691.547351 | BP131: 60.52719674 | BQ131: 172.8651236
A132: W24X62 | B132: 24X62 | C132: 24 | X132: 62 | Y132: 18.2 | Z132: 23.7 | AA132: 7.04 | AB132: 0.43 | AC132: 0.59 | AD132: 1.09 | AE132: 5.97 | AF132: 50.1 | AG132: 21.543 | AH132: 1550 | AI132: 153 | AJ132: 131 | AK132: 9.23 | AL132: 34.5 | AM132: 15.7 | AN132: 9.8 | AO132: 1.38 | AP132: 1.71 | AQ132: 4620 | AR132: 1.75 | AS132: 23.1 | AT132: 1.735208366 | AV132: N | AW132: S | AX132: =_xlfn.IFS($AE132<=$AX$5,"C",$AE132<=$AX$7,"N",TRUE,"S") -> C | AY132: =_xlfn.IFS($AF132<=$AY$5,"C",$AF132<=$AY$7,"N",TRUE,"S") -> C | AZ132: F2 | BA132: 4.874437485 | BB132: 15.25520717 | BC132: 0.0005650837712 | BD132: 3.193196685e-07 | BE132: 0.003626648002 | BF132: 0.0647435848 | BG132: 2827.5 | BH132: 45.96828644 | BI132: 171.7646537 | BJ132: 2.230231606 | BK132: 0.0005650837712 | BL132: 3.193196685e-07 | BM132: 0.00318840569 | BN132: 0.06126572828 | BO132: 2803.600946 | BP132: 45.96828644 | BQ132: 131.2850082
A133: W24X55 | B133: 24X55 | C133: 24 | X133: 55 | Y133: 16.2 | Z133: 23.6 | AA133: 7.01 | AB133: 0.395 | AC133: 0.505 | AD133: 1.01 | AE133: 6.94 | AF133: 54.6 | AG133: 21.567 | AH133: 1350 | AI133: 134 | AJ133: 114 | AK133: 9.11 | AL133: 29.1 | AM133: 13.3 | AN133: 8.3 | AO133: 1.34 | AP133: 1.18 | AQ133: 3870 | AR133: 1.72 | AS133: 23.1 | AT133: 1.709608301 | AV133: N | AW133: S | AX133: =_xlfn.IFS($AE133<=$AX$5,"C",$AE133<=$AX$7,"N",TRUE,"S") -> C | AY133: =_xlfn.IFS($AF133<=$AY$5,"C",$AF133<=$AY$7,"N",TRUE,"S") -> C | AZ133: F2 | BA133: 4.733149442 | BB133: 14.78296697 | BC133: 0.0004480899218 | BD133: 2.00784578e-07 | BE133: 0.003626648002 | BF133: 0.0638336739 | BG133: 2779.028571 | BH133: 45.2901021 | BI133: 166.144749 | BJ133: 2.406453299 | BK133: 0.0004480899218 | BL133: 2.00784578e-07 | BM133: 0.003169762729 | BN133: 0.0601485881 | BO133: 2762.238555 | BP133: 45.2901021 | BQ133: 129.3481199
A134: W21X275 | B134: 21X275 | C134: 21 | X134: 275 | Y134: 81.8 | Z134: 24.1 | AA134: 12.9 | AB134: 1.22 | AC134: 2.19 | AD134: 3.37 | AE134: 2.95 | AF134: 14.2 | AG134: 17.324 | AH134: 7690 | AI134: 749 | AJ134: 638 | AK134: 9.7 | AL134: 787 | AM134: 191 | AN134: 122 | AO134: 3.1 | AP134: 107 | AQ134: 94400 | AR134: 3.68 | AS134: 21.9 | AT134: 3.511423024 | AV134: N | AW134: N | AX134: =_xlfn.IFS($AE134<=$AX$5,"C",$AE134<=$AX$7,"N",TRUE,"S") -> C | AY134: =_xlfn.IFS($AF134<=$AY$5,"C",$AF134<=$AY$7,"N",TRUE,"S") -> C | AZ134: F2 | BA134: 10.94982334 | BB134: 52.63521182 | BC134: 0.00765806387 | BD134: 5.864594223e-05 | BE134: 0.003626648002 | BF134: 0.1062295245 | BG134: 5945.828571 | BH134: 93.02289138 | BI134: 716.162052 | BJ134: 0.7481250221 | BK134: 0.00765806387 | BL134: 5.864594223e-05 | BM134: 0.008276022801 | BN134: 0.1262302922 | BO134: 5673.456343 | BP134: 93.02289138 | BQ134: 265.6725321
A135: W21X248 | B135: 21X248 | C135: 21 | X135: 248 | Y135: 73.8 | Z135: 23.7 | AA135: 12.8 | AB135: 1.1 | AC135: 1.99 | AD135: 3.17 | AE135: 3.22 | AF135: 15.8 | AG135: 17.38 | AH135: 6830 | AI135: 671 | AJ135: 576 | AK135: 9.62 | AL135: 699 | AM135: 170 | AN135: 109 | AO135: 3.08 | AP135: 80.7 | AQ135: 82400 | AR135: 3.63 | AS135: 21.7 | AT135: 3.483576922 | AV135: N | AW135: N | AX135: =_xlfn.IFS($AE135<=$AX$5,"C",$AE135<=$AX$7,"N",TRUE,"S") -> C | AY135: =_xlfn.IFS($AF135<=$AY$5,"C",$AF135<=$AY$7,"N",TRUE,"S") -> C | AZ135: F2 | BA135: 10.87917932 | BB135: 49.07791971 | BC135: 0.00645641321 | BD135: 4.168527154e-05 | BE135: 0.003626648002 | BF135: 0.1004144472 | BG135: 5865.042857 | BH135: 92.28520615 | BI135: 657.2298661 | BJ135: 0.7505496231 | BK135: 0.00645641321 | BL135: 4.168527154e-05 | BM135: 0.007178571078 | BN135: 0.1167689355 | BO135: 5628.464998 | BP135: 92.28520615 | BQ135: 263.5657098
A136: W21X223 | B136: 21X223 | C136: 21 | X136: 223 | Y136: 66.5 | Z136: 23.4 | AA136: 12.7 | AB136: 1 | AC136: 1.79 | AD136: 2.97 | AE136: 3.55 | AF136: 17.5 | AG136: 17.5 | AH136: 6080 | AI136: 601 | AJ136: 520 | AK136: 9.56 | AL136: 614 | AM136: 150 | AN136: 96.7 | AO136: 3.04 | AP136: 59.5 | AQ136: 71700 | AR136: 3.57 | AS136: 21.6 | AT136: =$AA136/(SQRT(12*(1+$BJ136/6))) -> 3.45144225 | AV136: =IF($AE136<=$AV$7,"N","S") -> N | AW136: =IF($AF136<=$AW$7,"N","S") -> N | AX136: =_xlfn.IFS($AE136<=$AX$5,"C",$AE136<=$AX$7,"N",TRUE,"S") -> C | AY136: =_xlfn.IFS($AF136<=$AY$5,"C",$AF136<=$AY$7,"N",TRUE,"S") -> C | AZ136: F2 | BA136: 10.73789127 | BB136: 45.40792162 | BC136: 0.005297364672 | BD136: 2.806207247e-05 | BE136: =SQRT($BD$8+$BC$5) -> 0.003626648002 | BF136: 0.09446699251 | BG136: 5768.1 | BH136: 91.43391023 | BI136: 596.8301197 | BJ136: 0.7698060089 | BK136: 0.005297364672 | BL136: 2.806207247e-05 | BM136: 0.006157002814 | BN136: 0.1070250788 | BO136: =1.95*$AT136*E/$BJ$5 -> 5576.54455 | BP136: 91.43391023 | BQ136: =pi*$AT136*SQRT(E/Fy) -> 261.1344164
A137: W21X201 | B137: =RIGHT(A137,LEN(A137)-1) -> 21X201 | C137: =LEFT(B137,(FIND("X",B137)-1)) -> 21 | X137: 201 | Y137: 59.3 | Z137: 23 | AA137: 12.6 | AB137: 0.91 | AC137: 1.63 | AD137: 2.13 | AE137: 3.86 | AF137: 20.6 | AG137: =+AF137*AB137 -> 18.746 | AH137: 5310 | AI137: 530 | AJ137: 461 | AK137: 9.47 | AL137: 542 | AM137: 133 | AN137: 86.1 | AO137: 3.02 | AP137: 40.9 | AQ137: 62000 | AR137: 3.55 | AS137: 21.4 | AT137: 3.40899312 | AV137: N | AW137: N | AX137: =_xlfn.IFS($AE137<=$AX$5,"C",$AE137<=$AX$7,"N",TRUE,"S") -> C | AY137: =_xlfn.IFS($AF137<=$AY$5,"C",$AF137<=$AY$7,"N",TRUE,"S") -> C | AZ137: =IF(AND(AX137="C", AY137= "C"),"F2","F3") -> F2 | BA137: =1.76*AO137*sqrtefy/12 -> 10.66724725 | BB137: =+$BG137*$BF137/12 -> 42.13962383 | BC137: =+($AP137*$BD$5)/($AJ137*$AS137) -> 0.004145802502 | BD137: =+$BC137^2 -> 1.718767838e-05 | BE137: 0.003626648002 | BF137: =SQRT(($BC137+$BE137)) -> 0.08816150239 | BG137: =1.95*AR137*E/(0.7*Fy) -> 5735.785714 | BH137: =1.1*AT137*SQRT(E/Fy) -> 90.30936876 | BI137: =$BO137*$BN137 -> 532.4590714 | BJ137: =(AG137*AB137)/(AA137*AC137) -> 0.8305998637 | BK137: =+($AP137)/($AJ137*$AS137) -> 0.004145802502 | BL137: =+$BC137^2 -> 1.718767838e-05 | BM137: =SQRT($BL137+$BK$5) -> 0.00519945089 | BN137: =+SQRT($BK137+$BM137) -> 0.09667085079 | BO137: 5507.958884 | BP137: =+$BH137 -> 90.30936876 | BQ137: 257.9227362
A138: W21X182 | B138: 21X182 | C138: 21 | X138: 182 | Y138: 53.6 | Z138: 22.7 | AA138: 12.5 | AB138: 0.83 | AC138: 1.48 | AD138: 1.98 | AE138: 4.22 | AF138: 22.6 | AG138: 18.758 | AH138: 4730 | AI138: 476 | AJ138: 417 | AK138: 9.4 | AL138: 483 | AM138: 119 | AN138: 77.2 | AO138: 3 | AP138: 30.7 | AQ138: 54400 | AR138: 3.51 | AS138: 21.2 | AT138: 3.379223874 | AV138: N | AW138: N | AX138: =_xlfn.IFS($AE138<=$AX$5,"C",$AE138<=$AX$7,"N",TRUE,"S") -> C | AY138: =_xlfn.IFS($AF138<=$AY$5,"C",$AF138<=$AY$7,"N",TRUE,"S") -> C | AZ138: F2 | BA138: 10.59660323 | BB138: 39.81983632 | BC138: 0.003472693543 | BD138: 1.205960045e-05 | BE138: 0.003626648002 | BF138: 0.08425759043 | BG138: 5671.157143 | BH138: 89.52073654 | BI138: 492.9954763 | BJ138: 0.8415751351 | BK138: 0.003472693543 | BL138: 1.205960045e-05 | BM138: 0.004680407207 | BN138: 0.09029452226 | BO138: 5459.860288 | BP138: 89.52073654 | BQ138: 255.6704097
A139: W21X166 | B139: 21X166 | C139: 21 | X139: 166 | Y139: 48.8 | Z139: 22.5 | AA139: 12.4 | AB139: 0.75 | AC139: 1.36 | AD139: 1.86 | AE139: 4.57 | AF139: 25 | AG139: 18.75 | AH139: 4280 | AI139: 432 | AJ139: 380 | AK139: 9.36 | AL139: 435 | AM139: 108 | AN139: 70 | AO139: 2.99 | AP139: 23.6 | AQ139: 48500 | AR139: 3.48 | AS139: 21.1 | AT139: 3.354077642 | AV139: N | AW139: N | AX139: =_xlfn.IFS($AE139<=$AX$5,"C",$AE139<=$AX$7,"N",TRUE,"S") -> C | AY139: =_xlfn.IFS($AF139<=$AY$5,"C",$AF139<=$AY$7,"N",TRUE,"S") -> C | AZ139: F2 | BA139: 10.56128122 | BB139: 37.97922402 | BC139: 0.002943377401 | BD139: 8.663470524e-06 | BE139: 0.003626648002 | BF139: 0.08105569321 | BG139: 5622.685714 | BH139: 88.85457493 | BI139: 461.294425 | BJ139: 0.8338768975 | BK139: 0.002943377401 | BL139: 8.663470524e-06 | BM139: 0.004302334448 | BN139: 0.08512174721 | BO139: 5419.231161 | BP139: 88.85457493 | BQ139: 253.7678582
A140: W21X147 | B140: 21X147 | C140: 21 | X140: 147 | Y140: 43.2 | Z140: 22.1 | AA140: 12.5 | AB140: 0.72 | AC140: 1.15 | AD140: 1.65 | AE140: 5.44 | AF140: 26.1 | AG140: 18.792 | AH140: 3630 | AI140: 373 | AJ140: 329 | AK140: 9.17 | AL140: 376 | AM140: 92.6 | AN140: 60.1 | AO140: 2.95 | AP140: 15.4 | AQ140: 41100 | AR140: 3.46 | AS140: 21 | AT140: 3.354877522 | AV140: N | AW140: N | AX140: =_xlfn.IFS($AE140<=$AX$5,"C",$AE140<=$AX$7,"N",TRUE,"S") -> C | AY140: =_xlfn.IFS($AF140<=$AY$5,"C",$AF140<=$AY$7,"N",TRUE,"S") -> C | AZ140: F2 | BA140: 10.41999318 | BB140: 35.64889188 | BC140: 0.002228976697 | BD140: 4.968337116e-06 | BE140: 0.003626648002 | BF140: 0.07652205367 | BG140: 5590.371429 | BH140: 88.87576495 | BI140: 422.592158 | BJ140: 0.941234087 | BK140: 0.002228976697 | BL140: 4.968337116e-06 | BM140: 0.003849019134 | BN140: 0.07796150224 | BO140: 5420.523538 | BP140: 88.87576495 | BQ140: 253.8283767
A141: W21X132 | B141: 21X132 | C141: 21 | X141: 132 | Y141: 38.8 | Z141: 21.8 | AA141: 12.4 | AB141: 0.65 | AC141: 1.04 | AD141: 1.54 | AE141: 6.01 | AF141: 28.9 | AG141: 18.785 | AH141: 3220 | AI141: 333 | AJ141: 295 | AK141: 9.12 | AL141: 333 | AM141: 82.3 | AN141: 53.5 | AO141: 2.93 | AP141: 11.3 | AQ141: 36000 | AR141: 3.43 | AS141: 20.8 | AT141: 3.3266991 | AV141: N | AW141: N | AX141: =_xlfn.IFS($AE141<=$AX$5,"C",$AE141<=$AX$7,"N",TRUE,"S") -> C | AY141: =_xlfn.IFS($AF141<=$AY$5,"C",$AF141<=$AY$7,"N",TRUE,"S") -> C | AZ141: F2 | BA141: 10.34934915 | BB141: 34.15082248 | BC141: 0.001841590613 | BD141: 3.391455985e-06 | BE141: 0.003626648002 | BF141: 0.07394753961 | BG141: 5541.9 | BH141: 88.12927606 | BI141: 397.8951138 | BJ141: 0.9468245968 | BK141: 0.001841590613 | BL141: 3.391455985e-06 | BM141: 0.003638415474 | BN141: 0.07402706321 | BO141: 5374.99526 | BP141: 88.12927606 | BQ141: 251.6964112
A142: W21X122 | B142: 21X122 | C142: 21 | X142: 122 | Y142: 35.9 | Z142: 21.7 | AA142: 12.4 | AB142: 0.6 | AC142: 0.96 | AD142: 1.46 | AE142: 6.45 | AF142: 31.3 | AG142: 18.78 | AH142: 2960 | AI142: 307 | AJ142: 273 | AK142: 9.09 | AL142: 305 | AM142: 75.6 | AN142: 49.2 | AO142: 2.92 | AP142: 8.98 | AQ142: 32700 | AR142: 3.4 | AS142: 20.7 | AT142: 3.326759444 | AV142: N | AW142: N | AX142: =_xlfn.IFS($AE142<=$AX$5,"C",$AE142<=$AX$7,"N",TRUE,"S") -> C | AY142: =_xlfn.IFS($AF142<=$AY$5,"C",$AF142<=$AY$7,"N",TRUE,"S") -> C | AZ142: F2 | BA142: 10.31402714 | BB142: 33.06125499 | BC142: 0.001589071154 | BD142: 2.525147133e-06 | BE142: 0.003626648002 | BF142: 0.072219936 | BG142: 5493.428571 | BH142: 88.13087467 | BI142: 384.1000137 | BJ142: 0.9465725806 | BK142: 0.001589071154 | BL142: 2.525147133e-06 | BM142: 0.003517351036 | BN142: 0.07145923446 | BO142: 5375.092759 | BP142: 88.13087467 | BQ142: 251.7009769
A143: W21X111 | B143: 21X111 | C143: 21 | X143: 111 | Y143: 32.6 | Z143: 21.5 | AA143: 12.3 | AB143: 0.55 | AC143: 0.875 | AD143: 1.38 | AE143: 7.05 | AF143: 34.1 | AG143: 18.755 | AH143: 2670 | AI143: 279 | AJ143: 249 | AK143: 9.05 | AL143: 274 | AM143: 68.2 | AN143: 44.5 | AO143: 2.9 | AP143: 6.83 | AQ143: 29200 | AR143: 3.37 | AS143: 20.6 | AT143: 3.2971147 | AV143: N | AW143: N | AX143: =_xlfn.IFS($AE143<=$AX$5,"C",$AE143<=$AX$7,"N",TRUE,"S") -> C | AY143: =_xlfn.IFS($AF143<=$AY$5,"C",$AF143<=$AY$7,"N",TRUE,"S") -> C | AZ143: F2 | BA143: 10.24338312 | BB143: 31.9502826 | BC143: 0.001331539751 | BD143: 1.772998109e-06 | BE143: 0.003626648002 | BF143: 0.07041440018 | BG143: 5444.957143 | BH143: 87.3455407 | BI143: 366.7763167 | BJ143: 0.9584436702 | BK143: 0.001331539751 | BL143: 1.772998109e-06 | BM143: 0.0034087548 | BN143: 0.06884979703 | BO143: 5327.195323 | BP143: 87.3455407 | BQ143: 249.4580702
A144: W21X101 | B144: 21X101 | C144: 21 | X144: 101 | Y144: 29.8 | Z144: 21.4 | AA144: 12.3 | AB144: 0.5 | AC144: 0.8 | AD144: 1.3 | AE144: 7.68 | AF144: 37.5 | AG144: 18.75 | AH144: 2420 | AI144: 253 | AJ144: 227 | AK144: 9.02 | AL144: 248 | AM144: 61.7 | AN144: 40.3 | AO144: 2.89 | AP144: 5.21 | AQ144: 26200 | AR144: 3.35 | AS144: 20.6 | AT144: 3.298465889 | AV144: N | AW144: S | AX144: =_xlfn.IFS($AE144<=$AX$5,"C",$AE144<=$AX$7,"N",TRUE,"S") -> C | AY144: =_xlfn.IFS($AF144<=$AY$5,"C",$AF144<=$AY$7,"N",TRUE,"S") -> C | AZ144: F2 | BA144: 10.20806111 | BB144: 31.05660416 | BC144: 0.001114152517 | BD144: 1.241335831e-06 | BE144: 0.003626648002 | BF144: 0.06885347136 | BG144: 5412.642857 | BH144: 87.38133572 | BI144: 355.2745088 | BJ144: 0.9527439024 | BK144: 0.001114152517 | BL144: 1.241335831e-06 | BM144: 0.003329856905 | BN144: 0.06666340392 | BO144: 5329.378458 | BP144: 87.38133572 | BQ144: 249.5603005
A145: W21X93 | B145: 21X93 | C145: 21 | X145: 93 | Y145: 27.3 | Z145: 21.6 | AA145: 8.42 | AB145: 0.58 | AC145: 0.93 | AD145: 1.43 | AE145: 4.53 | AF145: 32.3 | AG145: 18.734 | AH145: 2070 | AI145: 221 | AJ145: 192 | AK145: 8.7 | AL145: 92.9 | AM145: 34.7 | AN145: 22.1 | AO145: 1.84 | AP145: 6.03 | AQ145: 9940 | AR145: 2.24 | AS145: 20.7 | AT145: 2.190511233 | AV145: N | AW145: N | AX145: =_xlfn.IFS($AE145<=$AX$5,"C",$AE145<=$AX$7,"N",TRUE,"S") -> C | AY145: =_xlfn.IFS($AF145<=$AY$5,"C",$AF145<=$AY$7,"N",TRUE,"S") -> C | AZ145: F2 | BA145: 6.499249981 | BB145: 21.63096173 | BC145: 0.001517210145 | BD145: 2.301926624e-06 | BE145: 0.003626648002 | BF145: 0.07172069538 | BG145: 3619.2 | BH145: 58.02994601 | BI145: 250.3292776 | BJ145: 1.387597374 | BK145: 0.001517210145 | BL145: 2.301926624e-06 | BM145: 0.003485475262 | BN145: 0.07072966426 | BO145: 3539.240292 | BP145: 58.02994601 | BQ145: 165.7329982
A146: W21X83 | B146: 21X83 | C146: 21 | X146: 83 | Y146: 24.4 | Z146: 21.4 | AA146: 8.36 | AB146: 0.515 | AC146: 0.835 | AD146: 1.34 | AE146: 5 | AF146: 36.4 | AG146: 18.746 | AH146: 1830 | AI146: 196 | AJ146: 171 | AK146: 8.67 | AL146: 81.4 | AM146: 30.5 | AN146: 19.5 | AO146: 1.83 | AP146: 4.34 | AQ146: 8630 | AR146: 2.21 | AS146: 20.6 | AT146: 2.17557851 | AV146: N | AW146: S | AX146: =_xlfn.IFS($AE146<=$AX$5,"C",$AE146<=$AX$7,"N",TRUE,"S") -> C | AY146: =_xlfn.IFS($AF146<=$AY$5,"C",$AF146<=$AY$7,"N",TRUE,"S") -> C | AZ146: F2 | BA146: 6.46392797 | BB146: 20.74126786 | BC146: 0.001232044513 | BD146: 1.517933681e-06 | BE146: 0.003626648002 | BF146: 0.06970432206 | BG146: 3570.728571 | BH146: 57.63435566 | BI146: 238.4889364 | BJ146: 1.383002894 | BK146: 0.001232044513 | BL146: 1.517933681e-06 | BM146: 0.003371134061 | BN146: 0.06784672854 | BO146: 3515.113278 | BP146: 57.63435566 | BQ146: 164.6031958
A147: W21X73 | B147: 21X73 | C147: 21 | X147: 73 | Y147: 21.5 | Z147: 21.2 | AA147: 8.3 | AB147: 0.455 | AC147: 0.74 | AD147: 1.24 | AE147: 5.6 | AF147: 41.2 | AG147: 18.746 | AH147: 1600 | AI147: 172 | AJ147: 151 | AK147: 8.64 | AL147: 70.6 | AM147: 26.6 | AN147: 17 | AO147: 1.81 | AP147: 3.02 | AQ147: 7410 | AR147: 2.19 | AS147: 20.5 | AT147: 2.159130599 | AV147: N | AW147: S | AX147: =_xlfn.IFS($AE147<=$AX$5,"C",$AE147<=$AX$7,"N",TRUE,"S") -> C | AY147: =_xlfn.IFS($AF147<=$AY$5,"C",$AF147<=$AY$7,"N",TRUE,"S") -> C | AZ147: F2 | BA147: 6.393283948 | BB147: 20.00381839 | BC147: 0.0009756097561 | BD147: 9.518143962e-07 | BE147: 0.003626648002 | BF147: 0.0678399422 | BG147: 3538.414286 | BH147: 57.1986257 | BI147: 227.73784 | BJ147: 1.388705633 | BK147: 0.0009756097561 | BL147: 9.518143962e-07 | BM147: 0.003286095795 | BN147: 0.0652817398 | BO147: 3488.538154 | BP147: 57.1986257 | BQ147: 163.358755
A148: W21X68 | B148: 21X68 | C148: 21 | X148: 68 | Y148: 20 | Z148: 21.1 | AA148: 8.27 | AB148: 0.43 | AC148: 0.685 | AD148: 1.19 | AE148: 6.04 | AF148: 43.6 | AG148: 18.748 | AH148: 1480 | AI148: 160 | AJ148: 140 | AK148: 8.6 | AL148: 64.7 | AM148: 24.4 | AN148: 15.7 | AO148: 1.8 | AP148: 2.45 | AQ148: 6760 | AR148: 2.17 | AS148: 20.4 | AT148: 2.146340559 | AV148: N | AW148: S | AX148: =_xlfn.IFS($AE148<=$AX$5,"C",$AE148<=$AX$7,"N",TRUE,"S") -> C | AY148: =_xlfn.IFS($AF148<=$AY$5,"C",$AF148<=$AY$7,"N",TRUE,"S") -> C | AZ148: F2 | BA148: 6.357961938 | BB148: 19.56589136 | BC148: 0.0008578431373 | BD148: 7.358948481e-07 | BE148: 0.003626648002 | BF148: 0.06696634333 | BG148: 3506.1 | BH148: 56.85979826 | BI148: 222.3477225 | BJ148: 1.42307346 | BK148: 0.0008578431373 | BL148: 7.358948481e-07 | BM148: 0.003253076394 | BN148: 0.06411645289 | BO148: 3467.873104 | BP148: 56.85979826 | BQ148: 162.3910669
A149: W21X62 | B149: 21X62 | C149: 21 | X149: 62 | Y149: 18.3 | Z149: 21 | AA149: 8.24 | AB149: 0.4 | AC149: 0.615 | AD149: 1.12 | AE149: 6.7 | AF149: 46.9 | AG149: 18.76 | AH149: 1330 | AI149: 144 | AJ149: 127 | AK149: 8.54 | AL149: 57.5 | AM149: 21.7 | AN149: 14 | AO149: 1.77 | AP149: 1.83 | AQ149: 5960 | AR149: 2.15 | AS149: 20.4 | AT149: 2.130290235 | AV149: N | AW149: S | AX149: =_xlfn.IFS($AE149<=$AX$5,"C",$AE149<=$AX$7,"N",TRUE,"S") -> C | AY149: =_xlfn.IFS($AF149<=$AY$5,"C",$AF149<=$AY$7,"N",TRUE,"S") -> C | AZ149: F2 | BA149: 6.251995905 | BB149: 19.05530038 | BC149: 0.0007063455303 | BD149: 4.989240082e-07 | BE149: 0.003626648002 | BF149: 0.06582547783 | BG149: 3473.785714 | BH149: 56.43460096 | BI149: 215.5763154 | BJ149: 1.480779856 | BK149: 0.0007063455303 | BL149: 4.989240082e-07 | BM149: 0.003216447603 | BN149: 0.06263220524 | BO149: 3441.940365 | BP149: 56.43460096 | BQ149: 161.1767073
A150: W21X55 | B150: 21X55 | C150: 21 | X150: 55 | Y150: 16.2 | Z150: 20.8 | AA150: 8.22 | AB150: 0.375 | AC150: 0.522 | AD150: 1.02 | AE150: 7.87 | AF150: 50 | AG150: 18.75 | AH150: 1140 | AI150: 126 | AJ150: 110 | AK150: 8.4 | AL150: 48.4 | AM150: 18.4 | AN150: 11.8 | AO150: 1.73 | AP150: 1.24 | AQ150: 4980 | AR150: 2.11 | AS150: 20.3 | AT150: 2.103042664 | AV150: N | AW150: S | AX150: =_xlfn.IFS($AE150<=$AX$5,"C",$AE150<=$AX$7,"N",TRUE,"S") -> C | AY150: =_xlfn.IFS($AF150<=$AY$5,"C",$AF150<=$AY$7,"N",TRUE,"S") -> C | AZ150: F2 | BA150: 6.110707862 | BB150: 18.37195781 | BC150: 0.0005553067622 | BD150: 3.083656001e-07 | BE150: 0.003626648002 | BF150: 0.0646680351 | BG150: 3409.157143 | BH150: 55.71277171 | BI150: 207.8567836 | BJ150: 1.638665156 | BK150: 0.0005553067622 | BL150: 3.083656001e-07 | BM150: 0.00318668743 | BN150: 0.0611718415 | BO150: 3397.916076 | BP150: 55.71277171 | BQ150: 159.1151695
A151: W21X48 | B151: 21X48 | C151: 21 | X151: 48 | Y151: 14.1 | Z151: 20.6 | AA151: 8.14 | AB151: 0.35 | AC151: 0.43 | AD151: 0.93 | AE151: 9.47 | AF151: 53.6 | AG151: 18.76 | AH151: 959 | AI151: 107 | AJ151: 93 | AK151: 8.24 | AL151: 38.7 | AM151: 14.9 | AN151: 9.52 | AO151: 1.66 | AP151: 0.803 | AQ151: 3950 | AR151: 2.05 | AS151: 20.2 | AT151: 2.050970949 | AV151: N | AW151: S | AX151: =_xlfn.IFS($AE151<=$AX$5,"C",$AE151<=$AX$7,"N",TRUE,"S") -> N | AY151: =_xlfn.IFS($AF151<=$AY$5,"C",$AF151<=$AY$7,"N",TRUE,"S") -> C | AZ151: F3 | BA151: 5.863453787 | BB151: 17.57454482 | BC151: 0.0004274459704 | BD151: 1.827100576e-07 | BE151: 0.003626648002 | BF151: 0.06367176746 | BG151: 3312.214286 | BH151: 54.33331344 | BI151: 198.6710734 | BJ151: 1.875892806 | BK151: 0.0004274459704 | BL151: 1.827100576e-07 | BM151: 0.003166910361 | BN151: 0.05995295098 | BO151: 3313.783061 | BP151: 54.33331344 | BQ151: 155.1754493
A152: W21X57 | B152: 21X57 | C152: 21 | X152: 57 | Y152: 16.7 | Z152: 21.1 | AA152: 6.56 | AB152: 0.405 | AC152: 0.65 | AD152: 1.15 | AE152: 5.04 | AF152: 46.3 | AG152: 18.7515 | AH152: 1170 | AI152: 129 | AJ152: 111 | AK152: 8.36 | AL152: 30.6 | AM152: 14.8 | AN152: 9.35 | AO152: 1.35 | AP152: 1.77 | AQ152: 3190 | AR152: 1.68 | AS152: 20.5 | AT152: 1.662914799 | AV152: N | AW152: S | AX152: =_xlfn.IFS($AE152<=$AX$5,"C",$AE152<=$AX$7,"N",TRUE,"S") -> C | AY152: =_xlfn.IFS($AF152<=$AY$5,"C",$AF152<=$AY$7,"N",TRUE,"S") -> C | AZ152: F2 | BA152: 4.768471453 | BB152: 15.01207964 | BC152: 0.0007778510218 | BD152: 6.05052212e-07 | BE152: 0.003626648002 | BF152: 0.06636639981 | BG152: 2714.4 | BH152: 44.05312083 | BI152: 170.1561264 | BJ152: 1.781040689 | BK152: 0.0007778510218 | BL152: 6.05052212e-07 | BM152: 0.003232903245 | BN152: 0.06333051608 | BO152: 2686.795197 | BP152: 44.05312083 | BQ152: 125.8153126
A153: W21X50 | B153: 21X50 | C153: 21 | X153: 50 | Y153: 14.7 | Z153: 20.8 | AA153: 6.53 | AB153: 0.38 | AC153: 0.535 | AD153: 1.04 | AE153: 6.1 | AF153: 49.4 | AG153: 18.772 | AH153: 984 | AI153: 110 | AJ153: 94.5 | AK153: 8.18 | AL153: 24.9 | AM153: 12.2 | AN153: 7.64 | AO153: 1.3 | AP153: 1.14 | AQ153: 2570 | AR153: 1.64 | AS153: 20.3 | AT153: 1.628245081 | AV153: N | AW153: S | AX153: =_xlfn.IFS($AE153<=$AX$5,"C",$AE153<=$AX$7,"N",TRUE,"S") -> C | AY153: =_xlfn.IFS($AF153<=$AY$5,"C",$AF153<=$AY$7,"N",TRUE,"S") -> C | AZ153: F2 | BA153: 4.591861399 | BB153: 14.34597751 | BC153: 0.0005942606928 | BD153: 3.53145771e-07 | BE153: 0.003626648002 | BF153: 0.0649685208 | BG153: 2649.771429 | BH153: 43.1346677 | BI153: 161.91512 | BJ153: 2.041865724 | BK153: 0.0005942606928 | BL153: 3.53145771e-07 | BM153: 0.003193705833 | BN153: 0.06154645827 | BO153: 2630.778838 | BP153: 43.1346677 | BQ153: 123.1922188
A154: W21X44 | B154: 21X44 | C154: 21 | X154: 44 | Y154: 13 | Z154: 20.7 | AA154: 6.5 | AB154: 0.35 | AC154: 0.45 | AD154: 0.95 | AE154: 7.22 | AF154: 53.6 | AG154: 18.76 | AH154: 843 | AI154: 95.4 | AJ154: 81.6 | AK154: 8.06 | AL154: 20.7 | AM154: 10.2 | AN154: 6.37 | AO154: 1.26 | AP154: 0.77 | AQ154: 2110 | AR154: 1.6 | AS154: 20.3 | AT154: 1.600695251 | AV154: N | AW154: S | AX154: =_xlfn.IFS($AE154<=$AX$5,"C",$AE154<=$AX$7,"N",TRUE,"S") -> C | AY154: =_xlfn.IFS($AF154<=$AY$5,"C",$AF154<=$AY$7,"N",TRUE,"S") -> C | AZ154: F2 | BA154: 4.450573356 | BB154: 13.77983449 | BC154: 0.0004648411089 | BD154: 2.160772565e-07 | BE154: 0.003626648002 | BF154: 0.06396474897 | BG154: 2585.142857 | BH154: 42.40483116 | BI154: 155.9716904 | BJ154: 2.244786325 | BK154: 0.0004648411089 | BL154: 2.160772565e-07 | BM154: 0.003172174086 | BN154: 0.06030767111 | BO154: 2586.266184 | BP154: 42.40483116 | BQ154: 121.1078123
A155: W18X311 | B155: 18X311 | C155: 18 | X155: 311 | Y155: 91.6 | Z155: 22.3 | AA155: 12 | AB155: 1.52 | AC155: 2.74 | AD155: 3.24 | AE155: 2.19 | AF155: 10.4 | AG155: 15.808 | AH155: 6970 | AI155: 754 | AJ155: 624 | AK155: 8.72 | AL155: 795 | AM155: 207 | AN155: 132 | AO155: 2.95 | AP155: 176 | AQ155: 76200 | AR155: 3.53 | AS155: 19.6 | AT155: 3.270645235 | AV155: N | AW155: N | AX155: =_xlfn.IFS($AE155<=$AX$5,"C",$AE155<=$AX$7,"N",TRUE,"S") -> C | AY155: =_xlfn.IFS($AF155<=$AY$5,"C",$AF155<=$AY$7,"N",TRUE,"S") -> C | AZ155: F2 | BA155: 10.41999318 | BB155: 63.79688867 | BC155: 0.01439037153 | BD155: 0.0002070827929 | BE155: 0.003626648002 | BF155: 0.1342274917 | BG155: 5703.471429 | BH155: 86.64432464 | BI155: 901.7485428 | BJ155: 0.730783455 | BK155: 0.01439037153 | BL155: 0.0002070827929 | BM155: 0.01472852348 | BN155: 0.1706425944 | BO155: 5284.428229 | BP155: 86.64432464 | BQ155: 247.4554035
A156: W18X283 | B156: 18X283 | C156: 18 | X156: 283 | Y156: 83.3 | Z156: 21.9 | AA156: 11.9 | AB156: 1.4 | AC156: 2.5 | AD156: 3 | AE156: 2.38 | AF156: 11.3 | AG156: 15.82 | AH156: 6170 | AI156: 676 | AJ156: 565 | AK156: 8.61 | AL156: 704 | AM156: 185 | AN156: 118 | AO156: 2.91 | AP156: 134 | AQ156: 65900 | AR156: 3.47 | AS156: 19.4 | AT156: 3.240097142 | AV156: N | AW156: N | AX156: =_xlfn.IFS($AE156<=$AX$5,"C",$AE156<=$AX$7,"N",TRUE,"S") -> C | AY156: =_xlfn.IFS($AF156<=$AY$5,"C",$AF156<=$AY$7,"N",TRUE,"S") -> C | AZ156: F2 | BA156: 10.27870513 | BB156: 58.82368427 | BC156: 0.01222516194 | BD156: 0.0001494545844 | BE156: 0.003626648002 | BF156: 0.1259039711 | BG156: 5606.528571 | BH156: 85.83505958 | BI156: 825.1943621 | BJ156: 0.7444705882 | BK156: 0.01222516194 | BL156: 0.0001494545844 | BM156: 0.01262145774 | BN156: 0.1576281056 | BO156: 5235.071239 | BP156: 85.83505958 | BQ156: 245.1441499
A157: W18X258 | B157: 18X258 | C157: 18 | X157: 258 | Y157: 76 | Z157: 21.5 | AA157: 11.8 | AB157: 1.28 | AC157: 2.3 | AD157: 2.7 | AE157: 2.56 | AF157: 12.5 | AG157: 16 | AH157: 5510 | AI157: 611 | AJ157: 514 | AK157: 8.53 | AL157: 628 | AM157: 166 | AN157: 107 | AO157: 2.88 | AP157: 103 | AQ157: 57600 | AR157: 3.42 | AS157: 19.2 | AT157: 3.210458104 | AV157: N | AW157: N | AX157: =_xlfn.IFS($AE157<=$AX$5,"C",$AE157<=$AX$7,"N",TRUE,"S") -> C | AY157: =_xlfn.IFS($AF157<=$AY$5,"C",$AF157<=$AY$7,"N",TRUE,"S") -> C | AZ157: F2 | BA157: 10.1727391 | BB157: 54.60813914 | BC157: 0.01043693256 | BD157: 0.0001089295612 | BE157: 0.003626648002 | BF157: 0.1185899682 | BG157: 5525.742857 | BH157: 85.04987679 | BI157: 757.6729285 | BJ157: 0.754605748 | BK157: 0.01043693256 | BL157: 0.0001089295612 | BM157: 0.01089844816 | BN157: 0.1460663572 | BO157: 5187.183023 | BP157: 85.04987679 | BQ157: 242.9016749
A158: W18X234 | B158: 18X234 | C158: 18 | X158: 234 | Y158: 68.6 | Z158: 21.1 | AA158: 11.7 | AB158: 1.16 | AC158: 2.11 | AD158: 2.51 | AE158: 2.76 | AF158: 13.8 | AG158: 16.008 | AH158: 4900 | AI158: 549 | AJ158: 466 | AK158: 8.44 | AL158: 558 | AM158: 149 | AN158: 95.8 | AO158: 2.85 | AP158: 78.7 | AQ158: 50100 | AR158: 3.37 | AS158: 19 | AT158: 3.183820551 | AV158: N | AW158: N | AX158: =_xlfn.IFS($AE158<=$AX$5,"C",$AE158<=$AX$7,"N",TRUE,"S") -> C | AY158: =_xlfn.IFS($AF158<=$AY$5,"C",$AF158<=$AY$7,"N",TRUE,"S") -> C | AZ158: F2 | BA158: 10.06677307 | BB158: 50.76140186 | BC158: 0.008888637904 | BD158: 7.900788378e-05 | BE158: 0.003626648002 | BF158: 0.1118717386 | BG158: 5444.957143 | BH158: 84.34420783 | BI158: 696.1702679 | BJ158: 0.7521886013 | BK158: 0.008888637904 | BL158: 7.900788378e-05 | BM158: 0.009426266226 | BN158: 0.1353325686 | BO158: 5144.144347 | BP158: 84.34420783 | BQ158: 240.8862908
A159: W18X211 | B159: 18X211 | C159: 18 | X159: 211 | Y159: 62.3 | Z159: 20.7 | AA159: 11.6 | AB159: 1.06 | AC159: 1.91 | AD159: 2.31 | AE159: 3.02 | AF159: 15.1 | AG159: 16.006 | AH159: 4330 | AI159: 490 | AJ159: 419 | AK159: 8.35 | AL159: 493 | AM159: 132 | AN159: 85.3 | AO159: 2.82 | AP159: 58.6 | AQ159: 43400 | AR159: 3.32 | AS159: 18.8 | AT159: 3.153439001 | AV159: N | AW159: N | AX159: =_xlfn.IFS($AE159<=$AX$5,"C",$AE159<=$AX$7,"N",TRUE,"S") -> C | AY159: =_xlfn.IFS($AF159<=$AY$5,"C",$AF159<=$AY$7,"N",TRUE,"S") -> C | AZ159: F2 | BA159: 9.960807036 | BB159: 47.02335241 | BC159: 0.007439191591 | BD159: 5.534157153e-05 | BE159: 0.003626648002 | BF159: 0.1051942945 | BG159: 5364.171429 | BH159: 83.53935474 | BI159: 634.5976455 | BJ159: 0.7657681892 | BK159: 0.007439191591 | BL159: 5.534157153e-05 | BM159: 0.008073919909 | BN159: 0.1245516419 | BO159: 5095.056442 | BP159: 83.53935474 | BQ159: 238.5876377
A160: W18X192 | B160: 18X192 | C160: 18 | X160: 192 | Y160: 56.2 | Z160: 20.4 | AA160: 11.5 | AB160: 0.96 | AC160: 1.75 | AD160: 2.15 | AE160: 3.27 | AF160: 16.7 | AG160: 16.032 | AH160: 3870 | AI160: 442 | AJ160: 380 | AK160: 8.28 | AL160: 440 | AM160: 119 | AN160: 76.8 | AO160: 2.79 | AP160: 44.7 | AQ160: 38000 | AR160: 3.28 | AS160: 18.7 | AT160: 3.126487995 | AV160: N | AW160: N | AX160: =_xlfn.IFS($AE160<=$AX$5,"C",$AE160<=$AX$7,"N",TRUE,"S") -> C | AY160: =_xlfn.IFS($AF160<=$AY$5,"C",$AF160<=$AY$7,"N",TRUE,"S") -> C | AZ160: F2 | BA160: 9.854841003 | BB160: 43.97943615 | BC160: 0.006290458767 | BD160: 3.95698715e-05 | BE160: 0.003626648002 | BF160: 0.09958467135 | BG160: 5299.542857 | BH160: 82.82538197 | BI160: 583.009726 | BJ160: 0.7647562733 | BK160: 0.006290458767 | BL160: 3.95698715e-05 | BM160: 0.007029685817 | BN160: 0.1154129307 | BO160: 5051.511318 | BP160: 82.82538197 | BQ160: 236.548538
A161: W18X175 | B161: 18X175 | C161: 18 | X161: 175 | Y161: 51.4 | Z161: 20 | AA161: 11.4 | AB161: 0.89 | AC161: 1.59 | AD161: 1.99 | AE161: 3.58 | AF161: 18 | AG161: 16.02 | AH161: 3450 | AI161: 398 | AJ161: 344 | AK161: 8.2 | AL161: 391 | AM161: 106 | AN161: 68.8 | AO161: 2.76 | AP161: 33.8 | AQ161: 33300 | AR161: 3.24 | AS161: 18.4 | AT161: 3.094310736 | AV161: N | AW161: N | AX161: =_xlfn.IFS($AE161<=$AX$5,"C",$AE161<=$AX$7,"N",TRUE,"S") -> C | AY161: =_xlfn.IFS($AF161<=$AY$5,"C",$AF161<=$AY$7,"N",TRUE,"S") -> C | AZ161: F2 | BA161: 9.748874971 | BB161: 41.30885381 | BC161: 0.005339989889 | BD161: 2.851549201e-05 | BE161: 0.003626648002 | BF161: 0.0946923328 | BG161: 5234.914286 | BH161: 81.97295784 | BI161: 536.9241064 | BJ161: 0.7865938431 | BK161: 0.005339989889 | BL161: 2.851549201e-05 | BM161: 0.006193714813 | BN161: 0.107395087 | BO161: 4999.52206 | BP161: 81.97295784 | BQ161: 234.1140224
A162: W18X158 | B162: 18X158 | C162: 18 | X162: 158 | Y162: 46.3 | Z162: 19.7 | AA162: 11.3 | AB162: 0.81 | AC162: 1.44 | AD162: 1.84 | AE162: 3.92 | AF162: 19.8 | AG162: 16.038 | AH162: 3060 | AI162: 356 | AJ162: 310 | AK162: 8.12 | AL162: 347 | AM162: 94.8 | AN162: 61.4 | AO162: 2.74 | AP162: 25.2 | AQ162: 29000 | AR162: 3.2 | AS162: 18.3 | AT162: 3.064514138 | AV162: N | AW162: N | AX162: =_xlfn.IFS($AE162<=$AX$5,"C",$AE162<=$AX$7,"N",TRUE,"S") -> C | AY162: =_xlfn.IFS($AF162<=$AY$5,"C",$AF162<=$AY$7,"N",TRUE,"S") -> C | AZ162: F2 | BA162: 9.678230949 | BB162: 38.70225011 | BC162: 0.00444209413 | BD162: 1.973220026e-05 | BE162: 0.003626648002 | BF162: 0.08982617732 | BG162: 5170.285714 | BH162: 81.18360103 | BI162: 492.1764323 | BJ162: 0.7983517699 | BK162: 0.00444209413 | BL162: 1.973220026e-05 | BM162: 0.005438640587 | BN162: 0.09940188488 | BO162: 4951.379272 | BP162: 81.18360103 | BQ162: 231.8596265
A163: W18X143 | B163: 18X143 | C163: 18 | X163: 143 | Y163: 42 | Z163: 19.5 | AA163: 11.2 | AB163: 0.73 | AC163: 1.32 | AD163: 1.72 | AE163: 4.25 | AF163: 22 | AG163: 16.06 | AH163: 2750 | AI163: 322 | AJ163: 282 | AK163: 8.09 | AL163: 311 | AM163: 85.4 | AN163: 55.5 | AO163: 2.72 | AP163: 19.2 | AQ163: 25700 | AR163: 3.17 | AS163: 18.2 | AT163: 3.038589461 | AV163: N | AW163: N | AX163: =_xlfn.IFS($AE163<=$AX$5,"C",$AE163<=$AX$7,"N",TRUE,"S") -> C | AY163: =_xlfn.IFS($AF163<=$AY$5,"C",$AF163<=$AY$7,"N",TRUE,"S") -> C | AZ163: F2 | BA163: 9.607586928 | BB163: 36.6357633 | BC163: 0.003740939911 | BD163: 1.399463142e-05 | BE163: 0.003626648002 | BF163: 0.0858346545 | BG163: 5121.814286 | BH163: 80.49681725 | BI163: 455.9142276 | BJ163: 0.7930059524 | BK163: 0.003740939911 | BL163: 1.399463142e-05 | BM163: 0.004882749491 | BN163: 0.09286382182 | BO163: 4909.492401 | BP163: 80.49681725 | BQ163: 229.8981783
A164: W18X130 | B164: 18X130 | C164: 18 | X164: 130 | Y164: 38.3 | Z164: 19.3 | AA164: 11.2 | AB164: 0.67 | AC164: 1.2 | AD164: 1.6 | AE164: 4.65 | AF164: 23.9 | AG164: 16.013 | AH164: 2460 | AI164: 290 | AJ164: 256 | AK164: 8.03 | AL164: 278 | AM164: 76.7 | AN164: 49.9 | AO164: 2.7 | AP164: 14.5 | AQ164: 22700 | AR164: 3.13 | AS164: 18.1 | AT164: 3.037413456 | AV164: N | AW164: N | AX164: =_xlfn.IFS($AE164<=$AX$5,"C",$AE164<=$AX$7,"N",TRUE,"S") -> C | AY164: =_xlfn.IFS($AF164<=$AY$5,"C",$AF164<=$AY$7,"N",TRUE,"S") -> C | AZ164: F2 | BA164: 9.536942906 | BB164: 34.63947725 | BC164: 0.003129316298 | BD164: 9.792620495e-06 | BE164: 0.003626648002 | BF164: 0.08219467318 | BG164: 5057.185714 | BH164: 80.46566308 | BI164: 426.7329605 | BJ164: 0.7982671131 | BK164: 0.003129316298 | BL164: 9.792620495e-06 | BM164: 0.004431617275 | BN164: 0.08695362887 | BO164: 4907.592312 | BP164: 80.46566308 | BQ164: 229.8092023
A165: W18X119 | B165: 18X119 | C165: 18 | X165: 119 | Y165: 35.1 | Z165: 19 | AA165: 11.3 | AB165: 0.655 | AC165: 1.06 | AD165: 1.46 | AE165: 5.31 | AF165: 24.5 | AG165: 16.0475 | AH165: 2190 | AI165: 262 | AJ165: 231 | AK165: 7.9 | AL165: 253 | AM165: 69.1 | AN165: 44.9 | AO165: 2.69 | AP165: 10.6 | AQ165: 20300 | AR165: 3.13 | AS165: 17.9 | AT165: 3.046821739 | AV165: N | AW165: N | AX165: =_xlfn.IFS($AE165<=$AX$5,"C",$AE165<=$AX$7,"N",TRUE,"S") -> C | AY165: =_xlfn.IFS($AF165<=$AY$5,"C",$AF165<=$AY$7,"N",TRUE,"S") -> C | AZ165: F2 | BA165: 9.501620896 | BB165: 33.15734381 | BC165: 0.002563544463 | BD165: 6.571760214e-06 | BE165: 0.003626648002 | BF165: 0.07867777618 | BG165: 5057.185714 | BH165: 80.7149027 | BI165: 400.3990696 | BJ165: 0.8775348556 | BK165: 0.002563544463 | BL165: 6.571760214e-06 | BM165: 0.004051958957 | BN165: 0.08133574503 | BO165: 4922.79341 | BP165: 80.7149027 | BQ165: 230.5210283
A166: W18X106 | B166: 18X106 | C166: 18 | X166: 106 | Y166: 31.1 | Z166: 18.7 | AA166: 11.2 | AB166: 0.59 | AC166: 0.94 | AD166: 1.34 | AE166: 5.96 | AF166: 27.2 | AG166: 16.048 | AH166: 1910 | AI166: 230 | AJ166: 204 | AK166: 7.84 | AL166: 220 | AM166: 60.5 | AN166: 39.4 | AO166: 2.66 | AP166: 7.48 | AQ166: 17400 | AR166: 3.1 | AS166: 17.8 | AT166: 3.015081433 | AV166: N | AW166: N | AX166: =_xlfn.IFS($AE166<=$AX$5,"C",$AE166<=$AX$7,"N",TRUE,"S") -> C | AY166: =_xlfn.IFS($AF166<=$AY$5,"C",$AF166<=$AY$7,"N",TRUE,"S") -> C | AZ166: F2 | BA166: 9.395654863 | BB166: 31.47533243 | BC166: 0.002059925094 | BD166: 4.243291391e-06 | BE166: 0.003626648002 | BF166: 0.07540937008 | BG166: 5008.714286 | BH166: 79.87405413 | BI166: 371.4371389 | BJ166: 0.8993465046 | BK166: 0.002059925094 | BL166: 4.243291391e-06 | BM166: 0.003753651898 | BN166: 0.07624681627 | BO166: 4871.510144 | BP166: 79.87405413 | BQ166: 228.1195725
A167: W18X97 | B167: 18X97 | C167: 18 | X167: 97 | Y167: 28.5 | Z167: 18.6 | AA167: 11.1 | AB167: 0.535 | AC167: 0.87 | AD167: 1.27 | AE167: 6.41 | AF167: 30 | AG167: 16.05 | AH167: 1750 | AI167: 211 | AJ167: 188 | AK167: 7.82 | AL167: 201 | AM167: 55.3 | AN167: 36.1 | AO167: 2.65 | AP167: 5.86 | AQ167: 15800 | AR167: 3.08 | AS167: 17.7 | AT167: 2.990366473 | AV167: N | AW167: N | AX167: =_xlfn.IFS($AE167<=$AX$5,"C",$AE167<=$AX$7,"N",TRUE,"S") -> C | AY167: =_xlfn.IFS($AF167<=$AY$5,"C",$AF167<=$AY$7,"N",TRUE,"S") -> C | AZ167: F2 | BA167: 9.360332853 | BB167: 30.43931043 | BC167: 0.00176102897 | BD167: 3.101223033e-06 | BE167: 0.003626648002 | BF167: 0.0734007968 | BG167: 4976.4 | BH167: 79.21931755 | BI167: 353.7077611 | BJ167: 0.8891736564 | BK167: 0.00176102897 | BL167: 3.101223033e-06 | BM167: 0.00359830991 | BN167: 0.07320750563 | BO167: 4831.577829 | BP167: 79.21931755 | BQ167: 226.2496508
A168: W18X86 | B168: 18X86 | C168: 18 | X168: 86 | Y168: 25.3 | Z168: 18.4 | AA168: 11.1 | AB168: 0.48 | AC168: 0.77 | AD168: 1.17 | AE168: 7.2 | AF168: 33.4 | AG168: 16.032 | AH168: 1530 | AI168: 186 | AJ168: 166 | AK168: 7.77 | AL168: 175 | AM168: 48.4 | AN168: 31.6 | AO168: 2.63 | AP168: 4.1 | AQ168: 13600 | AR168: 3.05 | AS168: 17.6 | AT168: =$AA168/(SQRT(12*(1+$BJ168/6))) -> 2.98794204 | AV168: =IF($AE168<=$AV$7,"N","S") -> N | AW168: =IF($AF168<=$AW$7,"N","S") -> N | AX168: =_xlfn.IFS($AE168<=$AX$5,"C",$AE168<=$AX$7,"N",TRUE,"S") -> C | AY168: =_xlfn.IFS($AF168<=$AY$5,"C",$AF168<=$AY$7,"N",TRUE,"S") -> C | AZ168: F2 | BA168: 9.289688831 | BB168: 29.1250487 | BC168: 0.001403340635 | BD168: 1.969364939e-06 | BE168: =SQRT($BD$8+$BC$5) -> 0.003626648002 | BF168: 0.0709224128 | BG168: 4927.928571 | BH168: 79.15509067 | BI168: 335.8878696 | BJ168: 0.9003580204 | BK168: 0.001403340635 | BL168: 1.969364939e-06 | BM168: 0.003437437434 | BN168: 0.06957570028 | BO168: =1.95*$AT168*E/$BJ$5 -> 4827.660638 | BP168: 79.15509067 | BQ168: =pi*$AT168*SQRT(E/Fy) -> 226.0662194
A169: W18X76 | B169: 18X76 | C169: 18 | X169: 76 | Y169: 22.3 | Z169: 18.2 | AA169: 11 | AB169: 0.425 | AC169: 0.68 | AD169: 1.08 | AE169: 8.11 | AF169: 37.8 | AG169: 16.065 | AH169: 1330 | AI169: 163 | AJ169: 146 | AK169: 7.73 | AL169: 152 | AM169: 42.2 | AN169: 27.6 | AO169: 2.61 | AP169: 2.83 | AQ169: 11700 | AR169: 3.02 | AS169: 17.5 | AT169: 2.958361153 | AV169: N | AW169: S | AX169: =_xlfn.IFS($AE169<=$AX$5,"C",$AE169<=$AX$7,"N",TRUE,"S") -> C | AY169: =_xlfn.IFS($AF169<=$AY$5,"C",$AF169<=$AY$7,"N",TRUE,"S") -> C | AZ169: F2 | BA169: 9.21904481 | BB169: 27.97803674 | BC169: 0.001107632094 | BD169: 1.226848856e-06 | BE169: 0.003626648002 | BF169: 0.06880610507 | BG169: 4879.457143 | BH169: 78.37144837 | BI169: 318.3302361 | BJ169: 0.9127840909 | BK169: 0.001107632094 | BL169: 1.226848856e-06 | BM169: 0.003327680879 | BN169: 0.06659814542 | BO169: 4779.866377 | BP169: 78.37144837 | BQ169: 223.8281441
A170: W18X71 | B170: 18X71 | C170: 18 | X170: 71 | Y170: 20.9 | Z170: 18.5 | AA170: 7.64 | AB170: 0.495 | AC170: 0.81 | AD170: 1.21 | AE170: 4.71 | AF170: 32.4 | AG170: 16.038 | AH170: 1170 | AI170: 146 | AJ170: 127 | AK170: 7.5 | AL170: 60.3 | AM170: 24.7 | AN170: 15.8 | AO170: 1.7 | AP170: 3.49 | AQ170: 4700 | AR170: 2.05 | AS170: 17.7 | AT170: 2.001831767 | AV170: N | AW170: N | AX170: =_xlfn.IFS($AE170<=$AX$5,"C",$AE170<=$AX$7,"N",TRUE,"S") -> C | AY170: =_xlfn.IFS($AF170<=$AY$5,"C",$AF170<=$AY$7,"N",TRUE,"S") -> C | AZ170: F2 | BA170: 6.00474183 | BB170: 19.86409865 | BC170: 0.001552560167 | BD170: 2.410443073e-06 | BE170: 0.003626648002 | BF170: 0.0719667157 | BG170: 3312.214286 | BH170: 53.03154241 | BI170: 229.9276437 | BJ170: 1.282853403 | BK170: 0.001552560167 | BL170: 2.410443073e-06 | BM170: 0.003501007605 | BN170: 0.07108845034 | BO170: 3234.388183 | BP170: 53.03154241 | BQ170: 151.457603
A171: W18X65 | B171: 18X65 | C171: 18 | X171: 65 | Y171: 19.1 | Z171: 18.4 | AA171: 7.59 | AB171: 0.45 | AC171: 0.75 | AD171: 1.15 | AE171: 5.06 | AF171: 35.7 | AG171: 16.065 | AH171: 1070 | AI171: 133 | AJ171: 117 | AK171: 7.49 | AL171: 54.8 | AM171: 22.5 | AN171: 14.4 | AO171: 1.69 | AP171: 2.73 | AQ171: 4240 | AR171: 2.03 | AS171: 17.7 | AT171: 1.990493452 | AV171: N | AW171: N | AX171: =_xlfn.IFS($AE171<=$AX$5,"C",$AE171<=$AX$7,"N",TRUE,"S") -> C | AY171: =_xlfn.IFS($AF171<=$AY$5,"C",$AF171<=$AY$7,"N",TRUE,"S") -> C | AZ171: F2 | BA171: 5.969419819 | BB171: 19.22023931 | BC171: 0.00131826742 | BD171: 1.737828991e-06 | BE171: 0.003626648002 | BF171: 0.07032009259 | BG171: 3279.9 | BH171: 52.73117335 | BI171: 220.9946988 | BJ171: 1.269960474 | BK171: 0.00131826742 | BL171: 1.737828991e-06 | BM171: 0.003403592245 | BN171: 0.06871578905 | BO171: 3216.068706 | BP171: 52.73117335 | BQ171: 150.5997517
A172: W18X60 | B172: 18X60 | C172: 18 | X172: 60 | Y172: 17.6 | Z172: 18.2 | AA172: 7.56 | AB172: 0.415 | AC172: 0.695 | AD172: 1.1 | AE172: 5.44 | AF172: 38.7 | AG172: 16.0605 | AH172: 984 | AI172: 123 | AJ172: 108 | AK172: 7.47 | AL172: 50.1 | AM172: 20.6 | AN172: 13.3 | AO172: 1.68 | AP172: 2.17 | AQ172: 3850 | AR172: 2.02 | AS172: 17.5 | AT172: 1.982821047 | AV172: N | AW172: S | AX172: =_xlfn.IFS($AE172<=$AX$5,"C",$AE172<=$AX$7,"N",TRUE,"S") -> C | AY172: =_xlfn.IFS($AF172<=$AY$5,"C",$AF172<=$AY$7,"N",TRUE,"S") -> C | AZ172: F2 | BA172: 5.934097808 | BB172: 18.79369203 | BC172: 0.001148148148 | BD172: 1.31824417e-06 | BE172: 0.003626648002 | BF172: 0.06909989978 | BG172: 3263.742857 | BH172: 52.52791977 | BI172: 214.6587955 | BJ172: 1.268529462 | BK172: 0.001148148148 | BL172: 1.31824417e-06 | BM172: 0.003341385244 | BN172: 0.06700398042 | BO172: 3203.672291 | BP172: 52.52791977 | BQ172: 150.0192613
A173: W18X55 | B173: 18X55 | C173: 18 | X173: 55 | Y173: 16.2 | Z173: 18.1 | AA173: 7.53 | AB173: 0.39 | AC173: 0.63 | AD173: 1.03 | AE173: 5.98 | AF173: 41.1 | AG173: 16.029 | AH173: 890 | AI173: 112 | AJ173: 98.3 | AK173: 7.41 | AL173: 44.9 | AM173: 18.5 | AN173: 11.9 | AO173: 1.67 | AP173: 1.66 | AQ173: 3430 | AR173: 2 | AS173: 17.5 | AT173: 1.96829854 | AV173: N | AW173: S | AX173: =_xlfn.IFS($AE173<=$AX$5,"C",$AE173<=$AX$7,"N",TRUE,"S") -> C | AY173: =_xlfn.IFS($AF173<=$AY$5,"C",$AF173<=$AY$7,"N",TRUE,"S") -> C | AZ173: F2 | BA173: 5.898775798 | BB173: 18.24721017 | BC173: 0.0009649760209 | BD173: 9.31178721e-07 | BE173: 0.003626648002 | BF173: 0.06776152317 | BG173: 3231.428571 | BH173: 52.14319667 | BI173: 207.2737167 | BJ173: 1.317757541 | BK173: 0.0009649760209 | BL173: 9.31178721e-07 | BM173: 0.003282954447 | BN173: 0.06517614953 | BO173: 3180.20807 | BP173: 52.14319667 | BQ173: 148.9204957
A174: W18X50 | B174: 18X50 | C174: 18 | X174: 50 | Y174: 14.7 | Z174: 18 | AA174: 7.5 | AB174: 0.355 | AC174: 0.57 | AD174: 0.972 | AE174: 6.57 | AF174: 45.2 | AG174: 16.046 | AH174: 800 | AI174: 101 | AJ174: 88.9 | AK174: 7.38 | AL174: 40.1 | AM174: 16.6 | AN174: 10.7 | AO174: 1.65 | AP174: 1.24 | AQ174: 3040 | AR174: 1.98 | AS174: 17.4 | AT174: 1.958488268 | AV174: N | AW174: S | AX174: =_xlfn.IFS($AE174<=$AX$5,"C",$AE174<=$AX$7,"N",TRUE,"S") -> C | AY174: =_xlfn.IFS($AF174<=$AY$5,"C",$AF174<=$AY$7,"N",TRUE,"S") -> C | AZ174: F2 | BA174: 5.828131776 | BB174: 17.74049161 | BC174: 0.0008016239349 | BD174: 6.426009331e-07 | BE174: 0.003626648002 | BF174: 0.06654526231 | BG174: 3199.114286 | BH174: 51.88330778 | BI174: 201.137903 | BJ174: 1.332474854 | BK174: 0.0008016239349 | BL174: 6.426009331e-07 | BM174: 0.003238705314 | BN174: 0.0635635843 | BO174: 3164.357474 | BP174: 51.88330778 | BQ174: 148.1782553
A175: W18X46 | B175: 18X46 | C175: 18 | X175: 46 | Y175: 13.5 | Z175: 18.1 | AA175: 6.06 | AB175: 0.36 | AC175: 0.605 | AD175: 1.01 | AE175: 5.01 | AF175: 44.6 | AG175: 16.056 | AH175: 712 | AI175: 90.7 | AJ175: 78.8 | AK175: 7.25 | AL175: 22.5 | AM175: 11.7 | AN175: 7.43 | AO175: 1.29 | AP175: 1.22 | AQ175: 1720 | AR175: 1.58 | AS175: 17.5 | AT175: 1.556759238 | AV175: N | AW175: S | AX175: =_xlfn.IFS($AE175<=$AX$5,"C",$AE175<=$AX$7,"N",TRUE,"S") -> C | AY175: =_xlfn.IFS($AF175<=$AY$5,"C",$AF175<=$AY$7,"N",TRUE,"S") -> C | AZ175: F2 | BA175: 4.556539389 | BB175: 14.28872656 | BC175: 0.0008846990573 | BD175: 7.82692422e-07 | BE175: 0.003626648002 | BF175: 0.06716656206 | BG175: 2552.828571 | BH175: 41.24089993 | BI175: 161.9370435 | BJ175: 1.576564929 | BK175: 0.0008846990573 | BL175: 7.82692422e-07 | BM175: 0.003260261278 | BN175: 0.06438136637 | BO175: 2515.278141 | BP175: 41.24089993 | BQ175: 117.7836353
A176: W18X40 | B176: 18X40 | C176: 18 | X176: 40 | Y176: 11.8 | Z176: 17.9 | AA176: 6.02 | AB176: 0.315 | AC176: 0.525 | AD176: 0.927 | AE176: 5.73 | AF176: 50.9 | AG176: 16.0335 | AH176: 612 | AI176: 78.4 | AJ176: 68.4 | AK176: 7.21 | AL176: 19.1 | AM176: 10 | AN176: 6.35 | AO176: 1.27 | AP176: 0.81 | AQ176: 1440 | AR176: 1.56 | AS176: 17.4 | AT176: 1.544298267 | AV176: N | AW176: S | AX176: =_xlfn.IFS($AE176<=$AX$5,"C",$AE176<=$AX$7,"N",TRUE,"S") -> C | AY176: =_xlfn.IFS($AF176<=$AY$5,"C",$AF176<=$AY$7,"N",TRUE,"S") -> C | AZ176: F2 | BA176: 4.485895367 | BB176: 13.78500368 | BC176: 0.0006805807623 | BD176: 4.631901739e-07 | BE176: 0.003626648002 | BF176: 0.0656294809 | BG176: 2520.514286 | BH176: 40.91079002 | BI176: 155.6512167 | BJ176: 1.598023256 | BK176: 0.0006805807623 | BL176: 4.631901739e-07 | BM176: 0.003210887938 | BN176: 0.06238163753 | BO176: 2495.144772 | BP176: 40.91079002 | BQ176: 116.8408444
A177: W18X35 | B177: 18X35 | C177: 18 | X177: 35 | Y177: 10.3 | Z177: 17.7 | AA177: 6 | AB177: 0.3 | AC177: 0.425 | AD177: 0.827 | AE177: 7.06 | AF177: 53.5 | AG177: 16.05 | AH177: 510 | AI177: 66.5 | AJ177: 57.6 | AK177: 7.04 | AL177: 15.3 | AM177: 8.06 | AN177: 5.12 | AO177: 1.22 | AP177: 0.506 | AQ177: 1140 | AR177: 1.51 | AS177: 17.3 | AT177: 1.510589022 | AV177: N | AW177: S | AX177: =_xlfn.IFS($AE177<=$AX$5,"C",$AE177<=$AX$7,"N",TRUE,"S") -> C | AY177: =_xlfn.IFS($AF177<=$AY$5,"C",$AF177<=$AY$7,"N",TRUE,"S") -> C | AZ177: F2 | BA177: 4.309285313 | BB177: 13.07279263 | BC177: 0.0005077874117 | BD177: 2.578480555e-07 | BE177: 0.003626648002 | BF177: 0.06429957553 | BG177: 2439.728571 | BH177: 40.01778128 | BI177: 148.1904726 | BJ177: 1.888235294 | BK177: 0.0005077874117 | BL177: 2.578480555e-07 | BM177: 0.003178751206 | BN177: 0.0607168726 | BO177: 2440.680263 | BP177: 40.01778128 | BQ177: 114.2904195
A178: W16X100 | B178: 16X100 | C178: 16 | X178: 100 | Y178: 29.4 | Z178: 17 | AA178: 10.4 | AB178: 0.585 | AC178: 0.985 | AD178: 1.39 | AE178: 5.29 | AF178: 24.3 | AG178: 14.2155 | AH178: 1490 | AI178: 198 | AJ178: 175 | AK178: 7.1 | AL178: 186 | AM178: 54.9 | AN178: 35.7 | AO178: 2.51 | AP178: 7.73 | AQ178: 11900 | AR178: 2.92 | AS178: 16 | AT178: 2.81765252 | AV178: N | AW178: N | AX178: =_xlfn.IFS($AE178<=$AX$5,"C",$AE178<=$AX$7,"N",TRUE,"S") -> C | AY178: =_xlfn.IFS($AF178<=$AY$5,"C",$AF178<=$AY$7,"N",TRUE,"S") -> C | AZ178: F2 | BA178: 8.865824702 | BB178: 31.42150229 | BC178: 0.002760714286 | BD178: 7.621543367e-06 | BE178: 0.003626648002 | BF178: 0.07992097526 | BG178: 4717.885714 | BH178: 74.64386448 | BI178: 379.261006 | BJ178: 0.8117988579 | BK178: 0.002760714286 | BL178: 7.621543367e-06 | BM178: 0.00417949214 | BN178: 0.08330790134 | BO178: 4552.521428 | BP178: 74.64386448 | BQ178: 213.1821984
A179: W16X89 | B179: 16X89 | C179: 16 | X179: 89 | Y179: 26.2 | Z179: 16.8 | AA179: 10.4 | AB179: 0.525 | AC179: 0.875 | AD179: 1.28 | AE179: 5.92 | AF179: 27 | AG179: 14.175 | AH179: 1300 | AI179: 175 | AJ179: 155 | AK179: 7.05 | AL179: 163 | AM179: 48.1 | AN179: 31.4 | AO179: 2.49 | AP179: 5.45 | AQ179: 10200 | AR179: 2.88 | AS179: 15.9 | AT179: 2.816414558 | AV179: N | AW179: N | AX179: =_xlfn.IFS($AE179<=$AX$5,"C",$AE179<=$AX$7,"N",TRUE,"S") -> C | AY179: =_xlfn.IFS($AF179<=$AY$5,"C",$AF179<=$AY$7,"N",TRUE,"S") -> C | AZ179: F2 | BA179: 8.79518068 | BB179: 29.62850295 | BC179: 0.002211401907 | BD179: 4.890298395e-06 | BE179: 0.003626648002 | BF179: 0.07640713258 | BG179: 4653.257143 | BH179: 74.61106899 | BI179: 353.9553896 | BJ179: 0.8177884615 | BK179: 0.002211401907 | BL179: 4.890298395e-06 | BM179: 0.003838868267 | BN179: 0.07778348266 | BO179: 4550.521235 | BP179: 74.61106899 | BQ179: 213.0885347
A180: W16X77 | B180: 16X77 | C180: 16 | X180: 77 | Y180: 22.6 | Z180: 16.5 | AA180: 10.3 | AB180: 0.455 | AC180: 0.76 | AD180: 1.16 | AE180: 6.77 | AF180: 31.2 | AG180: 14.196 | AH180: 1110 | AI180: 150 | AJ180: 134 | AK180: 7 | AL180: 138 | AM180: 41.1 | AN180: 26.9 | AO180: 2.47 | AP180: 3.57 | AQ180: 8590 | AR180: 2.85 | AS180: 15.7 | AT180: 2.787831426 | AV180: N | AW180: N | AX180: =_xlfn.IFS($AE180<=$AX$5,"C",$AE180<=$AX$7,"N",TRUE,"S") -> C | AY180: =_xlfn.IFS($AF180<=$AY$5,"C",$AF180<=$AY$7,"N",TRUE,"S") -> C | AZ180: F2 | BA180: 8.724536659 | BB180: 27.99819048 | BC180: 0.001696929366 | BD180: 2.879569273e-06 | BE180: 0.003626648002 | BF180: 0.07296284923 | BG180: 4604.785714 | BH180: 73.85385874 | BI180: 326.8147602 | BJ180: 0.8251379663 | BK180: 0.001696929366 | BL180: 2.879569273e-06 | BM180: 0.003567377251 | BN180: 0.0725555416 | BO180: 4504.339062 | BP180: 73.85385874 | BQ180: 210.9259492
A181: W16X67 | B181: 16X67 | C181: 16 | X181: 67 | Y181: 19.6 | Z181: 16.3 | AA181: 10.2 | AB181: 0.395 | AC181: 0.665 | AD181: 1.07 | AE181: 7.7 | AF181: 35.9 | AG181: 14.1805 | AH181: 954 | AI181: 130 | AJ181: 117 | AK181: 6.96 | AL181: 119 | AM181: 35.5 | AN181: 23.2 | AO181: 2.46 | AP181: 2.39 | AQ181: 7300 | AR181: 2.82 | AS181: 15.6 | AT181: 2.760634313 | AV181: N | AW181: S | AX181: =_xlfn.IFS($AE181<=$AX$5,"C",$AE181<=$AX$7,"N",TRUE,"S") -> C | AY181: =_xlfn.IFS($AF181<=$AY$5,"C",$AF181<=$AY$7,"N",TRUE,"S") -> C | AZ181: F2 | BA181: 8.689214648 | BB181: 26.6762094 | BC181: 0.00130944554 | BD181: 1.714647623e-06 | BE181: 0.003626648002 | BF181: 0.07025733799 | BG181: 4556.314286 | BH181: 73.13336619 | BI181: 306.1024963 | BJ181: 0.8257846823 | BK181: 0.00130944554 | BL181: 1.714647623e-06 | BM181: 0.003400185113 | BN181: 0.06862674881 | BO181: 4460.396297 | BP181: 73.13336619 | BQ181: 208.868229
A182: W16X57 | B182: 16X57 | C182: 16 | X182: 57 | Y182: 16.8 | Z182: 16.4 | AA182: 7.12 | AB182: 0.43 | AC182: 0.715 | AD182: 1.12 | AE182: 4.98 | AF182: 33 | AG182: 14.19 | AH182: 758 | AI182: 105 | AJ182: 92.2 | AK182: 6.72 | AL182: 43.1 | AM182: 18.9 | AN182: 12.1 | AO182: 1.6 | AP182: 2.22 | AQ182: 2660 | AR182: 1.92 | AS182: 15.7 | AT182: 1.87647059 | AV182: N | AW182: N | AX182: =_xlfn.IFS($AE182<=$AX$5,"C",$AE182<=$AX$7,"N",TRUE,"S") -> C | AY182: =_xlfn.IFS($AF182<=$AY$5,"C",$AF182<=$AY$7,"N",TRUE,"S") -> C | AZ182: F2 | BA182: 5.651521722 | BB182: 18.57040458 | BC182: 0.001533636376 | BD182: 2.352040534e-06 | BE182: 0.003626648002 | BF182: 0.07183511939 | BG182: 3102.171429 | BH182: 49.71053579 | BI182: 214.9464301 | BJ182: 1.198573898 | BK182: 0.001533636376 | BL182: 2.352040534e-06 | BM182: 0.003492656827 | BN182: 0.07089635536 | BO182: 3031.840339 | BP182: 49.71053579 | BQ182: 141.9728383
A183: W16X50 | B183: 16X50 | C183: 16 | X183: 50 | Y183: 14.7 | Z183: 16.3 | AA183: 7.07 | AB183: 0.38 | AC183: 0.63 | AD183: 1.03 | AE183: 5.61 | AF183: 37.4 | AG183: 14.212 | AH183: 659 | AI183: 92 | AJ183: 81 | AK183: 6.68 | AL183: 37.2 | AM183: 16.3 | AN183: 10.5 | AO183: 1.59 | AP183: 1.52 | AQ183: 2270 | AR183: 1.89 | AS183: 15.7 | AT183: 1.861494459 | AV183: N | AW183: S | AX183: =_xlfn.IFS($AE183<=$AX$5,"C",$AE183<=$AX$7,"N",TRUE,"S") -> C | AY183: =_xlfn.IFS($AF183<=$AY$5,"C",$AF183<=$AY$7,"N",TRUE,"S") -> C | AZ183: F2 | BA183: 5.616199712 | BB183: 17.67071625 | BC183: 0.001195250452 | BD183: 1.428623643e-06 | BE183: 0.003626648002 | BF183: 0.06943989094 | BG183: 3053.7 | BH183: 49.3137955 | BI183: 202.9459945 | BJ183: 1.212491861 | BK183: 0.001195250452 | BL183: 1.428623643e-06 | BM183: 0.003357861644 | BN183: 0.06747675226 | BO183: 3007.643191 | BP183: 49.3137955 | BQ183: 140.8397516
A184: W16X45 | B184: 16X45 | C184: 16 | X184: 45 | Y184: 13.3 | Z184: 16.1 | AA184: 7.04 | AB184: 0.345 | AC184: 0.565 | AD184: 0.967 | AE184: 6.23 | AF184: 41.1 | AG184: 14.1795 | AH184: 586 | AI184: 82.3 | AJ184: 72.7 | AK184: 6.65 | AL184: 32.8 | AM184: 14.5 | AN184: 9.34 | AO184: 1.57 | AP184: 1.11 | AQ184: 1990 | AR184: 1.87 | AS184: 15.5 | AT184: 1.851366679 | AV184: N | AW184: S | AX184: =_xlfn.IFS($AE184<=$AX$5,"C",$AE184<=$AX$7,"N",TRUE,"S") -> C | AY184: =_xlfn.IFS($AF184<=$AY$5,"C",$AF184<=$AY$7,"N",TRUE,"S") -> C | AZ184: F2 | BA184: 5.54555569 | BB184: 17.09838946 | BC184: 0.0009850468119 | BD184: 9.703172217e-07 | BE184: 0.003626648002 | BF184: 0.06790946041 | BG184: 3021.385714 | BH184: 49.04549531 | BI184: 195.5564154 | BJ184: 1.229869142 | BK184: 0.0009850468119 | BL184: 9.703172217e-07 | BM184: 0.00328890991 | BN184: 0.06537550552 | BO184: 2991.279591 | BP184: 49.04549531 | BQ184: 140.0734887
A185: W16X40 | B185: 16X40 | C185: 16 | X185: 40 | Y185: 11.8 | Z185: 16 | AA185: 7 | AB185: 0.305 | AC185: 0.505 | AD185: 0.907 | AE185: 6.93 | AF185: 46.5 | AG185: 14.1825 | AH185: 518 | AI185: 73 | AJ185: 64.7 | AK185: 6.63 | AL185: 28.9 | AM185: 12.7 | AN185: 8.25 | AO185: 1.57 | AP185: 0.794 | AQ185: 1730 | AR185: 1.86 | AS185: 15.5 | AT185: 1.841637656 | AV185: N | AW185: S | AX185: =_xlfn.IFS($AE185<=$AX$5,"C",$AE185<=$AX$7,"N",TRUE,"S") -> C | AY185: =_xlfn.IFS($AF185<=$AY$5,"C",$AF185<=$AY$7,"N",TRUE,"S") -> C | AZ185: F2 | BA185: 5.54555569 | BB185: 16.64670802 | BC185: 0.0007917435309 | BD185: 6.268578188e-07 | BE185: 0.003626648002 | BF185: 0.06647098263 | BG185: 3005.228571 | BH185: 48.78775883 | BI185: 188.8488845 | BJ185: 1.223666902 | BK185: 0.0007917435309 | BL185: 6.268578188e-07 | BM185: 0.003236273937 | BN185: 0.06346666423 | BO185: 2975.56027 | BP185: 48.78775883 | BQ185: 139.3373957
A186: W16X36 | B186: 16X36 | C186: 16 | X186: 36 | Y186: 10.6 | Z186: 15.9 | AA186: 6.99 | AB186: 0.295 | AC186: 0.43 | AD186: 0.832 | AE186: 8.12 | AF186: 48.1 | AG186: 14.1895 | AH186: 448 | AI186: 64 | AJ186: 56.5 | AK186: 6.51 | AL186: 24.5 | AM186: 10.8 | AN186: 7 | AO186: 1.52 | AP186: 0.545 | AQ186: 1460 | AR186: 1.83 | AS186: 15.5 | AT186: 1.817866408 | AV186: N | AW186: S | AX186: =_xlfn.IFS($AE186<=$AX$5,"C",$AE186<=$AX$7,"N",TRUE,"S") -> C | AY186: =_xlfn.IFS($AF186<=$AY$5,"C",$AF186<=$AY$7,"N",TRUE,"S") -> C | AZ186: F2 | BA186: 5.368945636 | BB186: 16.06113857 | BC186: 0.0006223237225 | BD186: 3.872868156e-07 | BE186: 0.003626648002 | BF186: 0.06518413706 | BG186: 2956.757143 | BH186: 48.15802264 | BI186: 181.5666507 | BJ186: 1.392654789 | BK186: 0.0006223237225 | BL186: 3.872868156e-07 | BM186: 0.003199046419 | BN186: 0.06181723175 | BO186: 2937.152726 | BP186: 48.15802264 | BQ186: 137.5388748
A187: W16X31 | B187: 16X31 | C187: 16 | X187: 31 | Y187: 9.13 | Z187: 15.9 | AA187: 5.53 | AB187: 0.275 | AC187: 0.44 | AD187: 0.842 | AE187: 6.28 | AF187: 51.6 | AG187: 14.19 | AH187: 375 | AI187: 54 | AJ187: 47.2 | AK187: 6.41 | AL187: 12.4 | AM187: 7.03 | AN187: 4.49 | AO187: 1.17 | AP187: 0.461 | AQ187: 739 | AR187: 1.42 | AS187: 15.5 | AT187: 1.418065052 | AV187: N | AW187: S | AX187: =_xlfn.IFS($AE187<=$AX$5,"C",$AE187<=$AX$7,"N",TRUE,"S") -> C | AY187: =_xlfn.IFS($AF187<=$AY$5,"C",$AF187<=$AY$7,"N",TRUE,"S") -> C | AZ187: F2 | BA187: 4.132675259 | BB187: 12.4741783 | BC187: 0.0006301257518 | BD187: 3.970584631e-07 | BE187: 0.003626648002 | BF187: 0.06524395568 | BG187: 2294.314286 | BH187: 37.56668179 | BI187: 141.8076754 | BJ187: 1.60375226 | BK187: 0.0006301257518 | BL187: 3.970584631e-07 | BM187: 0.00320057333 | BN187: 0.06189264158 | BO187: 2291.187963 | BP187: 37.56668179 | BQ187: 107.2901017
A188: W16X26 | B188: 16X26 | C188: 16 | X188: 26 | Y188: 7.68 | Z188: 15.7 | AA188: 5.5 | AB188: 0.25 | AC188: 0.345 | AD188: 0.747 | AE188: 7.97 | AF188: 56.8 | AG188: 14.2 | AH188: 301 | AI188: 44.2 | AJ188: 38.4 | AK188: 6.26 | AL188: 9.59 | AM188: 5.48 | AN188: 3.49 | AO188: 1.12 | AP188: 0.262 | AQ188: 565 | AR188: 1.38 | AS188: 15.4 | AT188: 1.386232161 | AV188: N | AW188: S | AX188: =_xlfn.IFS($AE188<=$AX$5,"C",$AE188<=$AX$7,"N",TRUE,"S") -> C | AY188: =_xlfn.IFS($AF188<=$AY$5,"C",$AF188<=$AY$7,"N",TRUE,"S") -> C | AZ188: F2 | BA188: 3.956065206 | BB188: 11.85341015 | BC188: 0.0004430465368 | BD188: 1.962902338e-07 | BE188: 0.003626648002 | BF188: 0.06379415756 | BG188: 2229.685714 | BH188: 36.72338049 | BI188: 134.6109635 | BJ188: 1.87088274 | BK188: 0.0004430465368 | BL188: 1.962902338e-07 | BM188: 0.003169053709 | BN188: 0.06010075079 | BO188: 2239.755106 | BP188: 36.72338049 | BQ188: 104.8816408
A189: W14X873 | B189: 14X873 | C189: 14 | X189: 873 | Y189: 257 | Z189: 23.6 | AA189: 18.8 | AB189: 3.94 | AC189: 5.51 | AD189: 6.1 | AE189: 1.71 | AF189: 2.89 | AG189: 11.3866 | AH189: 18100 | AI189: 2030 | AJ189: 1530 | AK189: 8.39 | AL189: 6170 | AM189: 1020 | AN189: 656 | AO189: 4.9 | AP189: 2270 | AQ189: 505000 | AR189: 6.04 | AS189: 18.1 | AT189: 5.241226733 | AV189: N | AW189: N | AX189: =_xlfn.IFS($AE189<=$AX$5,"C",$AE189<=$AX$7,"N",TRUE,"S") -> C | AY189: =_xlfn.IFS($AF189<=$AY$5,"C",$AF189<=$AY$7,"N",TRUE,"S") -> C | AZ189: F2 | BA189: 17.30778527 | BB189: 237.9299291 | BC189: 0.08197017297 | BD189: 0.006719109256 | BE189: 0.003626648002 | BF189: 0.2925693439 | BG189: 9758.914286 | BH189: 138.8480003 | BI189: 3429.414246 | BJ189: 0.4330926748 | BK189: 0.08197017297 | BL189: 0.006719109256 | BM189: 0.08203021314 | BN189: 0.4049696113 | BO189: 8468.324907 | BP189: 138.8480003 | BQ189: 396.5486266
A190: W14X808 | B190: 14X808 | C190: 14 | X190: 808 | Y190: 238 | Z190: 22.8 | AA190: 18.6 | AB190: 3.74 | AC190: 5.12 | AD190: 5.71 | AE190: 1.82 | AF190: 3.04 | AG190: 11.3696 | AH190: 15900 | AI190: 1830 | AJ190: 1390 | AK190: 8.17 | AL190: 5550 | AM190: 930 | AN190: 597 | AO190: 4.83 | AP190: 1840 | AQ190: 434000 | AR190: 5.94 | AS190: 17.7 | AT190: 5.180068738 | AV190: N | AW190: N | AX190: =_xlfn.IFS($AE190<=$AX$5,"C",$AE190<=$AX$7,"N",TRUE,"S") -> C | AY190: =_xlfn.IFS($AF190<=$AY$5,"C",$AF190<=$AY$7,"N",TRUE,"S") -> C | AZ190: F2 | BA190: 17.0605312 | BB190: 223.958387 | BC190: 0.07478762753 | BD190: 0.005593189231 | BE190: 0.003626648002 | BF190: 0.2800254909 | BG190: 9597.342857 | BH190: 137.2278328 | BI190: 3237.616992 | BJ190: 0.4465127688 | BK190: 0.07478762753 | BL190: 0.005593189231 | BM190: 0.07485342906 | BN190: 0.3868346631 | BO190: 8369.511062 | BP190: 137.2278328 | BQ190: 391.921443
A191: W14X730 | B191: 14X730 | C191: 14 | X191: 730 | Y191: 215 | Z191: 22.4 | AA191: 17.9 | AB191: 3.07 | AC191: 4.91 | AD191: 5.51 | AE191: 1.82 | AF191: 3.71 | AG191: 11.3897 | AH191: 14300 | AI191: 1660 | AJ191: 1280 | AK191: 8.17 | AL191: 4720 | AM191: 816 | AN191: 527 | AO191: 4.69 | AP191: 1450 | AQ191: 362000 | AR191: 5.68 | AS191: 17.5 | AT191: 5.004043848 | AV191: N | AW191: N | AX191: =_xlfn.IFS($AE191<=$AX$5,"C",$AE191<=$AX$7,"N",TRUE,"S") -> C | AY191: =_xlfn.IFS($AF191<=$AY$5,"C",$AF191<=$AY$7,"N",TRUE,"S") -> C | AZ191: F2 | BA191: 16.56602305 | BB191: 199.9534218 | BC191: 0.06473214286 | BD191: 0.004190250319 | BE191: 0.003626648002 | BF191: 0.2614551412 | BG191: 9177.257143 | BH191: 132.564668 | BI191: 2909.967354 | BJ191: 0.3978470457 | BK191: 0.06473214286 | BL191: 0.004190250319 | BM191: 0.06480815481 | BN191: 0.3599170705 | BO191: 8085.105132 | BP191: 132.564668 | BQ191: 378.6034867
A192: W14X665 | B192: 14X665 | C192: 14 | X192: 665 | Y192: 196 | Z192: 21.6 | AA192: 17.7 | AB192: 2.83 | AC192: 4.52 | AD192: 5.12 | AE192: 1.95 | AF192: 4.03 | AG192: 11.4049 | AH192: 12400 | AI192: 1480 | AJ192: 1150 | AK192: 7.98 | AL192: 4170 | AM192: 730 | AN192: 472 | AO192: 4.62 | AP192: 1120 | AQ192: 305000 | AR192: 5.57 | AS192: 17.1 | AT192: 4.945975919 | AV192: N | AW192: N | AX192: =_xlfn.IFS($AE192<=$AX$5,"C",$AE192<=$AX$7,"N",TRUE,"S") -> C | AY192: =_xlfn.IFS($AF192<=$AY$5,"C",$AF192<=$AY$7,"N",TRUE,"S") -> C | AZ192: F2 | BA192: 16.31876897 | BB192: 184.5888213 | BC192: 0.05695397915 | BD192: 0.003243755741 | BE192: 0.003626648002 | BF192: 0.2461313209 | BG192: 8999.528571 | BH192: 131.026361 | BI192: 2698.100981 | BJ192: 0.4034281661 | BK192: 0.05695397915 | BL192: 0.003243755741 | BM192: 0.05704035722 | BN192: 0.3376304731 | BO192: 7991.283949 | BP192: 131.026361 | BQ192: 374.2100959
A193: W14X605 | B193: 14X605 | C193: 14 | X193: 605 | Y193: 178 | Z193: 20.9 | AA193: 17.4 | AB193: 2.6 | AC193: 4.16 | AD193: 4.76 | AE193: 2.09 | AF193: 4.39 | AG193: 11.414 | AH193: 10800 | AI193: 1320 | AJ193: 1040 | AK193: 7.8 | AL193: 3680 | AM193: 652 | AN193: 423 | AO193: 4.55 | AP193: 869 | AQ193: 258000 | AR193: 5.44 | AS193: 16.7 | AT193: 4.859658176 | AV193: N | AW193: N | AX193: =_xlfn.IFS($AE193<=$AX$5,"C",$AE193<=$AX$7,"N",TRUE,"S") -> C | AY193: =_xlfn.IFS($AF193<=$AY$5,"C",$AF193<=$AY$7,"N",TRUE,"S") -> C | AZ193: F2 | BA193: 16.0715149 | BB193: 169.6728621 | BC193: 0.05003454629 | BD193: 0.002503455823 | BE193: 0.003626648002 | BF193: 0.2316488599 | BG193: 8789.485714 | BH193: 128.7396738 | BI193: 2485.040524 | BJ193: 0.4099856322 | BK193: 0.05003454629 | BL193: 0.002503455823 | BM193: 0.05013284785 | BN193: 0.3164923287 | BO193: 7851.819138 | BP193: 128.7396738 | BQ193: 367.679338
A194: W14X550 | B194: 14X550 | C194: 14 | X194: 550 | Y194: 162 | Z194: 20.2 | AA194: 17.2 | AB194: 2.38 | AC194: 3.82 | AD194: 4.42 | AE194: 2.25 | AF194: 4.79 | AG194: 11.4002 | AH194: 9430 | AI194: 1180 | AJ194: 931 | AK194: 7.63 | AL194: 3250 | AM194: 583 | AN194: 378 | AO194: 4.49 | AP194: 669 | AQ194: 219000 | AR194: 5.35 | AS194: 16.4 | AT194: 4.802689584 | AV194: N | AW194: N | AX194: =_xlfn.IFS($AE194<=$AX$5,"C",$AE194<=$AX$7,"N",TRUE,"S") -> C | AY194: =_xlfn.IFS($AF194<=$AY$5,"C",$AF194<=$AY$7,"N",TRUE,"S") -> C | AZ194: F2 | BA194: 15.85958283 | BB194: 156.8994774 | BC194: 0.04381598596 | BD194: 0.001919840625 | BE194: 0.003626648002 | BF194: 0.2178133007 | BG194: 8644.071429 | BH194: 127.2304899 | BI194: 2298.572838 | BJ194: 0.41295014 | BK194: 0.04381598596 | BL194: 0.001919840625 | BM194: 0.04392820548 | BN194: 0.2962164604 | BO194: 7759.77417 | BP194: 127.2304899 | BQ194: 363.3691224
A195: W14X500 | B195: 14X500 | C195: 14 | X195: 500 | Y195: 147 | Z195: 19.6 | AA195: 17 | AB195: 2.19 | AC195: 3.5 | AD195: 4.1 | AE195: 2.43 | AF195: 5.21 | AG195: 11.4099 | AH195: 8210 | AI195: 1050 | AJ195: 838 | AK195: 7.48 | AL195: 2880 | AM195: 522 | AN195: 339 | AO195: 4.43 | AP195: 514 | AQ195: 187000 | AR195: 5.26 | AS195: 16.1 | AT195: 4.744251764 | AV195: N | AW195: N | AX195: =_xlfn.IFS($AE195<=$AX$5,"C",$AE195<=$AX$7,"N",TRUE,"S") -> C | AY195: =_xlfn.IFS($AF195<=$AY$5,"C",$AF195<=$AY$7,"N",TRUE,"S") -> C | AZ195: F2 | BA195: 15.64765077 | BB195: 144.6642822 | BC195: 0.0380972146 | BD195: 0.001451397761 | BE195: 0.003626648002 | BF195: 0.2042641981 | BG195: 8498.657143 | BH195: 125.6823839 | BI195: 2117.684526 | BJ195: 0.4199610252 | BK195: 0.0380972146 | BL195: 0.001451397761 | BM195: 0.03822622623 | BN195: 0.2762669738 | BO195: 7665.355351 | BP195: 125.6823839 | BQ195: 358.9477459
A196: W14X455 | B196: 14X455 | C196: 14 | X196: 455 | Y196: 134 | Z196: 19 | AA196: 16.8 | AB196: 2.02 | AC196: 3.21 | AD196: 3.81 | AE196: 2.62 | AF196: 5.66 | AG196: 11.4332 | AH196: 7190 | AI196: 936 | AJ196: 756 | AK196: 7.33 | AL196: 2560 | AM196: 468 | AN196: 304 | AO196: 4.38 | AP196: 395 | AQ196: 160000 | AR196: 5.17 | AS196: 15.8 | AT196: 4.685410596 | AV196: N | AW196: N | AX196: =_xlfn.IFS($AE196<=$AX$5,"C",$AE196<=$AX$7,"N",TRUE,"S") -> C | AY196: =_xlfn.IFS($AF196<=$AY$5,"C",$AF196<=$AY$7,"N",TRUE,"S") -> C | AZ196: F2 | BA196: 15.47104071 | BB196: 133.3459589 | BC196: 0.03306878307 | BD196: 0.001093544414 | BE196: 0.003626648002 | BF196: 0.1915605154 | BG196: 8353.242857 | BH196: 124.1235926 | BI196: 1949.052321 | BJ196: 0.4282573802 | BK196: 0.03306878307 | BL196: 0.001093544414 | BM196: 0.03321733019 | BN196: 0.2574608966 | BO196: 7570.284834 | BP196: 124.1235926 | BQ196: 354.4958521
A197: W14X426 | B197: 14X426 | C197: 14 | X197: 426 | Y197: 125 | Z197: 18.7 | AA197: 16.7 | AB197: 1.88 | AC197: 3.04 | AD197: 3.63 | AE197: 2.75 | AF197: 6.08 | AG197: 11.4304 | AH197: 6600 | AI197: 869 | AJ197: 706 | AK197: 7.26 | AL197: 2360 | AM197: 434 | AN197: 283 | AO197: 4.34 | AP197: 331 | AQ197: 144000 | AR197: 5.11 | AS197: 15.7 | AT197: 4.659324926 | AV197: N | AW197: N | AX197: =_xlfn.IFS($AE197<=$AX$5,"C",$AE197<=$AX$7,"N",TRUE,"S") -> C | AY197: =_xlfn.IFS($AF197<=$AY$5,"C",$AF197<=$AY$7,"N",TRUE,"S") -> C | AZ197: F2 | BA197: 15.32975267 | BB197: 125.9085272 | BC197: 0.02986232655 | BD197: 0.0008917585473 | BE197: 0.003626648002 | BF197: 0.1829999305 | BG197: 8256.3 | BH197: 123.4325439 | BI197: 1842.304179 | BJ197: 0.4232814371 | BK197: 0.02986232655 | BL197: 0.0008917585473 | BM197: 0.03002674072 | BN197: 0.244722429 | BO197: 7528.137844 | BP197: 123.4325439 | BQ197: 352.5222232
A198: W14X398 | B198: 14X398 | C198: 14 | X198: 398 | Y198: 117 | Z198: 18.3 | AA198: 16.6 | AB198: 1.77 | AC198: 2.85 | AD198: 3.44 | AE198: 2.92 | AF198: 6.44 | AG198: 11.3988 | AH198: 6000 | AI198: 801 | AJ198: 656 | AK198: 7.16 | AL198: 2170 | AM198: 402 | AN198: 262 | AO198: 4.31 | AP198: 273 | AQ198: 129000 | AR198: 5.05 | AS198: 15.5 | AT198: 4.630278864 | AV198: N | AW198: N | AX198: =_xlfn.IFS($AE198<=$AX$5,"C",$AE198<=$AX$7,"N",TRUE,"S") -> C | AY198: =_xlfn.IFS($AF198<=$AY$5,"C",$AF198<=$AY$7,"N",TRUE,"S") -> C | AZ198: F2 | BA198: 15.22378664 | BB198: 118.7000026 | BC198: 0.02684893784 | BD198: 0.0007208654634 | BE198: 0.003626648002 | BF198: 0.1745725805 | BG198: 8159.357143 | BH198: 122.6630699 | BI198: 1736.552919 | BJ198: 0.4264611287 | BK198: 0.02684893784 | BL198: 0.0007208654634 | BM198: 0.02703168649 | BN198: 0.2321220031 | BO198: 7481.207708 | BP198: 122.6630699 | BQ198: 350.3246125
A199: W14X370 | B199: 14X370 | C199: 14 | X199: 370 | Y199: 109 | Z199: 17.9 | AA199: 16.5 | AB199: 1.66 | AC199: 2.66 | AD199: 3.26 | AE199: 3.1 | AF199: 6.89 | AG199: 11.4374 | AH199: 5440 | AI199: 736 | AJ199: 607 | AK199: 7.07 | AL199: 1990 | AM199: 370 | AN199: 241 | AO199: 4.27 | AP199: 222 | AQ199: 116000 | AR199: 5 | AS199: 15.2 | AT199: 4.600194926 | AV199: N | AW199: N | AX199: =_xlfn.IFS($AE199<=$AX$5,"C",$AE199<=$AX$7,"N",TRUE,"S") -> C | AY199: =_xlfn.IFS($AF199<=$AY$5,"C",$AF199<=$AY$7,"N",TRUE,"S") -> C | AZ199: F2 | BA199: 15.0824986 | BB199: 112.0209901 | BC199: 0.02406138906 | BD199: 0.0005789504434 | BE199: 0.003626648002 | BF199: 0.1663972267 | BG199: 8078.571429 | BH199: 121.866101 | BI199: 1633.930595 | BJ199: 0.4325833675 | BK199: 0.02406138906 | BL199: 0.0005789504434 | BM199: 0.02426514073 | BN199: 0.2198329588 | BO199: 7432.60066 | BP199: 121.866101 | BQ199: 348.0484767
A200: W14X342 | B200: 14X342 | C200: 14 | X200: 342 | Y200: 101 | Z200: 17.5 | AA200: 16.4 | AB200: 1.54 | AC200: 2.47 | AD200: 3.07 | AE200: 3.31 | AF200: 7.41 | AG200: 11.4114 | AH200: 4900 | AI200: 672 | AJ200: 558 | AK200: 6.98 | AL200: 1810 | AM200: 338 | AN200: 221 | AO200: 4.24 | AP200: 178 | AQ200: 103000 | AR200: 4.95 | AS200: 15 | AT200: =$AA200/(SQRT(12*(1+$BJ200/6))) -> 4.571872225 | AV200: =IF($AE200<=$AV$7,"N","S") -> N | AW200: =IF($AF200<=$AW$7,"N","S") -> N | AX200: =_xlfn.IFS($AE200<=$AX$5,"C",$AE200<=$AX$7,"N",TRUE,"S") -> C | AY200: =_xlfn.IFS($AF200<=$AY$5,"C",$AF200<=$AY$7,"N",TRUE,"S") -> C | AZ200: F2 | BA200: 14.97653256 | BB200: 105.1544843 | BC200: 0.02126642772 | BD200: 0.0004522609479 | BE200: =SQRT($BD$8+$BC$5) -> 0.003626648002 | BF200: 0.1577753964 | BG200: 7997.785714 | BH200: 121.11579 | BI200: 1527.542545 | BJ200: 0.4338292683 | BK200: 0.02126642772 | BL200: 0.0004522609479 | BM200: 0.02149668716 | BN200: 0.206792444 | BO200: =1.95*$AT200*E/$BJ$5 -> 7386.839266 | BP200: 121.11579 | BQ200: =pi*$AT200*SQRT(E/Fy) -> 345.9055951
... 96 more rows
